Workbook

Sheet Model
C2: Estimate of Activity Lifetime and Decay
C3: Upgrading to Biomass-fired boiler
C5: Fuel and Environment Characteristics
C8: Fuel Type | D8: Please select data | Z8: Year Number | AA8: Efficiency | AB8: Persistence
C9: Coastal Location | D9: Please select data | Z9: 1 | AA9: =INDEX(Data!$A$1:$MW$16,(6+Table1[[#This Row],[Year Number]]),MATCH(1,(Data!$1:$1=Model!$D$8)*(Data!$2:$2=Model!$D$9)*(Data!$3:$3=Model!$D$10)*(Data!$4:$4=Model!$D$11)*(Data!$5:$5=Model!$D$12),0)) ->  | AB9: =Table1[[#This Row],[Efficiency]]/85 -> 
C10: % Moisture in one kg of fuel | D10: Please select data | Z10: 2 | AA10: =INDEX(Data!$A$1:$MW$16,(6+Table1[[#This Row],[Year Number]]),MATCH(1,(Data!$1:$1=Model!$D$8)*(Data!$2:$2=Model!$D$9)*(Data!$3:$3=Model!$D$10)*(Data!$4:$4=Model!$D$11)*(Data!$5:$5=Model!$D$12),0)) ->  | AB10: =Table1[[#This Row],[Efficiency]]/85 -> 
C11: Water Hardness | D11: Please select data | Z11: 3 | AA11: =INDEX(Data!$A$1:$MW$16,(6+Table1[[#This Row],[Year Number]]),MATCH(1,(Data!$1:$1=Model!$D$8)*(Data!$2:$2=Model!$D$9)*(Data!$3:$3=Model!$D$10)*(Data!$4:$4=Model!$D$11)*(Data!$5:$5=Model!$D$12),0)) ->  | AB11: =Table1[[#This Row],[Efficiency]]/85 -> 
C12: Equipment Usage | D12: Please select data | Z12: 4 | AA12: =INDEX(Data!$A$1:$MW$16,(6+Table1[[#This Row],[Year Number]]),MATCH(1,(Data!$1:$1=Model!$D$8)*(Data!$2:$2=Model!$D$9)*(Data!$3:$3=Model!$D$10)*(Data!$4:$4=Model!$D$11)*(Data!$5:$5=Model!$D$12),0)) ->  | AB12: =Table1[[#This Row],[Efficiency]]/85 -> 
Z13: 5 | AA13: =INDEX(Data!$A$1:$MW$16,(6+Table1[[#This Row],[Year Number]]),MATCH(1,(Data!$1:$1=Model!$D$8)*(Data!$2:$2=Model!$D$9)*(Data!$3:$3=Model!$D$10)*(Data!$4:$4=Model!$D$11)*(Data!$5:$5=Model!$D$12),0)) ->  | AB13: =Table1[[#This Row],[Efficiency]]/85 -> 
Z14: 6 | AA14: =INDEX(Data!$A$1:$MW$16,(6+Table1[[#This Row],[Year Number]]),MATCH(1,(Data!$1:$1=Model!$D$8)*(Data!$2:$2=Model!$D$9)*(Data!$3:$3=Model!$D$10)*(Data!$4:$4=Model!$D$11)*(Data!$5:$5=Model!$D$12),0)) ->  | AB14: =Table1[[#This Row],[Efficiency]]/85 -> 
C15: Persistence Model Output | Z15: 7 | AA15: =INDEX(Data!$A$1:$MW$16,(6+Table1[[#This Row],[Year Number]]),MATCH(1,(Data!$1:$1=Model!$D$8)*(Data!$2:$2=Model!$D$9)*(Data!$3:$3=Model!$D$10)*(Data!$4:$4=Model!$D$11)*(Data!$5:$5=Model!$D$12),0)) ->  | AB15: =Table1[[#This Row],[Efficiency]]/85 -> 
C16: Decay Factors for each year of the Expected Lifetime | Z16: 8 | AA16: =INDEX(Data!$A$1:$MW$16,(6+Table1[[#This Row],[Year Number]]),MATCH(1,(Data!$1:$1=Model!$D$8)*(Data!$2:$2=Model!$D$9)*(Data!$3:$3=Model!$D$10)*(Data!$4:$4=Model!$D$11)*(Data!$5:$5=Model!$D$12),0)) ->  | AB16: =Table1[[#This Row],[Efficiency]]/85 -> 
C17: Expected lifetime | D17: Decay Factor | Z17: 9 | AA17: =INDEX(Data!$A$1:$MW$16,(6+Table1[[#This Row],[Year Number]]),MATCH(1,(Data!$1:$1=Model!$D$8)*(Data!$2:$2=Model!$D$9)*(Data!$3:$3=Model!$D$10)*(Data!$4:$4=Model!$D$11)*(Data!$5:$5=Model!$D$12),0)) ->  | AB17: =Table1[[#This Row],[Efficiency]]/85 -> 
C18: 1 | D18: =AB9 ->  | Z18: 10 | AA18: =INDEX(Data!$A$1:$MW$16,(6+Table1[[#This Row],[Year Number]]),MATCH(1,(Data!$1:$1=Model!$D$8)*(Data!$2:$2=Model!$D$9)*(Data!$3:$3=Model!$D$10)*(Data!$4:$4=Model!$D$11)*(Data!$5:$5=Model!$D$12),0)) ->  | AB18: =Table1[[#This Row],[Efficiency]]/85 -> 
C19: 2 | AB19: =SUM(Table1[Persistence]) -> 
C20: 3
C21: 4
C22: 5
C23: 6
C24: 7
C25: 8
C26: 9
C27: 10
C29: Total | D29: =AVERAGE(D18:D27)*10 -> 
B36: Fuel | C36: Fuel GCV
B37: Please select data | E37: Please select data
B38: Wood Pallets | C38: 4800 | E38: Within 500 meters of coast | F38: 1
B39: Wood Logs | C39: 4650 | E39: Not within 500 meters of coast | F39: 0
B40: Wood Chip | C40: 4400
B41: Rice Husk | C41: 4100 | E41: Please select data
B42: Sugar Cane | C42: 4230 | E42: 7 Days a week | F42: 5
B43: Corn Waste | C43: 4150 | E43: 5 Days a week | F43: 7
C45: Please select data | E45: Please select data
A46: a | B46: 0.08 | C46: 0.08 | E46: Soft (0-60 mg/L salts) | F46: 8
A47: b | B47: 0.2 | C47: 0.2 | E47: Moderate (61-120 mg/L salts) | F47: 13
A48: c | B48: 0.4 | C48: 0.4 | E48: Hard (over 121 mg/L salts) | F48: 18
A49: d | B49: 0.6 | C49: 0.6
A50: e | B50: 0.85 | C50: 0.85

Sheet Data (hidden)
A1: Fuel Type | B1: Wood Pallets | C1: Wood Pallets | D1: Wood Pallets | E1: Wood Pallets | F1: Wood Pallets | G1: Wood Pallets | H1: Wood Pallets | I1: Wood Pallets | J1: Wood Pallets | K1: Wood Pallets | L1: Wood Pallets | M1: Wood Pallets | N1: Wood Pallets | O1: Wood Pallets | P1: Wood Pallets | Q1: Wood Pallets | R1: Wood Pallets | S1: Wood Pallets | T1: Wood Pallets | U1: Wood Pallets | V1: Wood Pallets | W1: Wood Pallets | X1: Wood Pallets | Y1: Wood Pallets | Z1: Wood Pallets | AA1: Wood Pallets | AB1: Wood Pallets | AC1: Wood Pallets | AD1: Wood Pallets | AE1: Wood Pallets | AF1: Wood Pallets | AG1: Wood Pallets | AH1: Wood Pallets | AI1: Wood Pallets | AJ1: Wood Pallets | AK1: Wood Pallets | AL1: Wood Pallets | AM1: Wood Pallets | AN1: Wood Pallets | AO1: Wood Pallets | AP1: Wood Pallets | AQ1: Wood Pallets | AR1: Wood Pallets | AS1: Wood Pallets | AT1: Wood Pallets | AU1: Wood Pallets | AV1: Wood Pallets | AW1: Wood Pallets | AX1: Wood Pallets | AY1: Wood Pallets | AZ1: Wood Pallets | BA1: Wood Pallets | BB1: Wood Pallets | BC1: Wood Pallets | BD1: Wood Pallets | BE1: Wood Pallets | BF1: Wood Pallets | BG1: Wood Pallets | BH1: Wood Pallets | BI1: Wood Pallets | BJ1: Wood Logs | BK1: Wood Logs | BL1: Wood Logs | BM1: Wood Logs | BN1: Wood Logs | BO1: Wood Logs | BP1: Wood Logs | BQ1: Wood Logs | BR1: Wood Logs | BS1: Wood Logs | BT1: Wood Logs | BU1: Wood Logs | BV1: Wood Logs | BW1: Wood Logs | BX1: Wood Logs | BY1: Wood Logs | BZ1: Wood Logs | CA1: Wood Logs | CB1: Wood Logs | CC1: Wood Logs | CD1: Wood Logs | CE1: Wood Logs | CF1: Wood Logs | CG1: Wood Logs | CH1: Wood Logs | CI1: Wood Logs | CJ1: Wood Logs | CK1: Wood Logs | CL1: Wood Logs | CM1: Wood Logs | CN1: Wood Logs | CO1: Wood Logs | CP1: Wood Logs | CQ1: Wood Logs | CR1: Wood Logs | CS1: Wood Logs | CT1: Wood Logs | CU1: Wood Logs | CV1: Wood Logs | CW1: Wood Logs | CX1: Wood Logs | CY1: Wood Logs | CZ1: Wood Logs | DA1: Wood Logs | DB1: Wood Logs | DC1: Wood Logs | DD1: Wood Logs | DE1: Wood Logs | DF1: Wood Logs | DG1: Wood Logs | DH1: Wood Logs | DI1: Wood Logs | DJ1: Wood Logs | DK1: Wood Logs | DL1: Wood Logs | DM1: Wood Logs | DN1: Wood Logs | DO1: Wood Logs | DP1: Wood Logs | DQ1: Wood Logs | DR1: Wood Chip | DS1: Wood Chip | DT1: Wood Chip | DU1: Wood Chip | DV1: Wood Chip | DW1: Wood Chip | DX1: Wood Chip | DY1: Wood Chip | DZ1: Wood Chip | EA1: Wood Chip | EB1: Wood Chip | EC1: Wood Chip | ED1: Wood Chip | EE1: Wood Chip | EF1: Wood Chip | EG1: Wood Chip | EH1: Wood Chip | EI1: Wood Chip | EJ1: Wood Chip | EK1: Wood Chip | EL1: Wood Chip | EM1: Wood Chip | EN1: Wood Chip | EO1: Wood Chip | EP1: Wood Chip | EQ1: Wood Chip | ER1: Wood Chip | ES1: Wood Chip | ET1: Wood Chip | EU1: Wood Chip | EV1: Wood Chip | EW1: Wood Chip | EX1: Wood Chip | EY1: Wood Chip | EZ1: Wood Chip | FA1: Wood Chip | FB1: Wood Chip | FC1: Wood Chip | FD1: Wood Chip | FE1: Wood Chip | FF1: Wood Chip | FG1: Wood Chip | FH1: Wood Chip | FI1: Wood Chip | FJ1: Wood Chip | FK1: Wood Chip | FL1: Wood Chip | FM1: Wood Chip | FN1: Wood Chip | FO1: Wood Chip | FP1: Wood Chip | FQ1: Wood Chip | FR1: Wood Chip | FS1: Wood Chip | FT1: Wood Chip | FU1: Wood Chip | FV1: Wood Chip | FW1: Wood Chip | FX1: Wood Chip | FY1: Wood Chip | FZ1: Rice Husk | GA1: Rice Husk | GB1: Rice Husk | GC1: Rice Husk | GD1: Rice Husk | GE1: Rice Husk | GF1: Rice Husk | GG1: Rice Husk | GH1: Rice Husk | GI1: Rice Husk | GJ1: Rice Husk | GK1: Rice Husk | GL1: Rice Husk | GM1: Rice Husk | GN1: Rice Husk | GO1: Rice Husk | GP1: Rice Husk | GQ1: Rice Husk | GR1: Rice Husk | GS1: Rice Husk | GT1: Rice Husk | GU1: Rice Husk | GV1: Rice Husk | GW1: Rice Husk | GX1: Rice Husk | GY1: Rice Husk | GZ1: Rice Husk | HA1: Rice Husk | HB1: Rice Husk | HC1: Rice Husk | HD1: Rice Husk | HE1: Rice Husk | HF1: Rice Husk | HG1: Rice Husk | HH1: Rice Husk | HI1: Rice Husk | HJ1: Rice Husk | HK1: Rice Husk | HL1: Rice Husk | HM1: Rice Husk | HN1: Rice Husk | HO1: Rice Husk | HP1: Rice Husk | HQ1: Rice Husk | HR1: Rice Husk | HS1: Rice Husk | HT1: Rice Husk | HU1: Rice Husk | HV1: Rice Husk | HW1: Rice Husk | HX1: Rice Husk | HY1: Rice Husk | HZ1: Rice Husk | IA1: Rice Husk | IB1: Rice Husk | IC1: Rice Husk | ID1: Rice Husk | IE1: Rice Husk | IF1: Rice Husk | IG1: Rice Husk | IH1: Sugar Cane | II1: Sugar Cane | IJ1: Sugar Cane | IK1: Sugar Cane | IL1: Sugar Cane | IM1: Sugar Cane | IN1: Sugar Cane | IO1: Sugar Cane | IP1: Sugar Cane | IQ1: Sugar Cane | IR1: Sugar Cane | IS1: Sugar Cane | IT1: Sugar Cane | IU1: Sugar Cane | IV1: Sugar Cane | IW1: Sugar Cane | IX1: Sugar Cane | IY1: Sugar Cane | IZ1: Sugar Cane | JA1: Sugar Cane | JB1: Sugar Cane | JC1: Sugar Cane | JD1: Sugar Cane | JE1: Sugar Cane | JF1: Sugar Cane | JG1: Sugar Cane | JH1: Sugar Cane | JI1: Sugar Cane | JJ1: Sugar Cane | JK1: Sugar Cane | JL1: Sugar Cane | JM1: Sugar Cane | JN1: Sugar Cane | JO1: Sugar Cane | JP1: Sugar Cane | JQ1: Sugar Cane | JR1: Sugar Cane | JS1: Sugar Cane | JT1: Sugar Cane | JU1: Sugar Cane | JV1: Sugar Cane | JW1: Sugar Cane | JX1: Sugar Cane | JY1: Sugar Cane | JZ1: Sugar Cane | KA1: Sugar Cane | KB1: Sugar Cane | KC1: Sugar Cane | KD1: Sugar Cane | KE1: Sugar Cane | KF1: Sugar Cane | KG1: Sugar Cane | KH1: Sugar Cane | KI1: Sugar Cane | KJ1: Sugar Cane | KK1: Sugar Cane | KL1: Sugar Cane | KM1: Sugar Cane | KN1: Sugar Cane | KO1: Sugar Cane | KP1: Corn Waste | KQ1: Corn Waste | KR1: Corn Waste | KS1: Corn Waste | KT1: Corn Waste | KU1: Corn Waste | KV1: Corn Waste | KW1: Corn Waste | KX1: Corn Waste | KY1: Corn Waste | KZ1: Corn Waste | LA1: Corn Waste | LB1: Corn Waste | LC1: Corn Waste | LD1: Corn Waste | LE1: Corn Waste | LF1: Corn Waste | LG1: Corn Waste | LH1: Corn Waste | LI1: Corn Waste | LJ1: Corn Waste | LK1: Corn Waste | LL1: Corn Waste | LM1: Corn Waste | LN1: Corn Waste | LO1: Corn Waste | LP1: Corn Waste | LQ1: Corn Waste | LR1: Corn Waste | LS1: Corn Waste | LT1: Corn Waste | LU1: Corn Waste | LV1: Corn Waste | LW1: Corn Waste | LX1: Corn Waste | LY1: Corn Waste | LZ1: Corn Waste | MA1: Corn Waste | MB1: Corn Waste | MC1: Corn Waste | MD1: Corn Waste | ME1: Corn Waste | MF1: Corn Waste | MG1: Corn Waste | MH1: Corn Waste | MI1: Corn Waste | MJ1: Corn Waste | MK1: Corn Waste | ML1: Corn Waste | MM1: Corn Waste | MN1: Corn Waste | MO1: Corn Waste | MP1: Corn Waste | MQ1: Corn Waste | MR1: Corn Waste | MS1: Corn Waste | MT1: Corn Waste | MU1: Corn Waste | MV1: Corn Waste | MW1: Corn Waste
A2: coast | B2: Within 500 meters of coast | C2: Within 500 meters of coast | D2: Within 500 meters of coast | E2: Within 500 meters of coast | F2: Within 500 meters of coast | G2: Within 500 meters of coast | H2: Within 500 meters of coast | I2: Within 500 meters of coast | J2: Within 500 meters of coast | K2: Within 500 meters of coast | L2: Within 500 meters of coast | M2: Within 500 meters of coast | N2: Within 500 meters of coast | O2: Within 500 meters of coast | P2: Within 500 meters of coast | Q2: Within 500 meters of coast | R2: Within 500 meters of coast | S2: Within 500 meters of coast | T2: Within 500 meters of coast | U2: Within 500 meters of coast | V2: Within 500 meters of coast | W2: Within 500 meters of coast | X2: Within 500 meters of coast | Y2: Within 500 meters of coast | Z2: Within 500 meters of coast | AA2: Within 500 meters of coast | AB2: Within 500 meters of coast | AC2: Within 500 meters of coast | AD2: Within 500 meters of coast | AE2: Within 500 meters of coast | AF2: Not within 500 meters of coast | AG2: Not within 500 meters of coast | AH2: Not within 500 meters of coast | AI2: Not within 500 meters of coast | AJ2: Not within 500 meters of coast | AK2: Not within 500 meters of coast | AL2: Not within 500 meters of coast | AM2: Not within 500 meters of coast | AN2: Not within 500 meters of coast | AO2: Not within 500 meters of coast | AP2: Not within 500 meters of coast | AQ2: Not within 500 meters of coast | AR2: Not within 500 meters of coast | AS2: Not within 500 meters of coast | AT2: Not within 500 meters of coast | AU2: Not within 500 meters of coast | AV2: Not within 500 meters of coast | AW2: Not within 500 meters of coast | AX2: Not within 500 meters of coast | AY2: Not within 500 meters of coast | AZ2: Not within 500 meters of coast | BA2: Not within 500 meters of coast | BB2: Not within 500 meters of coast | BC2: Not within 500 meters of coast | BD2: Not within 500 meters of coast | BE2: Not within 500 meters of coast | BF2: Not within 500 meters of coast | BG2: Not within 500 meters of coast | BH2: Not within 500 meters of coast | BI2: Not within 500 meters of coast | BJ2: Within 500 meters of coast | BK2: Within 500 meters of coast | BL2: Within 500 meters of coast | BM2: Within 500 meters of coast | BN2: Within 500 meters of coast | BO2: Within 500 meters of coast | BP2: Within 500 meters of coast | BQ2: Within 500 meters of coast | BR2: Within 500 meters of coast | BS2: Within 500 meters of coast | BT2: Within 500 meters of coast | BU2: Within 500 meters of coast | BV2: Within 500 meters of coast | BW2: Within 500 meters of coast | BX2: Within 500 meters of coast | BY2: Within 500 meters of coast | BZ2: Within 500 meters of coast | CA2: Within 500 meters of coast | CB2: Within 500 meters of coast | CC2: Within 500 meters of coast | CD2: Within 500 meters of coast | CE2: Within 500 meters of coast | CF2: Within 500 meters of coast | CG2: Within 500 meters of coast | CH2: Within 500 meters of coast | CI2: Within 500 meters of coast | CJ2: Within 500 meters of coast | CK2: Within 500 meters of coast | CL2: Within 500 meters of coast | CM2: Within 500 meters of coast | CN2: Not within 500 meters of coast | CO2: Not within 500 meters of coast | CP2: Not within 500 meters of coast | CQ2: Not within 500 meters of coast | CR2: Not within 500 meters of coast | CS2: Not within 500 meters of coast | CT2: Not within 500 meters of coast | CU2: Not within 500 meters of coast | CV2: Not within 500 meters of coast | CW2: Not within 500 meters of coast | CX2: Not within 500 meters of coast | CY2: Not within 500 meters of coast | CZ2: Not within 500 meters of coast | DA2: Not within 500 meters of coast | DB2: Not within 500 meters of coast | DC2: Not within 500 meters of coast | DD2: Not within 500 meters of coast | DE2: Not within 500 meters of coast | DF2: Not within 500 meters of coast | DG2: Not within 500 meters of coast | DH2: Not within 500 meters of coast | DI2: Not within 500 meters of coast | DJ2: Not within 500 meters of coast | DK2: Not within 500 meters of coast | DL2: Not within 500 meters of coast | DM2: Not within 500 meters of coast | DN2: Not within 500 meters of coast | DO2: Not within 500 meters of coast | DP2: Not within 500 meters of coast | DQ2: Not within 500 meters of coast | DR2: Within 500 meters of coast | DS2: Within 500 meters of coast | DT2: Within 500 meters of coast | DU2: Within 500 meters of coast | DV2: Within 500 meters of coast | DW2: Within 500 meters of coast | DX2: Within 500 meters of coast | DY2: Within 500 meters of coast | DZ2: Within 500 meters of coast | EA2: Within 500 meters of coast | EB2: Within 500 meters of coast | EC2: Within 500 meters of coast | ED2: Within 500 meters of coast | EE2: Within 500 meters of coast | EF2: Within 500 meters of coast | EG2: Within 500 meters of coast | EH2: Within 500 meters of coast | EI2: Within 500 meters of coast | EJ2: Within 500 meters of coast | EK2: Within 500 meters of coast | EL2: Within 500 meters of coast | EM2: Within 500 meters of coast | EN2: Within 500 meters of coast | EO2: Within 500 meters of coast | EP2: Within 500 meters of coast | EQ2: Within 500 meters of coast | ER2: Within 500 meters of coast | ES2: Within 500 meters of coast | ET2: Within 500 meters of coast | EU2: Within 500 meters of coast | EV2: Not within 500 meters of coast | EW2: Not within 500 meters of coast | EX2: Not within 500 meters of coast | EY2: Not within 500 meters of coast | EZ2: Not within 500 meters of coast | FA2: Not within 500 meters of coast | FB2: Not within 500 meters of coast | FC2: Not within 500 meters of coast | FD2: Not within 500 meters of coast | FE2: Not within 500 meters of coast | FF2: Not within 500 meters of coast | FG2: Not within 500 meters of coast | FH2: Not within 500 meters of coast | FI2: Not within 500 meters of coast | FJ2: Not within 500 meters of coast | FK2: Not within 500 meters of coast | FL2: Not within 500 meters of coast | FM2: Not within 500 meters of coast | FN2: Not within 500 meters of coast | FO2: Not within 500 meters of coast | FP2: Not within 500 meters of coast | FQ2: Not within 500 meters of coast | FR2: Not within 500 meters of coast | FS2: Not within 500 meters of coast | FT2: Not within 500 meters of coast | FU2: Not within 500 meters of coast | FV2: Not within 500 meters of coast | FW2: Not within 500 meters of coast | FX2: Not within 500 meters of coast | FY2: Not within 500 meters of coast | FZ2: Within 500 meters of coast | GA2: Within 500 meters of coast | GB2: Within 500 meters of coast | GC2: Within 500 meters of coast | GD2: Within 500 meters of coast | GE2: Within 500 meters of coast | GF2: Within 500 meters of coast | GG2: Within 500 meters of coast | GH2: Within 500 meters of coast | GI2: Within 500 meters of coast | GJ2: Within 500 meters of coast | GK2: Within 500 meters of coast | GL2: Within 500 meters of coast | GM2: Within 500 meters of coast | GN2: Within 500 meters of coast | GO2: Within 500 meters of coast | GP2: Within 500 meters of coast | GQ2: Within 500 meters of coast | GR2: Within 500 meters of coast | GS2: Within 500 meters of coast | GT2: Within 500 meters of coast | GU2: Within 500 meters of coast | GV2: Within 500 meters of coast | GW2: Within 500 meters of coast | GX2: Within 500 meters of coast | GY2: Within 500 meters of coast | GZ2: Within 500 meters of coast | HA2: Within 500 meters of coast | HB2: Within 500 meters of coast | HC2: Within 500 meters of coast | HD2: Not within 500 meters of coast | HE2: Not within 500 meters of coast | HF2: Not within 500 meters of coast | HG2: Not within 500 meters of coast | HH2: Not within 500 meters of coast | HI2: Not within 500 meters of coast | HJ2: Not within 500 meters of coast | HK2: Not within 500 meters of coast | HL2: Not within 500 meters of coast | HM2: Not within 500 meters of coast | HN2: Not within 500 meters of coast | HO2: Not within 500 meters of coast | HP2: Not within 500 meters of coast | HQ2: Not within 500 meters of coast | HR2: Not within 500 meters of coast | HS2: Not within 500 meters of coast | HT2: Not within 500 meters of coast | HU2: Not within 500 meters of coast | HV2: Not within 500 meters of coast | HW2: Not within 500 meters of coast | HX2: Not within 500 meters of coast | HY2: Not within 500 meters of coast | HZ2: Not within 500 meters of coast | IA2: Not within 500 meters of coast | IB2: Not within 500 meters of coast | IC2: Not within 500 meters of coast | ID2: Not within 500 meters of coast | IE2: Not within 500 meters of coast | IF2: Not within 500 meters of coast | IG2: Not within 500 meters of coast | IH2: Within 500 meters of coast | II2: Within 500 meters of coast | IJ2: Within 500 meters of coast | IK2: Within 500 meters of coast | IL2: Within 500 meters of coast | IM2: Within 500 meters of coast | IN2: Within 500 meters of coast | IO2: Within 500 meters of coast | IP2: Within 500 meters of coast | IQ2: Within 500 meters of coast | IR2: Within 500 meters of coast | IS2: Within 500 meters of coast | IT2: Within 500 meters of coast | IU2: Within 500 meters of coast | IV2: Within 500 meters of coast | IW2: Within 500 meters of coast | IX2: Within 500 meters of coast | IY2: Within 500 meters of coast | IZ2: Within 500 meters of coast | JA2: Within 500 meters of coast | JB2: Within 500 meters of coast | JC2: Within 500 meters of coast | JD2: Within 500 meters of coast | JE2: Within 500 meters of coast | JF2: Within 500 meters of coast | JG2: Within 500 meters of coast | JH2: Within 500 meters of coast | JI2: Within 500 meters of coast | JJ2: Within 500 meters of coast | JK2: Within 500 meters of coast | JL2: Not within 500 meters of coast | JM2: Not within 500 meters of coast | JN2: Not within 500 meters of coast | JO2: Not within 500 meters of coast | JP2: Not within 500 meters of coast | JQ2: Not within 500 meters of coast | JR2: Not within 500 meters of coast | JS2: Not within 500 meters of coast | JT2: Not within 500 meters of coast | JU2: Not within 500 meters of coast | JV2: Not within 500 meters of coast | JW2: Not within 500 meters of coast | JX2: Not within 500 meters of coast | JY2: Not within 500 meters of coast | JZ2: Not within 500 meters of coast | KA2: Not within 500 meters of coast | KB2: Not within 500 meters of coast | KC2: Not within 500 meters of coast | KD2: Not within 500 meters of coast | KE2: Not within 500 meters of coast | KF2: Not within 500 meters of coast | KG2: Not within 500 meters of coast | KH2: Not within 500 meters of coast | KI2: Not within 500 meters of coast | KJ2: Not within 500 meters of coast | KK2: Not within 500 meters of coast | KL2: Not within 500 meters of coast | KM2: Not within 500 meters of coast | KN2: Not within 500 meters of coast | KO2: Not within 500 meters of coast | KP2: Within 500 meters of coast | KQ2: Within 500 meters of coast | KR2: Within 500 meters of coast | KS2: Within 500 meters of coast | KT2: Within 500 meters of coast | KU2: Within 500 meters of coast | KV2: Within 500 meters of coast | KW2: Within 500 meters of coast | KX2: Within 500 meters of coast | KY2: Within 500 meters of coast | KZ2: Within 500 meters of coast | LA2: Within 500 meters of coast | LB2: Within 500 meters of coast | LC2: Within 500 meters of coast | LD2: Within 500 meters of coast | LE2: Within 500 meters of coast | LF2: Within 500 meters of coast | LG2: Within 500 meters of coast | LH2: Within 500 meters of coast | LI2: Within 500 meters of coast | LJ2: Within 500 meters of coast | LK2: Within 500 meters of coast | LL2: Within 500 meters of coast | LM2: Within 500 meters of coast | LN2: Within 500 meters of coast | LO2: Within 500 meters of coast | LP2: Within 500 meters of coast | LQ2: Within 500 meters of coast | LR2: Within 500 meters of coast | LS2: Within 500 meters of coast | LT2: Not within 500 meters of coast | LU2: Not within 500 meters of coast | LV2: Not within 500 meters of coast | LW2: Not within 500 meters of coast | LX2: Not within 500 meters of coast | LY2: Not within 500 meters of coast | LZ2: Not within 500 meters of coast | MA2: Not within 500 meters of coast | MB2: Not within 500 meters of coast | MC2: Not within 500 meters of coast | MD2: Not within 500 meters of coast | ME2: Not within 500 meters of coast | MF2: Not within 500 meters of coast | MG2: Not within 500 meters of coast | MH2: Not within 500 meters of coast | MI2: Not within 500 meters of coast | MJ2: Not within 500 meters of coast | MK2: Not within 500 meters of coast | ML2: Not within 500 meters of coast | MM2: Not within 500 meters of coast | MN2: Not within 500 meters of coast | MO2: Not within 500 meters of coast | MP2: Not within 500 meters of coast | MQ2: Not within 500 meters of coast | MR2: Not within 500 meters of coast | MS2: Not within 500 meters of coast | MT2: Not within 500 meters of coast | MU2: Not within 500 meters of coast | MV2: Not within 500 meters of coast | MW2: Not within 500 meters of coast
A3: % Moisture in one kg of fuel | B3: 0.08 | C3: 0.08 | D3: 0.08 | E3: 0.08 | F3: 0.08 | G3: 0.08 | H3: 0.2 | I3: 0.2 | J3: 0.2 | K3: 0.2 | L3: 0.2 | M3: 0.2 | N3: 0.4 | O3: 0.4 | P3: 0.4 | Q3: 0.4 | R3: 0.4 | S3: 0.4 | T3: 0.6 | U3: 0.6 | V3: 0.6 | W3: 0.6 | X3: 0.6 | Y3: 0.6 | Z3: 0.85 | AA3: 0.85 | AB3: 0.85 | AC3: 0.85 | AD3: 0.85 | AE3: 0.85 | AF3: 0.08 | AG3: 0.08 | AH3: 0.08 | AI3: 0.08 | AJ3: 0.08 | AK3: 0.08 | AL3: 0.2 | AM3: 0.2 | AN3: 0.2 | AO3: 0.2 | AP3: 0.2 | AQ3: 0.2 | AR3: 0.4 | AS3: 0.4 | AT3: 0.4 | AU3: 0.4 | AV3: 0.4 | AW3: 0.4 | AX3: 0.6 | AY3: 0.6 | AZ3: 0.6 | BA3: 0.6 | BB3: 0.6 | BC3: 0.6 | BD3: 0.85 | BE3: 0.85 | BF3: 0.85 | BG3: 0.85 | BH3: 0.85 | BI3: 0.85 | BJ3: 0.08 | BK3: 0.08 | BL3: 0.08 | BM3: 0.08 | BN3: 0.08 | BO3: 0.08 | BP3: 0.2 | BQ3: 0.2 | BR3: 0.2 | BS3: 0.2 | BT3: 0.2 | BU3: 0.2 | BV3: 0.4 | BW3: 0.4 | BX3: 0.4 | BY3: 0.4 | BZ3: 0.4 | CA3: 0.4 | CB3: 0.6 | CC3: 0.6 | CD3: 0.6 | CE3: 0.6 | CF3: 0.6 | CG3: 0.6 | CH3: 0.85 | CI3: 0.85 | CJ3: 0.85 | CK3: 0.85 | CL3: 0.85 | CM3: 0.85 | CN3: 0.08 | CO3: 0.08 | CP3: 0.08 | CQ3: 0.08 | CR3: 0.08 | CS3: 0.08 | CT3: 0.2 | CU3: 0.2 | CV3: 0.2 | CW3: 0.2 | CX3: 0.2 | CY3: 0.2 | CZ3: 0.4 | DA3: 0.4 | DB3: 0.4 | DC3: 0.4 | DD3: 0.4 | DE3: 0.4 | DF3: 0.6 | DG3: 0.6 | DH3: 0.6 | DI3: 0.6 | DJ3: 0.6 | DK3: 0.6 | DL3: 0.85 | DM3: 0.85 | DN3: 0.85 | DO3: 0.85 | DP3: 0.85 | DQ3: 0.85 | DR3: 0.08 | DS3: 0.08 | DT3: 0.08 | DU3: 0.08 | DV3: 0.08 | DW3: 0.08 | DX3: 0.2 | DY3: 0.2 | DZ3: 0.2 | EA3: 0.2 | EB3: 0.2 | EC3: 0.2 | ED3: 0.4 | EE3: 0.4 | EF3: 0.4 | EG3: 0.4 | EH3: 0.4 | EI3: 0.4 | EJ3: 0.4 | EK3: 0.6 | EL3: 0.6 | EM3: 0.6 | EN3: 0.6 | EO3: 0.6 | EP3: 0.85 | EQ3: 0.85 | ER3: 0.85 | ES3: 0.85 | ET3: 0.85 | EU3: 0.85 | EV3: 0.08 | EW3: 0.08 | EX3: 0.08 | EY3: 0.08 | EZ3: 0.08 | FA3: 0.08 | FB3: 0.2 | FC3: 0.2 | FD3: 0.2 | FE3: 0.2 | FF3: 0.2 | FG3: 0.2 | FH3: 0.4 | FI3: 0.4 | FJ3: 0.4 | FK3: 0.4 | FL3: 0.4 | FM3: 0.4 | FN3: 0.6 | FO3: 0.6 | FP3: 0.6 | FQ3: 0.6 | FR3: 0.6 | FS3: 0.6 | FT3: 0.85 | FU3: 0.85 | FV3: 0.85 | FW3: 0.85 | FX3: 0.85 | FY3: 0.85 | FZ3: 0.08 | GA3: 0.08 | GB3: 0.08 | GC3: 0.08 | GD3: 0.08 | GE3: 0.08 | GF3: 0.2 | GG3: 0.2 | GH3: 0.2 | GI3: 0.2 | GJ3: 0.2 | GK3: 0.2 | GL3: 0.4 | GM3: 0.4 | GN3: 0.4 | GO3: 0.4 | GP3: 0.4 | GQ3: 0.4 | GR3: 0.6 | GS3: 0.6 | GT3: 0.6 | GU3: 0.6 | GV3: 0.6 | GW3: 0.6 | GX3: 0.85 | GY3: 0.85 | GZ3: 0.85 | HA3: 0.85 | HB3: 0.85 | HC3: 0.85 | HD3: 0.08 | HE3: 0.08 | HF3: 0.08 | HG3: 0.08 | HH3: 0.08 | HI3: 0.08 | HJ3: 0.2 | HK3: 0.2 | HL3: 0.2 | HM3: 0.2 | HN3: 0.2 | HO3: 0.2 | HP3: 0.4 | HQ3: 0.4 | HR3: 0.4 | HS3: 0.4 | HT3: 0.4 | HU3: 0.4 | HV3: 0.6 | HW3: 0.6 | HX3: 0.6 | HY3: 0.6 | HZ3: 0.6 | IA3: 0.6 | IB3: 0.85 | IC3: 0.85 | ID3: 0.85 | IE3: 0.85 | IF3: 0.85 | IG3: 0.85 | IH3: 0.08 | II3: 0.08 | IJ3: 0.08 | IK3: 0.08 | IL3: 0.08 | IM3: 0.08 | IN3: 0.2 | IO3: 0.2 | IP3: 0.2 | IQ3: 0.2 | IR3: 0.2 | IS3: 0.2 | IT3: 0.4 | IU3: 0.4 | IV3: 0.4 | IW3: 0.4 | IX3: 0.4 | IY3: 0.4 | IZ3: 0.6 | JA3: 0.6 | JB3: 0.6 | JC3: 0.6 | JD3: 0.6 | JE3: 0.6 | JF3: 0.85 | JG3: 0.85 | JH3: 0.85 | JI3: 0.85 | JJ3: 0.85 | JK3: 0.85 | JL3: 0.08 | JM3: 0.08 | JN3: 0.08 | JO3: 0.08 | JP3: 0.08 | JQ3: 0.08 | JR3: 0.2 | JS3: 0.2 | JT3: 0.2 | JU3: 0.2 | JV3: 0.2 | JW3: 0.2 | JX3: 0.4 | JY3: 0.4 | JZ3: 0.4 | KA3: 0.4 | KB3: 0.4 | KC3: 0.4 | KD3: 0.6 | KE3: 0.6 | KF3: 0.6 | KG3: 0.6 | KH3: 0.6 | KI3: 0.6 | KJ3: 0.85 | KK3: 0.85 | KL3: 0.85 | KM3: 0.85 | KN3: 0.85 | KO3: 0.85 | KP3: 0.08 | KQ3: 0.08 | KR3: 0.08 | KS3: 0.08 | KT3: 0.08 | KU3: 0.08 | KV3: 0.2 | KW3: 0.2 | KX3: 0.2 | KY3: 0.2 | KZ3: 0.2 | LA3: 0.2 | LB3: 0.4 | LC3: 0.4 | LD3: 0.4 | LE3: 0.4 | LF3: 0.4 | LG3: 0.4 | LH3: 0.6 | LI3: 0.6 | LJ3: 0.6 | LK3: 0.6 | LL3: 0.6 | LM3: 0.6 | LN3: 0.85 | LO3: 0.85 | LP3: 0.85 | LQ3: 0.85 | LR3: 0.85 | LS3: 0.85 | LT3: 0.08 | LU3: 0.08 | LV3: 0.08 | LW3: 0.08 | LX3: 0.08 | LY3: 0.08 | LZ3: 0.2 | MA3: 0.2 | MB3: 0.2 | MC3: 0.2 | MD3: 0.2 | ME3: 0.2 | MF3: 0.4 | MG3: 0.4 | MH3: 0.4 | MI3: 0.4 | MJ3: 0.4 | MK3: 0.4 | ML3: 0.6 | MM3: 0.6 | MN3: 0.6 | MO3: 0.6 | MP3: 0.6 | MQ3: 0.6 | MR3: 0.85 | MS3: 0.85 | MT3: 0.85 | MU3: 0.85 | MV3: 0.85 | MW3: 0.85
A4: Total Dissolved solid | B4: Soft (0-60 mg/L salts) | C4: Soft (0-60 mg/L salts) | D4: Moderate (61-120 mg/L salts) | E4: Moderate (61-120 mg/L salts) | F4: Hard (over 121 mg/L salts) | G4: Hard (over 121 mg/L salts) | H4: Soft (0-60 mg/L salts) | I4: Soft (0-60 mg/L salts) | J4: Moderate (61-120 mg/L salts) | K4: Moderate (61-120 mg/L salts) | L4: Hard (over 121 mg/L salts) | M4: Hard (over 121 mg/L salts) | N4: Soft (0-60 mg/L salts) | O4: Soft (0-60 mg/L salts) | P4: Moderate (61-120 mg/L salts) | Q4: Moderate (61-120 mg/L salts) | R4: Hard (over 121 mg/L salts) | S4: Hard (over 121 mg/L salts) | T4: Soft (0-60 mg/L salts) | U4: Soft (0-60 mg/L salts) | V4: Moderate (61-120 mg/L salts) | W4: Moderate (61-120 mg/L salts) | X4: Hard (over 121 mg/L salts) | Y4: Hard (over 121 mg/L salts) | Z4: Soft (0-60 mg/L salts) | AA4: Soft (0-60 mg/L salts) | AB4: Moderate (61-120 mg/L salts) | AC4: Moderate (61-120 mg/L salts) | AD4: Hard (over 121 mg/L salts) | AE4: Hard (over 121 mg/L salts) | AF4: Soft (0-60 mg/L salts) | AG4: Soft (0-60 mg/L salts) | AH4: Moderate (61-120 mg/L salts) | AI4: Moderate (61-120 mg/L salts) | AJ4: Hard (over 121 mg/L salts) | AK4: Hard (over 121 mg/L salts) | AL4: Soft (0-60 mg/L salts) | AM4: Soft (0-60 mg/L salts) | AN4: Moderate (61-120 mg/L salts) | AO4: Moderate (61-120 mg/L salts) | AP4: Hard (over 121 mg/L salts) | AQ4: Hard (over 121 mg/L salts) | AR4: Soft (0-60 mg/L salts) | AS4: Soft (0-60 mg/L salts) | AT4: Moderate (61-120 mg/L salts) | AU4: Moderate (61-120 mg/L salts) | AV4: Hard (over 121 mg/L salts) | AW4: Hard (over 121 mg/L salts) | AX4: Soft (0-60 mg/L salts) | AY4: Soft (0-60 mg/L salts) | AZ4: Moderate (61-120 mg/L salts) | BA4: Moderate (61-120 mg/L salts) | BB4: Hard (over 121 mg/L salts) | BC4: Hard (over 121 mg/L salts) | BD4: Soft (0-60 mg/L salts) | BE4: Soft (0-60 mg/L salts) | BF4: Moderate (61-120 mg/L salts) | BG4: Moderate (61-120 mg/L salts) | BH4: Hard (over 121 mg/L salts) | BI4: Hard (over 121 mg/L salts) | BJ4: Soft (0-60 mg/L salts) | BK4: Soft (0-60 mg/L salts) | BL4: Moderate (61-120 mg/L salts) | BM4: Moderate (61-120 mg/L salts) | BN4: Hard (over 121 mg/L salts) | BO4: Hard (over 121 mg/L salts) | BP4: Soft (0-60 mg/L salts) | BQ4: Soft (0-60 mg/L salts) | BR4: Moderate (61-120 mg/L salts) | BS4: Moderate (61-120 mg/L salts) | BT4: Hard (over 121 mg/L salts) | BU4: Hard (over 121 mg/L salts) | BV4: Soft (0-60 mg/L salts) | BW4: Soft (0-60 mg/L salts) | BX4: Moderate (61-120 mg/L salts) | BY4: Moderate (61-120 mg/L salts) | BZ4: Hard (over 121 mg/L salts) | CA4: Hard (over 121 mg/L salts) | CB4: Soft (0-60 mg/L salts) | CC4: Soft (0-60 mg/L salts) | CD4: Moderate (61-120 mg/L salts) | CE4: Moderate (61-120 mg/L salts) | CF4: Hard (over 121 mg/L salts) | CG4: Hard (over 121 mg/L salts) | CH4: Soft (0-60 mg/L salts) | CI4: Soft (0-60 mg/L salts) | CJ4: Moderate (61-120 mg/L salts) | CK4: Moderate (61-120 mg/L salts) | CL4: Hard (over 121 mg/L salts) | CM4: Hard (over 121 mg/L salts) | CN4: Soft (0-60 mg/L salts) | CO4: Soft (0-60 mg/L salts) | CP4: Moderate (61-120 mg/L salts) | CQ4: Moderate (61-120 mg/L salts) | CR4: Hard (over 121 mg/L salts) | CS4: Hard (over 121 mg/L salts) | CT4: Soft (0-60 mg/L salts) | CU4: Soft (0-60 mg/L salts) | CV4: Moderate (61-120 mg/L salts) | CW4: Moderate (61-120 mg/L salts) | CX4: Hard (over 121 mg/L salts) | CY4: Hard (over 121 mg/L salts) | CZ4: Soft (0-60 mg/L salts) | DA4: Soft (0-60 mg/L salts) | DB4: Moderate (61-120 mg/L salts) | DC4: Moderate (61-120 mg/L salts) | DD4: Hard (over 121 mg/L salts) | DE4: Hard (over 121 mg/L salts) | DF4: Soft (0-60 mg/L salts) | DG4: Soft (0-60 mg/L salts) | DH4: Moderate (61-120 mg/L salts) | DI4: Moderate (61-120 mg/L salts) | DJ4: Hard (over 121 mg/L salts) | DK4: Hard (over 121 mg/L salts) | DL4: Soft (0-60 mg/L salts) | DM4: Soft (0-60 mg/L salts) | DN4: Moderate (61-120 mg/L salts) | DO4: Moderate (61-120 mg/L salts) | DP4: Hard (over 121 mg/L salts) | DQ4: Hard (over 121 mg/L salts) | DR4: Soft (0-60 mg/L salts) | DS4: Soft (0-60 mg/L salts) | DT4: Moderate (61-120 mg/L salts) | DU4: Moderate (61-120 mg/L salts) | DV4: Hard (over 121 mg/L salts) | DW4: Hard (over 121 mg/L salts) | DX4: Soft (0-60 mg/L salts) | DY4: Soft (0-60 mg/L salts) | DZ4: Moderate (61-120 mg/L salts) | EA4: Moderate (61-120 mg/L salts) | EB4: Hard (over 121 mg/L salts) | EC4: Hard (over 121 mg/L salts) | ED4: Soft (0-60 mg/L salts) | EE4: Soft (0-60 mg/L salts) | EF4: Moderate (61-120 mg/L salts) | EG4: Moderate (61-120 mg/L salts) | EH4: Hard (over 121 mg/L salts) | EI4: Hard (over 121 mg/L salts) | EJ4: Soft (0-60 mg/L salts) | EK4: Soft (0-60 mg/L salts) | EL4: Moderate (61-120 mg/L salts) | EM4: Moderate (61-120 mg/L salts) | EN4: Hard (over 121 mg/L salts) | EO4: Hard (over 121 mg/L salts) | EP4: Soft (0-60 mg/L salts) | EQ4: Soft (0-60 mg/L salts) | ER4: Moderate (61-120 mg/L salts) | ES4: Moderate (61-120 mg/L salts) | ET4: Hard (over 121 mg/L salts) | EU4: Hard (over 121 mg/L salts) | EV4: Soft (0-60 mg/L salts) | EW4: Soft (0-60 mg/L salts) | EX4: Moderate (61-120 mg/L salts) | EY4: Moderate (61-120 mg/L salts) | EZ4: Hard (over 121 mg/L salts) | FA4: Hard (over 121 mg/L salts) | FB4: Soft (0-60 mg/L salts) | FC4: Soft (0-60 mg/L salts) | FD4: Moderate (61-120 mg/L salts) | FE4: Moderate (61-120 mg/L salts) | FF4: Hard (over 121 mg/L salts) | FG4: Hard (over 121 mg/L salts) | FH4: Soft (0-60 mg/L salts) | FI4: Soft (0-60 mg/L salts) | FJ4: Moderate (61-120 mg/L salts) | FK4: Moderate (61-120 mg/L salts) | FL4: Hard (over 121 mg/L salts) | FM4: Hard (over 121 mg/L salts) | FN4: Soft (0-60 mg/L salts) | FO4: Soft (0-60 mg/L salts) | FP4: Moderate (61-120 mg/L salts) | FQ4: Moderate (61-120 mg/L salts) | FR4: Hard (over 121 mg/L salts) | FS4: Hard (over 121 mg/L salts) | FT4: Soft (0-60 mg/L salts) | FU4: Soft (0-60 mg/L salts) | FV4: Moderate (61-120 mg/L salts) | FW4: Moderate (61-120 mg/L salts) | FX4: Hard (over 121 mg/L salts) | FY4: Hard (over 121 mg/L salts) | FZ4: Soft (0-60 mg/L salts) | GA4: Soft (0-60 mg/L salts) | GB4: Moderate (61-120 mg/L salts) | GC4: Moderate (61-120 mg/L salts) | GD4: Hard (over 121 mg/L salts) | GE4: Hard (over 121 mg/L salts) | GF4: Soft (0-60 mg/L salts) | GG4: Soft (0-60 mg/L salts) | GH4: Moderate (61-120 mg/L salts) | GI4: Moderate (61-120 mg/L salts) | GJ4: Hard (over 121 mg/L salts) | GK4: Hard (over 121 mg/L salts) | GL4: Soft (0-60 mg/L salts) | GM4: Soft (0-60 mg/L salts) | GN4: Moderate (61-120 mg/L salts) | GO4: Moderate (61-120 mg/L salts) | GP4: Hard (over 121 mg/L salts) | GQ4: Hard (over 121 mg/L salts) | GR4: Soft (0-60 mg/L salts) | GS4: Soft (0-60 mg/L salts) | GT4: Moderate (61-120 mg/L salts) | GU4: Moderate (61-120 mg/L salts) | GV4: Hard (over 121 mg/L salts) | GW4: Hard (over 121 mg/L salts) | GX4: Soft (0-60 mg/L salts) | GY4: Soft (0-60 mg/L salts) | GZ4: Moderate (61-120 mg/L salts) | HA4: Moderate (61-120 mg/L salts) | HB4: Hard (over 121 mg/L salts) | HC4: Hard (over 121 mg/L salts) | HD4: Soft (0-60 mg/L salts) | HE4: Soft (0-60 mg/L salts) | HF4: Moderate (61-120 mg/L salts) | HG4: Moderate (61-120 mg/L salts) | HH4: Hard (over 121 mg/L salts) | HI4: Hard (over 121 mg/L salts) | HJ4: Soft (0-60 mg/L salts) | HK4: Soft (0-60 mg/L salts) | HL4: Moderate (61-120 mg/L salts) | HM4: Moderate (61-120 mg/L salts) | HN4: Hard (over 121 mg/L salts) | HO4: Hard (over 121 mg/L salts) | HP4: Soft (0-60 mg/L salts) | HQ4: Soft (0-60 mg/L salts) | HR4: Moderate (61-120 mg/L salts) | HS4: Moderate (61-120 mg/L salts) | HT4: Hard (over 121 mg/L salts) | HU4: Hard (over 121 mg/L salts) | HV4: Soft (0-60 mg/L salts) | HW4: Soft (0-60 mg/L salts) | HX4: Moderate (61-120 mg/L salts) | HY4: Moderate (61-120 mg/L salts) | HZ4: Hard (over 121 mg/L salts) | IA4: Hard (over 121 mg/L salts) | IB4: Soft (0-60 mg/L salts) | IC4: Soft (0-60 mg/L salts) | ID4: Moderate (61-120 mg/L salts) | IE4: Moderate (61-120 mg/L salts) | IF4: Hard (over 121 mg/L salts) | IG4: Hard (over 121 mg/L salts) | IH4: Soft (0-60 mg/L salts) | II4: Soft (0-60 mg/L salts) | IJ4: Moderate (61-120 mg/L salts) | IK4: Moderate (61-120 mg/L salts) | IL4: Hard (over 121 mg/L salts) | IM4: Hard (over 121 mg/L salts) | IN4: Soft (0-60 mg/L salts) | IO4: Soft (0-60 mg/L salts) | IP4: Moderate (61-120 mg/L salts) | IQ4: Moderate (61-120 mg/L salts) | IR4: Hard (over 121 mg/L salts) | IS4: Hard (over 121 mg/L salts) | IT4: Soft (0-60 mg/L salts) | IU4: Soft (0-60 mg/L salts) | IV4: Moderate (61-120 mg/L salts) | IW4: Moderate (61-120 mg/L salts) | IX4: Hard (over 121 mg/L salts) | IY4: Hard (over 121 mg/L salts) | IZ4: Soft (0-60 mg/L salts) | JA4: Soft (0-60 mg/L salts) | JB4: Moderate (61-120 mg/L salts) | JC4: Moderate (61-120 mg/L salts) | JD4: Hard (over 121 mg/L salts) | JE4: Hard (over 121 mg/L salts) | JF4: Soft (0-60 mg/L salts) | JG4: Soft (0-60 mg/L salts) | JH4: Moderate (61-120 mg/L salts) | JI4: Moderate (61-120 mg/L salts) | JJ4: Hard (over 121 mg/L salts) | JK4: Hard (over 121 mg/L salts) | JL4: Soft (0-60 mg/L salts) | JM4: Soft (0-60 mg/L salts) | JN4: Moderate (61-120 mg/L salts) | JO4: Moderate (61-120 mg/L salts) | JP4: Hard (over 121 mg/L salts) | JQ4: Hard (over 121 mg/L salts) | JR4: Soft (0-60 mg/L salts) | JS4: Soft (0-60 mg/L salts) | JT4: Moderate (61-120 mg/L salts) | JU4: Moderate (61-120 mg/L salts) | JV4: Hard (over 121 mg/L salts) | JW4: Hard (over 121 mg/L salts) | JX4: Soft (0-60 mg/L salts) | JY4: Soft (0-60 mg/L salts) | JZ4: Moderate (61-120 mg/L salts) | KA4: Moderate (61-120 mg/L salts) | KB4: Hard (over 121 mg/L salts) | KC4: Hard (over 121 mg/L salts) | KD4: Soft (0-60 mg/L salts) | KE4: Soft (0-60 mg/L salts) | KF4: Moderate (61-120 mg/L salts) | KG4: Moderate (61-120 mg/L salts) | KH4: Hard (over 121 mg/L salts) | KI4: Hard (over 121 mg/L salts) | KJ4: Soft (0-60 mg/L salts) | KK4: Soft (0-60 mg/L salts) | KL4: Moderate (61-120 mg/L salts) | KM4: Moderate (61-120 mg/L salts) | KN4: Hard (over 121 mg/L salts) | KO4: Hard (over 121 mg/L salts) | KP4: Soft (0-60 mg/L salts) | KQ4: Soft (0-60 mg/L salts) | KR4: Moderate (61-120 mg/L salts) | KS4: Moderate (61-120 mg/L salts) | KT4: Hard (over 121 mg/L salts) | KU4: Hard (over 121 mg/L salts) | KV4: Soft (0-60 mg/L salts) | KW4: Soft (0-60 mg/L salts) | KX4: Moderate (61-120 mg/L salts) | KY4: Moderate (61-120 mg/L salts) | KZ4: Hard (over 121 mg/L salts) | LA4: Hard (over 121 mg/L salts) | LB4: Soft (0-60 mg/L salts) | LC4: Soft (0-60 mg/L salts) | LD4: Moderate (61-120 mg/L salts) | LE4: Moderate (61-120 mg/L salts) | LF4: Hard (over 121 mg/L salts) | LG4: Hard (over 121 mg/L salts) | LH4: Soft (0-60 mg/L salts) | LI4: Soft (0-60 mg/L salts) | LJ4: Moderate (61-120 mg/L salts) | LK4: Moderate (61-120 mg/L salts) | LL4: Hard (over 121 mg/L salts) | LM4: Hard (over 121 mg/L salts) | LN4: Soft (0-60 mg/L salts) | LO4: Soft (0-60 mg/L salts) | LP4: Moderate (61-120 mg/L salts) | LQ4: Moderate (61-120 mg/L salts) | LR4: Hard (over 121 mg/L salts) | LS4: Hard (over 121 mg/L salts) | LT4: Soft (0-60 mg/L salts) | LU4: Soft (0-60 mg/L salts) | LV4: Moderate (61-120 mg/L salts) | LW4: Moderate (61-120 mg/L salts) | LX4: Hard (over 121 mg/L salts) | LY4: Hard (over 121 mg/L salts) | LZ4: Soft (0-60 mg/L salts) | MA4: Soft (0-60 mg/L salts) | MB4: Moderate (61-120 mg/L salts) | MC4: Moderate (61-120 mg/L salts) | MD4: Hard (over 121 mg/L salts) | ME4: Hard (over 121 mg/L salts) | MF4: Soft (0-60 mg/L salts) | MG4: Soft (0-60 mg/L salts) | MH4: Moderate (61-120 mg/L salts) | MI4: Moderate (61-120 mg/L salts) | MJ4: Hard (over 121 mg/L salts) | MK4: Hard (over 121 mg/L salts) | ML4: Soft (0-60 mg/L salts) | MM4: Soft (0-60 mg/L salts) | MN4: Moderate (61-120 mg/L salts) | MO4: Moderate (61-120 mg/L salts) | MP4: Hard (over 121 mg/L salts) | MQ4: Hard (over 121 mg/L salts) | MR4: Soft (0-60 mg/L salts) | MS4: Soft (0-60 mg/L salts) | MT4: Moderate (61-120 mg/L salts) | MU4: Moderate (61-120 mg/L salts) | MV4: Hard (over 121 mg/L salts) | MW4: Hard (over 121 mg/L salts)
A5: Boiler Load | B5: 5 Days a week | C5: 7 Days a week | D5: 5 Days a week | E5: 7 Days a week | F5: 5 Days a week | G5: 7 Days a week | H5: 5 Days a week | I5: 7 Days a week | J5: 5 Days a week | K5: 7 Days a week | L5: 5 Days a week | M5: 7 Days a week | N5: 5 Days a week | O5: 7 Days a week | P5: 5 Days a week | Q5: 7 Days a week | R5: 5 Days a week | S5: 7 Days a week | T5: 5 Days a week | U5: 7 Days a week | V5: 5 Days a week | W5: 7 Days a week | X5: 5 Days a week | Y5: 7 Days a week | Z5: 5 Days a week | AA5: 7 Days a week | AB5: 5 Days a week | AC5: 7 Days a week | AD5: 5 Days a week | AE5: 7 Days a week | AF5: 5 Days a week | AG5: 7 Days a week | AH5: 5 Days a week | AI5: 7 Days a week | AJ5: 5 Days a week | AK5: 7 Days a week | AL5: 5 Days a week | AM5: 7 Days a week | AN5: 5 Days a week | AO5: 7 Days a week | AP5: 5 Days a week | AQ5: 7 Days a week | AR5: 5 Days a week | AS5: 7 Days a week | AT5: 5 Days a week | AU5: 7 Days a week | AV5: 5 Days a week | AW5: 7 Days a week | AX5: 5 Days a week | AY5: 7 Days a week | AZ5: 5 Days a week | BA5: 7 Days a week | BB5: 5 Days a week | BC5: 7 Days a week | BD5: 5 Days a week | BE5: 7 Days a week | BF5: 5 Days a week | BG5: 7 Days a week | BH5: 5 Days a week | BI5: 7 Days a week | BJ5: 5 Days a week | BK5: 7 Days a week | BL5: 5 Days a week | BM5: 7 Days a week | BN5: 5 Days a week | BO5: 7 Days a week | BP5: 5 Days a week | BQ5: 7 Days a week | BR5: 5 Days a week | BS5: 7 Days a week | BT5: 5 Days a week | BU5: 7 Days a week | BV5: 5 Days a week | BW5: 7 Days a week | BX5: 5 Days a week | BY5: 7 Days a week | BZ5: 5 Days a week | CA5: 7 Days a week | CB5: 5 Days a week | CC5: 7 Days a week | CD5: 5 Days a week | CE5: 7 Days a week | CF5: 5 Days a week | CG5: 7 Days a week | CH5: 5 Days a week | CI5: 7 Days a week | CJ5: 5 Days a week | CK5: 7 Days a week | CL5: 5 Days a week | CM5: 7 Days a week | CN5: 5 Days a week | CO5: 7 Days a week | CP5: 5 Days a week | CQ5: 7 Days a week | CR5: 5 Days a week | CS5: 7 Days a week | CT5: 5 Days a week | CU5: 7 Days a week | CV5: 5 Days a week | CW5: 7 Days a week | CX5: 5 Days a week | CY5: 7 Days a week | CZ5: 5 Days a week | DA5: 7 Days a week | DB5: 5 Days a week | DC5: 7 Days a week | DD5: 5 Days a week | DE5: 7 Days a week | DF5: 5 Days a week | DG5: 7 Days a week | DH5: 5 Days a week | DI5: 7 Days a week | DJ5: 5 Days a week | DK5: 7 Days a week | DL5: 5 Days a week | DM5: 7 Days a week | DN5: 5 Days a week | DO5: 7 Days a week | DP5: 5 Days a week | DQ5: 7 Days a week | DR5: 5 Days a week | DS5: 7 Days a week | DT5: 5 Days a week | DU5: 7 Days a week | DV5: 5 Days a week | DW5: 7 Days a week | DX5: 5 Days a week | DY5: 7 Days a week | DZ5: 5 Days a week | EA5: 7 Days a week | EB5: 5 Days a week | EC5: 7 Days a week | ED5: 5 Days a week | EE5: 7 Days a week | EF5: 5 Days a week | EG5: 7 Days a week | EH5: 5 Days a week | EI5: 7 Days a week | EJ5: 5 Days a week | EK5: 7 Days a week | EL5: 5 Days a week | EM5: 7 Days a week | EN5: 5 Days a week | EO5: 7 Days a week | EP5: 5 Days a week | EQ5: 7 Days a week | ER5: 5 Days a week | ES5: 7 Days a week | ET5: 5 Days a week | EU5: 7 Days a week | EV5: 5 Days a week | EW5: 7 Days a week | EX5: 5 Days a week | EY5: 7 Days a week | EZ5: 5 Days a week | FA5: 7 Days a week | FB5: 5 Days a week | FC5: 7 Days a week | FD5: 5 Days a week | FE5: 7 Days a week | FF5: 5 Days a week | FG5: 7 Days a week | FH5: 5 Days a week | FI5: 7 Days a week | FJ5: 5 Days a week | FK5: 7 Days a week | FL5: 5 Days a week | FM5: 7 Days a week | FN5: 5 Days a week | FO5: 7 Days a week | FP5: 5 Days a week | FQ5: 7 Days a week | FR5: 5 Days a week | FS5: 7 Days a week | FT5: 5 Days a week | FU5: 7 Days a week | FV5: 5 Days a week | FW5: 7 Days a week | FX5: 5 Days a week | FY5: 7 Days a week | FZ5: 5 Days a week | GA5: 7 Days a week | GB5: 5 Days a week | GC5: 7 Days a week | GD5: 5 Days a week | GE5: 7 Days a week | GF5: 5 Days a week | GG5: 7 Days a week | GH5: 5 Days a week | GI5: 7 Days a week | GJ5: 5 Days a week | GK5: 7 Days a week | GL5: 5 Days a week | GM5: 7 Days a week | GN5: 5 Days a week | GO5: 7 Days a week | GP5: 5 Days a week | GQ5: 7 Days a week | GR5: 5 Days a week | GS5: 7 Days a week | GT5: 5 Days a week | GU5: 7 Days a week | GV5: 5 Days a week | GW5: 7 Days a week | GX5: 5 Days a week | GY5: 7 Days a week | GZ5: 5 Days a week | HA5: 7 Days a week | HB5: 5 Days a week | HC5: 7 Days a week | HD5: 5 Days a week | HE5: 7 Days a week | HF5: 5 Days a week | HG5: 7 Days a week | HH5: 5 Days a week | HI5: 7 Days a week | HJ5: 5 Days a week | HK5: 7 Days a week | HL5: 5 Days a week | HM5: 7 Days a week | HN5: 5 Days a week | HO5: 7 Days a week | HP5: 5 Days a week | HQ5: 7 Days a week | HR5: 5 Days a week | HS5: 7 Days a week | HT5: 5 Days a week | HU5: 7 Days a week | HV5: 5 Days a week | HW5: 7 Days a week | HX5: 5 Days a week | HY5: 7 Days a week | HZ5: 5 Days a week | IA5: 7 Days a week | IB5: 5 Days a week | IC5: 7 Days a week | ID5: 5 Days a week | IE5: 7 Days a week | IF5: 5 Days a week | IG5: 7 Days a week | IH5: 5 Days a week | II5: 7 Days a week | IJ5: 5 Days a week | IK5: 7 Days a week | IL5: 5 Days a week | IM5: 7 Days a week | IN5: 5 Days a week | IO5: 7 Days a week | IP5: 5 Days a week | IQ5: 7 Days a week | IR5: 5 Days a week | IS5: 7 Days a week | IT5: 5 Days a week | IU5: 7 Days a week | IV5: 5 Days a week | IW5: 7 Days a week | IX5: 5 Days a week | IY5: 7 Days a week | IZ5: 5 Days a week | JA5: 7 Days a week | JB5: 5 Days a week | JC5: 7 Days a week | JD5: 5 Days a week | JE5: 7 Days a week | JF5: 5 Days a week | JG5: 7 Days a week | JH5: 5 Days a week | JI5: 7 Days a week | JJ5: 5 Days a week | JK5: 7 Days a week | JL5: 5 Days a week | JM5: 7 Days a week | JN5: 5 Days a week | JO5: 7 Days a week | JP5: 5 Days a week | JQ5: 7 Days a week | JR5: 5 Days a week | JS5: 7 Days a week | JT5: 5 Days a week | JU5: 7 Days a week | JV5: 5 Days a week | JW5: 7 Days a week | JX5: 5 Days a week | JY5: 7 Days a week | JZ5: 5 Days a week | KA5: 7 Days a week | KB5: 5 Days a week | KC5: 7 Days a week | KD5: 5 Days a week | KE5: 7 Days a week | KF5: 5 Days a week | KG5: 7 Days a week | KH5: 5 Days a week | KI5: 7 Days a week | KJ5: 5 Days a week | KK5: 7 Days a week | KL5: 5 Days a week | KM5: 7 Days a week | KN5: 5 Days a week | KO5: 7 Days a week | KP5: 5 Days a week | KQ5: 7 Days a week | KR5: 5 Days a week | KS5: 7 Days a week | KT5: 5 Days a week | KU5: 7 Days a week | KV5: 5 Days a week | KW5: 7 Days a week | KX5: 5 Days a week | KY5: 7 Days a week | KZ5: 5 Days a week | LA5: 7 Days a week | LB5: 5 Days a week | LC5: 7 Days a week | LD5: 5 Days a week | LE5: 7 Days a week | LF5: 5 Days a week | LG5: 7 Days a week | LH5: 5 Days a week | LI5: 7 Days a week | LJ5: 5 Days a week | LK5: 7 Days a week | LL5: 5 Days a week | LM5: 7 Days a week | LN5: 5 Days a week | LO5: 7 Days a week | LP5: 5 Days a week | LQ5: 7 Days a week | LR5: 5 Days a week | LS5: 7 Days a week | LT5: 5 Days a week | LU5: 7 Days a week | LV5: 5 Days a week | LW5: 7 Days a week | LX5: 5 Days a week | LY5: 7 Days a week | LZ5: 5 Days a week | MA5: 7 Days a week | MB5: 5 Days a week | MC5: 7 Days a week | MD5: 5 Days a week | ME5: 7 Days a week | MF5: 5 Days a week | MG5: 7 Days a week | MH5: 5 Days a week | MI5: 7 Days a week | MJ5: 5 Days a week | MK5: 7 Days a week | ML5: 5 Days a week | MM5: 7 Days a week | MN5: 5 Days a week | MO5: 7 Days a week | MP5: 5 Days a week | MQ5: 7 Days a week | MR5: 5 Days a week | MS5: 7 Days a week | MT5: 5 Days a week | MU5: 7 Days a week | MV5: 5 Days a week | MW5: 7 Days a week
A7: 1 | B7: 83.6907375 | C7: 83.68043871 | D7: 83.67006348 | E7: 83.63993709 | F7: 83.62541998 | G7: 83.62283656 | H7: 83.6094875 | I7: 83.59918871 | J7: 83.58881348 | K7: 83.56754922 | L7: 83.55868709 | M7: 83.54158656 | N7: 83.5282375 | O7: 83.51793871 | P7: 83.51708665 | Q7: 83.50756348 | R7: 83.48670999 | S7: 83.48629922 | T7: 83.47743709 | U7: 83.47718683 | V7: 83.4658399 | W7: 83.46033656 | X7: 83.45210817 | Y7: 83.42995991 | Z7: 83.40875331 | AA7: 83.40504922 | AB7: 83.39618709 | AC7: 83.39593683 | AD7: 83.37837666 | AE7: 83.36205897 | AF7: 84.49079922 | AG7: 84.40954922 | AH7: 84.32829922 | AI7: 84.24704922 | AJ7: 84.20861416 | AK7: 84.19831536 | AL7: 84.16579922 | AM7: 84.13542256 | AN7: 84.12736416 | AO7: 84.11706536 | AP7: 84.05417256 | AQ7: 84.04611416 | AR7: 84.03581536 | AS7: 83.97292256 | AT7: 83.96486416 | AU7: 83.95456536 | AV7: 83.89167256 | AW7: 83.88361416 | AX7: 83.87331536 | AY7: 83.8532375 | AZ7: 83.84293871 | BA7: 83.84208665 | BB7: 83.83256348 | BC7: 83.81042256 | BD7: 83.78533656 | BE7: 83.7719875 | BF7: 83.76168871 | BG7: 83.75131348 | BH7: 83.73375331 | BI7: 83.70408656 | BJ7: 83.12143566 | BK7: 83.11830897 | BL7: 83.11464856 | BM7: 83.11256536 | BN7: 83.11046324 | BO7: 83.10936416 | BP7: 83.10495991 | BQ7: 83.09673152 | BR7: 83.07987391 | BS7: 83.05337666 | BT7: 83.04967256 | BU7: 83.04081043 | BV7: 83.04018566 | BW7: 83.03705897 | BX7: 83.03339856 | BY7: 83.03250656 | BZ7: 83.03131536 | CA7: 83.02811416 | CB7: 83.01877484 | CC7: 83.00668231 | CD7: 83.00212991 | CE7: 82.99862391 | CF7: 82.98839818 | CG7: 82.96842256 | CH7: 82.964439 | CI7: 82.95956043 | CJ7: 82.95893566 | CK7: 82.95214856 | CL7: 82.95006536 | CM7: 82.94686416 | CN7: 83.35750656 | CO7: 83.34870991 | CP7: 83.34377484 | CQ7: 83.32379922 | CR7: 83.31493709 | CS7: 83.31468683 | CT7: 83.28456043 | CU7: 83.28393566 | CV7: 83.28080897 | CW7: 83.27506536 | CX7: 83.27186416 | CY7: 83.27004333 | CZ7: 83.26745991 | DA7: 83.24917323 | DB7: 83.24254922 | DC7: 83.2354415 | DD7: 83.23343683 | DE7: 83.21217256 | DF7: 83.20331043 | DG7: 83.20268566 | DH7: 83.19955897 | DI7: 83.19381536 | DJ7: 83.19061416 | DK7: 83.18620991 | DL7: 83.16170999 | DM7: 83.15218683 | DN7: 83.1408399 | DO7: 83.13092256 | DP7: 83.12710817 | DQ7: 83.12206043 | DR7: 82.74708656 | DS7: 82.73530785 | DT7: 82.73331348 | DU7: 82.72449725 | DV7: 82.71668709 | DW7: 82.7076038 | DX7: 82.68480901 | DY7: 82.6848031 | DZ7: 82.68168231 | EA7: 82.67802191 | EB7: 82.67712991 | EC7: 82.67593871 | ED7: 82.6727375 | EE7: 82.66583656 | EF7: 82.66339818 | EG7: 82.65405785 | EH7: 82.65206348 | EI7: 82.64324725 | EJ7: 82.639439 | EK7: 82.63543709 | EL7: 82.61108665 | EM7: 82.60906234 | EN7: 82.60355901 | EO7: 82.59927047 | EP7: 82.59677191 | EQ7: 82.59468871 | ER7: 82.5914875 | ES7: 82.58458656 | ET7: 82.57646977 | EU7: 82.57280785 | EV7: 82.92855901 | EW7: 82.92543231 | EX7: 82.91968871 | EY7: 82.91737391 | EZ7: 82.9164875 | FA7: 82.90146977 | FB7: 82.89581348 | FC7: 82.89379658 | FD7: 82.88717256 | FE7: 82.88006485 | FF7: 82.87089856 | FG7: 82.85610566 | FH7: 82.84730901 | FI7: 82.84418231 | FJ7: 82.83843871 | FK7: 82.83612391 | FL7: 82.8352375 | FM7: 82.82833656 | FN7: 82.81456348 | FO7: 82.79313644 | FP7: 82.78964856 | FQ7: 82.78546324 | FR7: 82.77173152 | FS7: 82.76605901 | FT7: 82.76293231 | FU7: 82.75927191 | FV7: 82.75718871 | FW7: 82.75487391 | FX7: 82.7539875 | FY7: 82.74777233 | FZ7: 82.37793683 | GA7: 82.37441125 | GB7: 82.36955597 | GC7: 82.36131043 | GD7: 82.35222715 | GE7: 82.33709965 | GF7: 82.32942645 | GG7: 82.32693566 | GH7: 82.32671577 | GI7: 82.31045991 | GJ7: 82.30355897 | GK7: 82.29868119 | GL7: 82.29668683 | GM7: 82.29316125 | GN7: 82.28830597 | GO7: 82.28608665 | GP7: 82.28406234 | GQ7: 82.28006043 | GR7: 82.27427047 | GS7: 82.25570999 | GT7: 82.24568566 | GU7: 82.24546577 | GV7: 82.24389382 | GW7: 82.23293524 | GX7: 82.22920991 | GY7: 82.22876631 | GZ7: 82.22230897 | HA7: 82.22110817 | HB7: 82.22109312 | HC7: 82.2196615 | HD7: 82.57081348 | HE7: 82.56199725 | HF7: 82.55418709 | HG7: 82.54609312 | HH7: 82.5446615 | HI7: 82.54043683 | HJ7: 82.53110566 | HK7: 82.51552191 | HL7: 82.50333656 | HM7: 82.50275331 | HN7: 82.50072901 | HO7: 82.49155785 | HP7: 82.49093714 | HQ7: 82.48074725 | HR7: 82.47295991 | HS7: 82.47293709 | HT7: 82.46813644 | HU7: 82.45918683 | HV7: 82.43775978 | HW7: 82.43427191 | HX7: 82.41030785 | HY7: 82.39949725 | HZ7: 82.39441998 | IA7: 82.39239568 | IB7: 82.39170991 | IC7: 82.39168709 | ID7: 82.38480897 | IE7: 82.3826038 | IF7: 82.3821615 | IG7: 82.37993119 | IH7: 82.06967836 | II7: 82.05980897 | IJ7: 82.0571615 | IK7: 82.05493119 | IL7: 82.04941125 | IM7: 82.04455597 | IN7: 82.03904333 | IO7: 82.03631043 | IP7: 82.02943231 | IQ7: 82.02879922 | IR7: 82.02722715 | IS7: 82.02678485 | IT7: 82.0190346 | IU7: 82.01626857 | IV7: 82.01539856 | IW7: 82.01417931 | IX7: 82.01209965 | IY7: 82.00787391 | IZ7: 82.0072191 | JA7: 82.0044415 | JB7: 82.00193566 | JC7: 82.00171577 | JD7: 82.00017323 | JE7: 81.98842836 | JF7: 81.98172299 | JG7: 81.98029137 | JH7: 81.97155901 | JI7: 81.97133911 | JJ7: 81.9608529 | JK7: 81.95969378 | JL7: 82.21743119 | JM7: 82.2168399 | JN7: 82.21543683 | JO7: 82.21191125 | JP7: 82.20705597 | JQ7: 82.19881043 | JR7: 82.18928485 | JS7: 82.17789856 | JT7: 82.17775331 | JU7: 82.17572901 | JV7: 82.16443566 | JW7: 82.16421577 | JX7: 82.15092836 | JY7: 82.14795991 | JZ7: 82.14737666 | KA7: 82.14105897 | KB7: 82.13618119 | KC7: 82.13556048 | KD7: 82.13066125 | KE7: 82.12580597 | KF7: 82.12460191 | KG7: 82.12043298 | KH7: 82.11756043 | KI7: 82.11277484 | KJ7: 82.11275978 | KK7: 82.10850656 | KL7: 82.09664856 | KM7: 82.08912391 | KN7: 82.08318566 | KO7: 82.08296577 | KP7: 81.82252191 | KQ7: 81.82237666 | KR7: 81.81779137 | KS7: 81.80905901 | KT7: 81.80883911 | KU7: 81.79960191 | KV7: 81.79719378 | KW7: 81.79555171 | KX7: 81.79055243 | KY7: 81.78777484 | KZ7: 81.78568231 | LA7: 81.78504922 | LB7: 81.78350656 | LC7: 81.7752846 | LD7: 81.77450285 | LE7: 81.77042931 | LF7: 81.76922525 | LG7: 81.76505633 | LH7: 81.76412391 | LI7: 81.75805785 | LJ7: 81.75739818 | LK7: 81.75312991 | LL7: 81.74418623 | LM7: 81.74127191 | LN7: 81.73631536 | LO7: 81.73374725 | LP7: 81.72780901 | LQ7: 81.72758911 | LR7: 81.715439 | LS7: 81.71430171 | LT7: 81.94818231 | LU7: 81.94754922 | LV7: 81.9377846 | LW7: 81.93414856 | LX7: 81.93292931 | LY7: 81.93070999 | LZ7: 81.92662391 | MA7: 81.91889382 | MB7: 81.90793524 | MC7: 81.90717836 | MD7: 81.90376631 | ME7: 81.89888577 | MF7: 81.89610817 | MG7: 81.8946615 | MH7: 81.8918399 | MI7: 81.89030901 | MJ7: 81.89008911 | MK7: 81.87755859 | ML7: 81.87338966 | MM7: 81.86693231 | MN7: 81.86629922 | MO7: 81.86573152 | MP7: 81.86428485 | MQ7: 81.86146324 | MR7: 81.8565346 | MS7: 81.85289856 | MT7: 81.85251956 | MU7: 81.85167931 | MV7: 81.84537391 | MW7: 81.82592836
A8: 2 | B8: 82.01692275 | C8: 82.00682994 | D8: 81.99666221 | E8: 81.96713835 | F8: 81.95291158 | G8: 81.95037983 | H8: 81.93729775 | I8: 81.92720494 | J8: 81.91703721 | K8: 81.89619824 | L8: 81.88751335 | M8: 81.87075483 | N8: 81.85767275 | O8: 81.84757994 | P8: 81.84674492 | Q8: 81.83741221 | R8: 81.81697579 | S8: 81.81657324 | T8: 81.80788835 | U8: 81.80764309 | V8: 81.7965231 | W8: 81.79112983 | X8: 81.78306601 | Y8: 81.76136071 | Z8: 81.74057824 | AA8: 81.73694824 | AB8: 81.72826335 | AC8: 81.72801809 | AD8: 81.71080913 | AE8: 81.69481779 | AF8: 82.80098324 | AG8: 82.72135824 | AH8: 82.64173324 | AI8: 82.56210824 | AJ8: 82.52444188 | AK8: 82.51434905 | AL8: 82.48248324 | AM8: 82.45271411 | AN8: 82.44481688 | AO8: 82.43472405 | AP8: 82.37308911 | AQ8: 82.36519188 | AR8: 82.35509905 | AS8: 82.29346411 | AT8: 82.28556688 | AU8: 82.27547405 | AV8: 82.21383911 | AW8: 82.20594188 | AX8: 82.19584905 | AY8: 82.17617275 | AZ8: 82.16607994 | BA8: 82.16524492 | BB8: 82.15591221 | BC8: 82.13421411 | BD8: 82.10962983 | BE8: 82.09654775 | BF8: 82.08645494 | BG8: 82.07628721 | BH8: 82.05907824 | BI8: 82.03000483 | BJ8: 81.45900695 | BK8: 81.45594279 | BL8: 81.45235559 | BM8: 81.45031405 | BN8: 81.44825398 | BO8: 81.44717688 | BP8: 81.44286071 | BQ8: 81.43479689 | BR8: 81.41827643 | BS8: 81.39230913 | BT8: 81.38867911 | BU8: 81.37999422 | BV8: 81.37938195 | BW8: 81.37631779 | BX8: 81.37273059 | BY8: 81.37185643 | BZ8: 81.37068905 | CA8: 81.36755188 | CB8: 81.35839934 | CC8: 81.34654866 | CD8: 81.34208731 | CE8: 81.33865143 | CF8: 81.32863022 | CG8: 81.30905411 | CH8: 81.30515022 | CI8: 81.30036922 | CJ8: 81.29975695 | CK8: 81.29310559 | CL8: 81.29106405 | CM8: 81.28792688 | CN8: 81.69035643 | CO8: 81.68173571 | CP8: 81.67689934 | CQ8: 81.65732324 | CR8: 81.64863835 | CS8: 81.64839309 | CT8: 81.61886922 | CU8: 81.61825695 | CV8: 81.61519279 | CW8: 81.60956405 | CX8: 81.60642688 | CY8: 81.60464246 | CZ8: 81.60211071 | DA8: 81.58418977 | DB8: 81.57769824 | DC8: 81.57073267 | DD8: 81.56876809 | DE8: 81.54792911 | DF8: 81.53924422 | DG8: 81.53863195 | DH8: 81.53556779 | DI8: 81.52993905 | DJ8: 81.52680188 | DK8: 81.52248571 | DL8: 81.49847579 | DM8: 81.48914309 | DN8: 81.4780231 | DO8: 81.46830411 | DP8: 81.46456601 | DQ8: 81.45961922 | DR8: 81.09214483 | DS8: 81.08060169 | DT8: 81.07864721 | DU8: 81.0700073 | DV8: 81.06235335 | DW8: 81.05345172 | DX8: 81.03111283 | DY8: 81.03110704 | DZ8: 81.02804866 | EA8: 81.02446147 | EB8: 81.02358731 | EC8: 81.02241994 | ED8: 81.01928275 | EE8: 81.01251983 | EF8: 81.01013022 | EG8: 81.00097669 | EH8: 80.99902221 | EI8: 80.99038231 | EJ8: 80.98665022 | EK8: 80.98272835 | EL8: 80.95886492 | EM8: 80.95688109 | EN8: 80.95148783 | EO8: 80.94728506 | EP8: 80.94483647 | EQ8: 80.94279494 | ER8: 80.93965775 | ES8: 80.93289483 | ET8: 80.92494037 | EU8: 80.92135169 | EV8: 81.26998783 | EW8: 81.26692366 | EX8: 81.26129494 | EY8: 81.25902643 | EZ8: 81.25815775 | FA8: 81.24344037 | FB8: 81.23789721 | FC8: 81.23592065 | FD8: 81.22942911 | FE8: 81.22246355 | FF8: 81.21348059 | FG8: 81.19898355 | FH8: 81.19036283 | FI8: 81.18729866 | FJ8: 81.18166994 | FK8: 81.17940143 | FL8: 81.17853275 | FM8: 81.17176983 | FN8: 81.15827221 | FO8: 81.13727371 | FP8: 81.13385559 | FQ8: 81.12975398 | FR8: 81.11629689 | FS8: 81.11073783 | FT8: 81.10767366 | FU8: 81.10408647 | FV8: 81.10204494 | FW8: 81.09977643 | FX8: 81.09890775 | FY8: 81.09281688 | FZ8: 80.73037809 | GA8: 80.72692302 | GB8: 80.72216485 | GC8: 80.71408422 | GD8: 80.70518261 | GE8: 80.69035766 | GF8: 80.68283792 | GG8: 80.68039695 | GH8: 80.68018145 | GI8: 80.66425071 | GJ8: 80.65748779 | GK8: 80.65270757 | GL8: 80.65075309 | GM8: 80.64729802 | GN8: 80.64253985 | GO8: 80.64036492 | GP8: 80.63838109 | GQ8: 80.63445922 | GR8: 80.62878506 | GS8: 80.61059579 | GT8: 80.60077195 | GU8: 80.60055645 | GV8: 80.59901594 | GW8: 80.58827654 | GX8: 80.58462571 | GY8: 80.58419098 | GZ8: 80.57786279 | HA8: 80.57668601 | HB8: 80.57667126 | HC8: 80.57526827 | HD8: 80.91939721 | HE8: 80.91075731 | HF8: 80.90310335 | HG8: 80.89517126 | HH8: 80.89376827 | HI8: 80.88962809 | HJ8: 80.88048355 | HK8: 80.86521147 | HL8: 80.85326983 | HM8: 80.85269824 | HN8: 80.85071443 | HO8: 80.84172669 | HP8: 80.8411184 | HQ8: 80.8311323 | HR8: 80.82350071 | HS8: 80.82347835 | HT8: 80.81877371 | HU8: 80.81000309 | HV8: 80.78900458 | HW8: 80.78558647 | HX8: 80.76210169 | HY8: 80.75150731 | HZ8: 80.74653158 | IA8: 80.74454777 | IB8: 80.74387571 | IC8: 80.74385335 | ID8: 80.73711279 | IE8: 80.73495172 | IF8: 80.73451827 | IG8: 80.73233257 | IH8: 80.42828479 | II8: 80.41861279 | IJ8: 80.41601827 | IK8: 80.41383257 | IL8: 80.40842303 | IM8: 80.40366485 | IN8: 80.39826246 | IO8: 80.39558422 | IP8: 80.38884366 | IQ8: 80.38822324 | IR8: 80.38668261 | IS8: 80.38624915 | IT8: 80.37865391 | IU8: 80.3759432 | IV8: 80.37509059 | IW8: 80.37389572 | IX8: 80.37185766 | IY8: 80.36771643 | IZ8: 80.36707472 | JA8: 80.36435267 | JB8: 80.36189695 | JC8: 80.36168145 | JD8: 80.36016977 | JE8: 80.34865979 | JF8: 80.34208853 | JG8: 80.34068554 | JH8: 80.33212783 | JI8: 80.33191233 | JJ8: 80.32163584 | JK8: 80.3204999 | JL8: 80.57308257 | JM8: 80.5725031 | JN8: 80.57112809 | JO8: 80.56767303 | JP8: 80.56291485 | JQ8: 80.55483422 | JR8: 80.54549915 | JS8: 80.53434059 | JT8: 80.53419824 | JU8: 80.53221443 | JV8: 80.52114695 | JW8: 80.52093145 | JX8: 80.50790979 | JY8: 80.50500071 | JZ8: 80.50442913 | KA8: 80.49823779 | KB8: 80.49345757 | KC8: 80.49284927 | KD8: 80.48804802 | KE8: 80.48328985 | KF8: 80.48210987 | KG8: 80.47802432 | KH8: 80.47520922 | KI8: 80.47051934 | KJ8: 80.47050458 | KK8: 80.46633643 | KL8: 80.45471559 | KM8: 80.44734143 | KN8: 80.44152195 | KO8: 80.44130645 | KP8: 80.18607147 | KQ8: 80.18592913 | KR8: 80.18143554 | KS8: 80.17287783 | KT8: 80.17266233 | KU8: 80.16360987 | KV8: 80.1612499 | KW8: 80.15964068 | KX8: 80.15474138 | KY8: 80.15201934 | KZ8: 80.14996866 | LA8: 80.14934824 | LB8: 80.14783643 | LC8: 80.13977891 | LD8: 80.13901279 | LE8: 80.13502072 | LF8: 80.13384075 | LG8: 80.1297552 | LH8: 80.12884143 | LI8: 80.12289669 | LJ8: 80.12225022 | LK8: 80.11806731 | LL8: 80.10930251 | LM8: 80.10644647 | LN8: 80.10158905 | LO8: 80.0990723 | LP8: 80.09325283 | LQ8: 80.09303733 | LR8: 80.08113022 | LS8: 80.08001568 | LT8: 80.30921866 | LU8: 80.30859824 | LV8: 80.29902891 | LW8: 80.29546559 | LX8: 80.29427072 | LY8: 80.29209579 | LZ8: 80.28809143 | MA8: 80.28051594 | MB8: 80.26977654 | MC8: 80.26903479 | MD8: 80.26569098 | ME8: 80.26090805 | MF8: 80.25818601 | MG8: 80.25676827 | MH8: 80.2540031 | MI8: 80.25250283 | MJ8: 80.25228733 | MK8: 80.24000742 | ML8: 80.23592187 | MM8: 80.22959366 | MN8: 80.22897324 | MO8: 80.22841689 | MP8: 80.22699915 | MQ8: 80.22423398 | MR8: 80.21940391 | MS8: 80.21584059 | MT8: 80.21546917 | MU8: 80.21464572 | MV8: 80.20846643 | MW8: 80.18940979
A9: 3 | B9: 80.3765843 | C9: 80.36669334 | D9: 80.35672897 | E9: 80.32779558 | F9: 80.31385335 | G9: 80.31137223 | H9: 80.2985518 | I9: 80.28866084 | J9: 80.27869647 | K9: 80.25827427 | L9: 80.24976308 | M9: 80.23333973 | N9: 80.2205193 | O9: 80.21062834 | P9: 80.20981002 | Q9: 80.20066397 | R9: 80.18063627 | S9: 80.18024177 | T9: 80.17173058 | U9: 80.17149023 | V9: 80.16059264 | W9: 80.15530723 | X9: 80.14740469 | Y9: 80.1261335 | Z9: 80.10576668 | AA9: 80.10220927 | AB9: 80.09369808 | AC9: 80.09345773 | AD9: 80.07659294 | AE9: 80.06092143 | AF9: 81.14496357 | AG9: 81.06693107 | AH9: 80.98889857 | AI9: 80.91086607 | AJ9: 80.87395304 | AK9: 80.86406207 | AL9: 80.83283357 | AM9: 80.80365983 | AN9: 80.79592054 | AO9: 80.78602957 | AP9: 80.72562733 | AQ9: 80.71788804 | AR9: 80.70799707 | AS9: 80.64759483 | AT9: 80.63985554 | AU9: 80.62996457 | AV9: 80.56956233 | AW9: 80.56182304 | AX9: 80.55193207 | AY9: 80.5326493 | AZ9: 80.52275834 | BA9: 80.52194002 | BB9: 80.51279397 | BC9: 80.49152983 | BD9: 80.46743723 | BE9: 80.45461679 | BF9: 80.44472584 | BG9: 80.43476147 | BH9: 80.41789668 | BI9: 80.38940473 | BJ9: 79.82982681 | BK9: 79.82682393 | BL9: 79.82330848 | BM9: 79.82130777 | BN9: 79.8192889 | BO9: 79.81823334 | BP9: 79.8140035 | BQ9: 79.80610095 | BR9: 79.7899109 | BS9: 79.76446294 | BT9: 79.76090553 | BU9: 79.75239434 | BV9: 79.75179431 | BW9: 79.74879143 | BX9: 79.74527598 | BY9: 79.7444193 | BZ9: 79.74327527 | CA9: 79.74020084 | CB9: 79.73123136 | CC9: 79.71961769 | CD9: 79.71524557 | CE9: 79.7118784 | CF9: 79.70205761 | CG9: 79.68287303 | CH9: 79.67904722 | CI9: 79.67436184 | CJ9: 79.67376181 | CK9: 79.66724348 | CL9: 79.66524277 | CM9: 79.66216834 | CN9: 80.0565493 | CO9: 80.048101 | CP9: 80.04336136 | CQ9: 80.02417677 | CR9: 80.01566558 | CS9: 80.01542523 | CT9: 79.98649184 | CU9: 79.98589181 | CV9: 79.98288893 | CW9: 79.97737277 | CX9: 79.97429834 | CY9: 79.97254961 | CZ9: 79.9700685 | DA9: 79.95250597 | DB9: 79.94614427 | DC9: 79.93931802 | DD9: 79.93739273 | DE9: 79.91697053 | DF9: 79.90845934 | DG9: 79.90785931 | DH9: 79.90485643 | DI9: 79.89934027 | DJ9: 79.89626584 | DK9: 79.892036 | DL9: 79.86850627 | DM9: 79.85936023 | DN9: 79.84846264 | DO9: 79.83893803 | DP9: 79.83527469 | DQ9: 79.83042684 | DR9: 79.47030193 | DS9: 79.45898966 | DT9: 79.45707427 | DU9: 79.44860716 | DV9: 79.44110628 | DW9: 79.43238269 | DX9: 79.41049057 | DY9: 79.4104849 | DZ9: 79.40748769 | EA9: 79.40397224 | EB9: 79.40311557 | EC9: 79.40197154 | ED9: 79.39889709 | EE9: 79.39226943 | EF9: 79.38992761 | EG9: 79.38095716 | EH9: 79.37904177 | EI9: 79.37057466 | EJ9: 79.36691722 | EK9: 79.36307378 | EL9: 79.33968762 | EM9: 79.33774347 | EN9: 79.33245807 | EO9: 79.32833936 | EP9: 79.32593974 | EQ9: 79.32393904 | ER9: 79.3208646 | ES9: 79.31423693 | ET9: 79.30644157 | EU9: 79.30292466 | EV9: 79.64458807 | EW9: 79.64158519 | EX9: 79.63606904 | EY9: 79.6338459 | EZ9: 79.63299459 | FA9: 79.61857157 | FB9: 79.61313927 | FC9: 79.61120224 | FD9: 79.60484053 | FE9: 79.59801428 | FF9: 79.58921098 | FG9: 79.57500388 | FH9: 79.56655557 | FI9: 79.56355269 | FJ9: 79.55803654 | FK9: 79.5558134 | FL9: 79.55496209 | FM9: 79.54833443 | FN9: 79.53510677 | FO9: 79.51452824 | FP9: 79.51117848 | FQ9: 79.5071589 | FR9: 79.49397095 | FS9: 79.48852307 | FT9: 79.48552019 | FU9: 79.48200474 | FV9: 79.48000404 | FW9: 79.4777809 | FX9: 79.47692959 | FY9: 79.47096055 | FZ9: 79.11577053 | GA9: 79.11238456 | GB9: 79.10772155 | GC9: 79.09980254 | GD9: 79.09107895 | GE9: 79.0765505 | GF9: 79.06918116 | GG9: 79.06678901 | GH9: 79.06657783 | GI9: 79.0509657 | GJ9: 79.04433803 | GK9: 79.03965341 | GL9: 79.03773803 | GM9: 79.03435206 | GN9: 79.02968905 | GO9: 79.02755762 | GP9: 79.02561347 | GQ9: 79.02177004 | GR9: 79.01620936 | GS9: 78.99838387 | GT9: 78.98875651 | GU9: 78.98854533 | GV9: 78.98703562 | GW9: 78.976511 | GX9: 78.9729332 | GY9: 78.97250716 | GZ9: 78.96630553 | HA9: 78.96515229 | HB9: 78.96513783 | HC9: 78.9637629 | HD9: 79.30100927 | HE9: 79.29254216 | HF9: 79.28504128 | HG9: 79.27726783 | HH9: 79.2758929 | HI9: 79.27183553 | HJ9: 79.26287388 | HK9: 79.24790724 | HL9: 79.23620443 | HM9: 79.23564428 | HN9: 79.23370014 | HO9: 79.22489216 | HP9: 79.22429603 | HQ9: 79.21450966 | HR9: 79.2070307 | HS9: 79.20700878 | HT9: 79.20239824 | HU9: 79.19380303 | HV9: 79.17322449 | HW9: 79.16987474 | HX9: 79.14685966 | HY9: 79.13647716 | HZ9: 79.13160095 | IA9: 79.12965681 | IB9: 79.1289982 | IC9: 79.12897628 | ID9: 79.12237053 | IE9: 79.12025269 | IF9: 79.1198279 | IG9: 79.11768591 | IH9: 78.8197191 | II9: 78.81024053 | IJ9: 78.8076979 | IK9: 78.80555591 | IL9: 78.80025456 | IM9: 78.79559155 | IN9: 78.79029721 | IO9: 78.78767254 | IP9: 78.78106679 | IQ9: 78.78045877 | IR9: 78.77894895 | IS9: 78.77852417 | IT9: 78.77108083 | IU9: 78.76842433 | IV9: 78.76758878 | IW9: 78.76641781 | IX9: 78.7644205 | IY9: 78.7603621 | IZ9: 78.75973322 | JA9: 78.75706562 | JB9: 78.75465901 | JC9: 78.75444783 | JD9: 78.75296637 | JE9: 78.7416866 | JF9: 78.73524676 | JG9: 78.73387183 | JH9: 78.72548527 | JI9: 78.72527408 | JJ9: 78.71520313 | JK9: 78.71408991 | JL9: 78.96162091 | JM9: 78.96105304 | JN9: 78.95970553 | JO9: 78.95631956 | JP9: 78.95165655 | JQ9: 78.94373754 | JR9: 78.93458917 | JS9: 78.92365378 | JT9: 78.92351428 | JU9: 78.92157014 | JV9: 78.91072401 | JW9: 78.91051283 | JX9: 78.8977516 | JY9: 78.8949007 | JZ9: 78.89434054 | KA9: 78.88827303 | KB9: 78.88358841 | KC9: 78.88299228 | KD9: 78.87828706 | KE9: 78.87362405 | KF9: 78.87246767 | KG9: 78.86846383 | KH9: 78.86570504 | KI9: 78.86110896 | KJ9: 78.86109449 | KK9: 78.8570097 | KL9: 78.84562128 | KM9: 78.8383946 | KN9: 78.83269151 | KO9: 78.83248033 | KP9: 78.58235004 | KQ9: 78.58221054 | KR9: 78.57780683 | KS9: 78.56942027 | KT9: 78.56920908 | KU9: 78.56033767 | KV9: 78.55802491 | KW9: 78.55644786 | KX9: 78.55164655 | KY9: 78.54897896 | KZ9: 78.54696929 | LA9: 78.54636127 | LB9: 78.5448797 | LC9: 78.53698333 | LD9: 78.53623254 | LE9: 78.53232031 | LF9: 78.53116393 | LG9: 78.5271601 | LH9: 78.5262646 | LI9: 78.52043876 | LJ9: 78.51980521 | LK9: 78.51570597 | LL9: 78.50711646 | LM9: 78.50431754 | LN9: 78.49955727 | LO9: 78.49709086 | LP9: 78.49138777 | LQ9: 78.49117658 | LR9: 78.47950762 | LS9: 78.47841536 | LT9: 78.70303429 | LU9: 78.70242627 | LV9: 78.69304833 | LW9: 78.68955628 | LX9: 78.68838531 | LY9: 78.68625387 | LZ9: 78.6823296 | MA9: 78.67490562 | MB9: 78.664381 | MC9: 78.6636541 | MD9: 78.66037716 | ME9: 78.65568989 | MF9: 78.65302229 | MG9: 78.6516329 | MH9: 78.64892304 | MI9: 78.64745277 | MJ9: 78.64724158 | MK9: 78.63520727 | ML9: 78.63120343 | MM9: 78.62500179 | MN9: 78.62439377 | MO9: 78.62384855 | MP9: 78.62245917 | MQ9: 78.6197493 | MR9: 78.61501583 | MS9: 78.61152378 | MT9: 78.61115979 | MU9: 78.61035281 | MV9: 78.6042971 | MW9: 78.5856216
A10: 4 | B10: 78.76905261 | C10: 78.75935947 | D10: 78.74959439 | E10: 78.72123967 | F10: 78.70757628 | G10: 78.70514479 | H10: 78.69258076 | I10: 78.68288762 | J10: 78.67312254 | K10: 78.65310879 | L10: 78.64476782 | M10: 78.62867294 | N10: 78.61610891 | O10: 78.60641577 | P10: 78.60561382 | Q10: 78.59665069 | R10: 78.57702355 | S10: 78.57663694 | T10: 78.56829597 | U10: 78.56806043 | V10: 78.55738079 | W10: 78.55220109 | X10: 78.54445659 | Y10: 78.52361083 | Z10: 78.50365135 | AA10: 78.50016509 | AB10: 78.49182412 | AC10: 78.49158858 | AD10: 78.47506109 | AE10: 78.45970301 | AF10: 79.5220643 | AG10: 79.44559245 | AH10: 79.3691206 | AI10: 79.29264875 | AJ10: 79.25647398 | AK10: 79.24678083 | AL10: 79.2161769 | AM10: 79.18758663 | AN10: 79.18000213 | AO10: 79.17030898 | AP10: 79.11111478 | AQ10: 79.10353028 | AR10: 79.09383713 | AS10: 79.03464293 | AT10: 79.02705843 | AU10: 79.01736528 | AV10: 78.95817108 | AW10: 78.95058658 | AX10: 78.94089343 | AY10: 78.92199631 | AZ10: 78.91230317 | BA10: 78.91150122 | BB10: 78.90253809 | BC10: 78.88169923 | BD10: 78.85808849 | BE10: 78.84552446 | BF10: 78.83583132 | BG10: 78.82606624 | BH10: 78.80953875 | BI10: 78.78161664 | BJ10: 78.23323027 | BK10: 78.23028746 | BL10: 78.22684231 | BM10: 78.22488162 | BN10: 78.22290312 | BO10: 78.22186867 | BP10: 78.21772343 | BQ10: 78.20997893 | BR10: 78.19411269 | BS10: 78.16917369 | BT10: 78.16568742 | BU10: 78.15734645 | BV10: 78.15675842 | BW10: 78.15381561 | BX10: 78.15037046 | BY10: 78.14953091 | BZ10: 78.14840977 | CA10: 78.14539682 | CB10: 78.13660673 | CC10: 78.12522534 | CD10: 78.12094065 | CE10: 78.11764084 | CF10: 78.10801646 | CG10: 78.08921557 | CH10: 78.08546627 | CI10: 78.0808746 | CJ10: 78.08028657 | CK10: 78.07389861 | CL10: 78.07193792 | CM10: 78.06892497 | CN10: 78.45541831 | CO10: 78.44713898 | CP10: 78.44249413 | CQ10: 78.42369324 | CR10: 78.41535227 | CS10: 78.41511673 | CT10: 78.386762 | CU10: 78.38617397 | CV10: 78.38323116 | CW10: 78.37782532 | CX10: 78.37481237 | CY10: 78.37309862 | CZ10: 78.37066713 | DA10: 78.35345585 | DB10: 78.34722139 | DC10: 78.34053166 | DD10: 78.33864488 | DE10: 78.31863112 | DF10: 78.31029015 | DG10: 78.30970212 | DH10: 78.30675931 | DI10: 78.30135347 | DJ10: 78.29834052 | DK10: 78.29419528 | DL10: 78.27113615 | DM10: 78.26217303 | DN10: 78.25149339 | DO10: 78.24215927 | DP10: 78.23856919 | DQ10: 78.2338183 | DR10: 77.88089589 | DS10: 77.86980987 | DT10: 77.86793278 | DU10: 77.85963502 | DV10: 77.85228416 | DW10: 77.84373504 | DX10: 77.82228076 | DY10: 77.8222752 | DZ10: 77.81933794 | EA10: 77.8158928 | EB10: 77.81505325 | EC10: 77.81393211 | ED10: 77.81091915 | EE10: 77.80442404 | EF10: 77.80212906 | EG10: 77.79333802 | EH10: 77.79146093 | EI10: 77.78316317 | EJ10: 77.77957887 | EK10: 77.77581231 | EL10: 77.75289387 | EM10: 77.7509886 | EN10: 77.74580891 | EO10: 77.74177257 | EP10: 77.73942095 | EQ10: 77.73746026 | ER10: 77.7344473 | ES10: 77.72795219 | ET10: 77.72031274 | EU10: 77.71686617 | EV10: 78.05169631 | EW10: 78.04875349 | EX10: 78.04334766 | EY10: 78.04116899 | EZ10: 78.0403347 | FA10: 78.02620014 | FB10: 78.02087648 | FC10: 78.01897819 | FD10: 78.01274372 | FE10: 78.006054 | FF10: 77.99742676 | FG10: 77.9835038 | FH10: 77.97522446 | FI10: 77.97228164 | FJ10: 77.96687581 | FK10: 77.96469714 | FL10: 77.96386285 | FM10: 77.95736774 | FN10: 77.94440463 | FO10: 77.92423767 | FP10: 77.92095491 | FQ10: 77.91701572 | FR10: 77.90409153 | FS10: 77.89875261 | FT10: 77.89580979 | FU10: 77.89236465 | FV10: 77.89040396 | FW10: 77.88822529 | FX10: 77.887391 | FY10: 77.88154133 | FZ10: 77.53345512 | GA10: 77.53013687 | GB10: 77.52556712 | GC10: 77.51780649 | GD10: 77.50925738 | GE10: 77.49501949 | GF10: 77.48779754 | GG10: 77.48545323 | GH10: 77.48524627 | GI10: 77.46994638 | GJ10: 77.46345127 | GK10: 77.45886035 | GL10: 77.45698327 | GM10: 77.45366502 | GN10: 77.44909527 | GO10: 77.44700647 | GP10: 77.4451012 | GQ10: 77.44133464 | GR10: 77.43588517 | GS10: 77.4184162 | GT10: 77.40898138 | GU10: 77.40877442 | GV10: 77.40729491 | GW10: 77.39698078 | GX10: 77.39347453 | GY10: 77.39305702 | GZ10: 77.38697942 | HA10: 77.38584924 | HB10: 77.38583508 | HC10: 77.38448765 | HD10: 77.71498908 | HE10: 77.70669132 | HF10: 77.69934046 | HG10: 77.69172248 | HH10: 77.69037505 | HI10: 77.68639882 | HJ10: 77.6776164 | HK10: 77.6629491 | HL10: 77.65148034 | HM10: 77.65093139 | HN10: 77.64902614 | HO10: 77.64039432 | HP10: 77.63981011 | HQ10: 77.63021947 | HR10: 77.62289008 | HS10: 77.62286861 | HT10: 77.61835027 | HU10: 77.60992697 | HV10: 77.58976 | HW10: 77.58647725 | HX10: 77.56392247 | HY10: 77.55374762 | HZ10: 77.54896893 | IA10: 77.54706367 | IB10: 77.54641823 | IC10: 77.54639676 | ID10: 77.53992312 | IE10: 77.53784764 | IF10: 77.53743135 | IG10: 77.5353322 | IH10: 77.24332472 | II10: 77.23403572 | IJ10: 77.23154395 | IK10: 77.2294448 | IL10: 77.22424947 | IM10: 77.21967972 | IN10: 77.21449127 | IO10: 77.21191909 | IP10: 77.20544545 | IQ10: 77.2048496 | IR10: 77.20336998 | IS10: 77.20295369 | IT10: 77.19565921 | IU10: 77.19305585 | IV10: 77.192237 | IW10: 77.19108945 | IX10: 77.18913209 | IY10: 77.18515486 | IZ10: 77.18453856 | JA10: 77.1819243 | JB10: 77.17956583 | JC10: 77.17935887 | JD10: 77.17790704 | JE10: 77.16685287 | JF10: 77.16054182 | JG10: 77.1591944 | JH10: 77.15097557 | JI10: 77.1507686 | JJ10: 77.14089906 | JK10: 77.13980811 | JL10: 77.3823885 | JM10: 77.38183198 | JN10: 77.38051142 | JO10: 77.37719317 | JP10: 77.37262342 | JQ10: 77.36486279 | JR10: 77.35589739 | JS10: 77.3451807 | JT10: 77.34504399 | JU10: 77.34313874 | JV10: 77.33250953 | JW10: 77.33230257 | JX10: 77.31979657 | JY10: 77.31700268 | JZ10: 77.31645373 | KA10: 77.31050757 | KB10: 77.30591665 | KC10: 77.30533244 | KD10: 77.30072132 | KE10: 77.29615157 | KF10: 77.29501832 | KG10: 77.29109456 | KH10: 77.28839094 | KI10: 77.28388678 | KJ10: 77.2838726 | KK10: 77.27986951 | KL10: 77.26870885 | KM10: 77.26162671 | KN10: 77.25603768 | KO10: 77.25583072 | KP10: 77.01070304 | KQ10: 77.01056633 | KR10: 77.0062507 | KS10: 76.99803187 | KT10: 76.9978249 | KU10: 76.98913092 | KV10: 76.98686441 | KW10: 76.98531891 | KX10: 76.98061362 | KY10: 76.97799938 | KZ10: 76.9760299 | LA10: 76.97543405 | LB10: 76.97398211 | LC10: 76.96624366 | LD10: 76.96550789 | LE10: 76.9616739 | LF10: 76.96054065 | LG10: 76.9566169 | LH10: 76.95573931 | LI10: 76.95002998 | LJ10: 76.94940911 | LK10: 76.94539185 | LL10: 76.93697413 | LM10: 76.93423119 | LN10: 76.92956613 | LO10: 76.92714904 | LP10: 76.92156002 | LQ10: 76.92135305 | LR10: 76.90991746 | LS10: 76.90884706 | LT10: 77.1289736 | LU10: 77.12837775 | LV10: 77.11918736 | LW10: 77.11576515 | LX10: 77.1146176 | LY10: 77.1125288 | LZ10: 77.10868301 | MA10: 77.10140751 | MB10: 77.09109338 | MC10: 77.09038102 | MD10: 77.08716962 | ME10: 77.0825761 | MF10: 77.07996184 | MG10: 77.07860025 | MH10: 77.07594458 | MI10: 77.07450372 | MJ10: 77.07429675 | MK10: 77.06250312 | ML10: 77.05857936 | MM10: 77.05250175 | MN10: 77.0519059 | MO10: 77.05137158 | MP10: 77.05000999 | MQ10: 77.04735431 | MR10: 77.04271551 | MS10: 77.0392933 | MT10: 77.03893659 | MU10: 77.03814575 | MV10: 77.03221116 | MW10: 77.01390917
A11: 5 | B11: 77.19367156 | C11: 77.18417228 | D11: 77.1746025 | E11: 77.14681488 | F11: 77.13342476 | G11: 77.13104189 | H11: 77.11872914 | I11: 77.10922987 | J11: 77.09966009 | K11: 77.08004661 | L11: 77.07187246 | M11: 77.05609948 | N11: 77.04378673 | O11: 77.03428745 | P11: 77.03350154 | Q11: 77.02471767 | R11: 77.00548308 | S11: 77.0051042 | T11: 76.99693005 | U11: 76.99669922 | V11: 76.98623317 | W11: 76.98115707 | X11: 76.97356746 | Y11: 76.95313861 | Z11: 76.93357832 | AA11: 76.93016178 | AB11: 76.92198764 | AC11: 76.92175681 | AD11: 76.90555986 | AE11: 76.89050895 | AF11: 77.93162301 | AG11: 77.8566806 | AH11: 77.78173819 | AI11: 77.70679577 | AJ11: 77.6713445 | AK11: 77.66184521 | AL11: 77.63185336 | AM11: 77.6038349 | AN11: 77.59640209 | AO11: 77.5869028 | AP11: 77.52889248 | AQ11: 77.52145967 | AR11: 77.51196039 | AS11: 77.45395007 | AT11: 77.44651726 | AU11: 77.43701797 | AV11: 77.37900766 | AW11: 77.37157485 | AX11: 77.36207556 | AY11: 77.34355638 | AZ11: 77.33405711 | BA11: 77.33327119 | BB11: 77.32448733 | BC11: 77.30406525 | BD11: 77.28092672 | BE11: 77.26861397 | BF11: 77.25911469 | BG11: 77.24954491 | BH11: 77.23334797 | BI11: 77.2059843 | BJ11: 76.66856567 | BK11: 76.66568171 | BL11: 76.66230546 | BM11: 76.66038398 | BN11: 76.65844506 | BO11: 76.6574313 | BP11: 76.65336896 | BQ11: 76.64577935 | BR11: 76.63023043 | BS11: 76.60579021 | BT11: 76.60237367 | BU11: 76.59419952 | BV11: 76.59362325 | BW11: 76.59073929 | BX11: 76.58736305 | BY11: 76.5865403 | BZ11: 76.58544157 | CA11: 76.58248889 | CB11: 76.57387459 | CC11: 76.56272083 | CD11: 76.55852184 | CE11: 76.55528802 | CF11: 76.54585613 | CG11: 76.52743125 | CH11: 76.52375695 | CI11: 76.51925711 | CJ11: 76.51868084 | CK11: 76.51242064 | CL11: 76.51049916 | CM11: 76.50754647 | CN11: 76.88630995 | CO11: 76.8781962 | CP11: 76.87364425 | CQ11: 76.85521937 | CR11: 76.84704522 | CS11: 76.84681439 | CT11: 76.81902676 | CU11: 76.81845049 | CV11: 76.81556653 | CW11: 76.81026881 | CX11: 76.80731613 | CY11: 76.80563665 | CZ11: 76.80325379 | DA11: 76.78638673 | DB11: 76.78027696 | DC11: 76.77372102 | DD11: 76.77187198 | DE11: 76.75225849 | DF11: 76.74408435 | DG11: 76.74350808 | DH11: 76.74062412 | DI11: 76.7353264 | DJ11: 76.73237371 | DK11: 76.72831137 | DL11: 76.70571343 | DM11: 76.69692957 | DN11: 76.68646352 | DO11: 76.67731608 | DP11: 76.67379781 | DQ11: 76.66914193 | DR11: 76.32327798 | DS11: 76.31241367 | DT11: 76.31057413 | DU11: 76.30244232 | DV11: 76.29523847 | DW11: 76.28686034 | DX11: 76.26583515 | DY11: 76.2658297 | DZ11: 76.26295118 | EA11: 76.25957494 | EB11: 76.25875219 | EC11: 76.25765346 | ED11: 76.25470077 | EE11: 76.24833556 | EF11: 76.24608648 | EG11: 76.23747126 | EH11: 76.23563171 | EI11: 76.2274999 | EJ11: 76.22398729 | EK11: 76.22029606 | EL11: 76.19783599 | EM11: 76.19596883 | EN11: 76.19089273 | EO11: 76.18693712 | EP11: 76.18463253 | EQ11: 76.18271105 | ER11: 76.17975836 | ES11: 76.17339315 | ET11: 76.16590648 | EU11: 76.16252884 | EV11: 76.49066239 | EW11: 76.48777842 | EX11: 76.4824807 | EY11: 76.48034561 | EZ11: 76.47952801 | FA11: 76.46567613 | FB11: 76.46045895 | FC11: 76.45859863 | FD11: 76.45248884 | FE11: 76.44593292 | FF11: 76.43747822 | FG11: 76.42383372 | FH11: 76.41571997 | FI11: 76.412836 | FJ11: 76.40753829 | FK11: 76.40540319 | FL11: 76.4045856 | FM11: 76.39822039 | FN11: 76.38551654 | FO11: 76.36575292 | FP11: 76.36253581 | FQ11: 76.3586754 | FR11: 76.3460097 | FS11: 76.34077756 | FT11: 76.33789359 | FU11: 76.33451735 | FV11: 76.33259588 | FW11: 76.33046078 | FX11: 76.32964318 | FY11: 76.32391051 | FZ11: 75.98278602 | GA11: 75.97953414 | GB11: 75.97505578 | GC11: 75.96745036 | GD11: 75.95907223 | GE11: 75.9451191 | GF11: 75.93804159 | GG11: 75.93574416 | GH11: 75.93554134 | GI11: 75.92054746 | GJ11: 75.91418225 | GK11: 75.90968314 | GL11: 75.90784361 | GM11: 75.90459172 | GN11: 75.90011337 | GO11: 75.89806634 | GP11: 75.89619918 | GQ11: 75.89250794 | GR11: 75.88716747 | GS11: 75.87004787 | GT11: 75.86080175 | GU11: 75.86059893 | GV11: 75.85914901 | GW11: 75.84904117 | GX11: 75.84560504 | GY11: 75.84519588 | GZ11: 75.83923984 | HA11: 75.83813226 | HB11: 75.83811837 | HC11: 75.83679789 | HD11: 76.1606893 | HE11: 76.15255749 | HF11: 76.14535365 | HG11: 76.13788803 | HH11: 76.13656755 | HI11: 76.13267084 | HJ11: 76.12406407 | HK11: 76.10969012 | HL11: 76.09845074 | HM11: 76.09791277 | HN11: 76.09604562 | HO11: 76.08758643 | HP11: 76.08701391 | HQ11: 76.07761508 | HR11: 76.07043228 | HS11: 76.07041123 | HT11: 76.06598327 | HU11: 76.05772843 | HV11: 76.0379648 | HW11: 76.0347477 | HX11: 76.01264402 | HY11: 76.00267266 | HZ11: 75.99798955 | IA11: 75.9961224 | IB11: 75.99548987 | IC11: 75.99546882 | ID11: 75.98912466 | IE11: 75.98709068 | IF11: 75.98668272 | IG11: 75.98462555 | IH11: 75.69845822 | II11: 75.68935501 | IJ11: 75.68691307 | IK11: 75.6848559 | IL11: 75.67976448 | IM11: 75.67528613 | IN11: 75.67020144 | IO11: 75.6676807 | IP11: 75.66133655 | IQ11: 75.6607526 | IR11: 75.65930258 | IS11: 75.65889461 | IT11: 75.65174603 | IU11: 75.64919473 | IV11: 75.64839226 | IW11: 75.64726766 | IX11: 75.64534945 | IY11: 75.64145176 | IZ11: 75.64084779 | JA11: 75.63828582 | JB11: 75.63597451 | JC11: 75.63577169 | JD11: 75.6343489 | JE11: 75.62351581 | JF11: 75.61733099 | JG11: 75.61601051 | JH11: 75.60795606 | JI11: 75.60775323 | JJ11: 75.59808108 | JK11: 75.59701195 | JL11: 75.83474073 | JM11: 75.83419534 | JN11: 75.83290119 | JO11: 75.82964931 | JP11: 75.82517095 | JQ11: 75.81756553 | JR11: 75.80877944 | JS11: 75.79827709 | JT11: 75.79814311 | JU11: 75.79627596 | JV11: 75.78585934 | JW11: 75.78565652 | JX11: 75.77340063 | JY11: 75.77066263 | JZ11: 75.77012466 | KA11: 75.76429742 | KB11: 75.75979831 | KC11: 75.75922579 | KD11: 75.7547069 | KE11: 75.75022854 | KF11: 75.74911795 | KG11: 75.74527267 | KH11: 75.74262312 | KI11: 75.73820904 | KJ11: 75.73819515 | KK11: 75.73427212 | KL11: 75.72333467 | KM11: 75.71639418 | KN11: 75.71091692 | KO11: 75.7107141 | KP11: 75.47048898 | KQ11: 75.47035501 | KR11: 75.46612568 | KS11: 75.45807123 | KT11: 75.4578684 | KU11: 75.4493483 | KV11: 75.44712712 | KW11: 75.44561253 | KX11: 75.44100135 | KY11: 75.43843939 | KZ11: 75.43650931 | LA11: 75.43592536 | LB11: 75.43450246 | LC11: 75.42691879 | LD11: 75.42619773 | LE11: 75.42244043 | LF11: 75.42132984 | LG11: 75.41748456 | LH11: 75.41662452 | LI11: 75.41102938 | LJ11: 75.41042093 | LK11: 75.40648401 | LL11: 75.39823464 | LM11: 75.39554657 | LN11: 75.3909748 | LO11: 75.38860606 | LP11: 75.38312882 | LQ11: 75.38292599 | LR11: 75.37171911 | LS11: 75.37067011 | LT11: 75.58639413 | LU11: 75.58581019 | LV11: 75.57680362 | LW11: 75.57344985 | LX11: 75.57232525 | LY11: 75.57027822 | LZ11: 75.56650935 | MA11: 75.55937936 | MB11: 75.54927152 | MC11: 75.54857339 | MD11: 75.54542623 | ME11: 75.54092457 | MF11: 75.5383626 | MG11: 75.53702824 | MH11: 75.53442569 | MI11: 75.53301364 | MJ11: 75.53281081 | MK11: 75.52125306 | ML11: 75.51740777 | MM11: 75.51145172 | MN11: 75.51086778 | MO11: 75.51034415 | MP11: 75.50900979 | MQ11: 75.50640722 | MR11: 75.5018612 | MS11: 75.49850744 | MT11: 75.49815786 | MU11: 75.49738284 | MV11: 75.49156694 | MW11: 75.47363098
A12: 6 | B12: 75.64979813 | C12: 75.64048884 | D12: 75.63111045 | E12: 75.60387858 | F12: 75.59075626 | G12: 75.58842105 | H12: 75.57635456 | I12: 75.56704527 | J12: 75.55766688 | K12: 75.53844568 | L12: 75.53043501 | M12: 75.51497749 | N12: 75.502911 | O12: 75.49360171 | P12: 75.49283151 | Q12: 75.48422332 | R12: 75.46537342 | S12: 75.46500211 | T12: 75.45699145 | U12: 75.45676523 | V12: 75.44650851 | W12: 75.44153392 | X12: 75.43409611 | Y12: 75.41407584 | Z12: 75.39490675 | AA12: 75.39155855 | AB12: 75.38354788 | AC12: 75.38332167 | AD12: 75.36744867 | AE12: 75.35269877 | AF12: 76.37299055 | AG12: 76.29954699 | AH12: 76.22610342 | AI12: 76.15265986 | AJ12: 76.11791761 | AK12: 76.10860831 | AL12: 76.07921629 | AM12: 76.0517582 | AN12: 76.04447404 | AO12: 76.03516474 | AP12: 75.97831463 | AQ12: 75.97103048 | AR12: 75.96172118 | AS12: 75.90487107 | AT12: 75.89758691 | AU12: 75.88827762 | AV12: 75.83142751 | AW12: 75.82414335 | AX12: 75.81483405 | AY12: 75.79668526 | AZ12: 75.78737596 | BA12: 75.78660577 | BB12: 75.77799758 | BC12: 75.75798394 | BD12: 75.73530818 | BE12: 75.72324169 | BF12: 75.7139324 | BG12: 75.70455401 | BH12: 75.68868101 | BI12: 75.66186462 | BJ12: 75.13519435 | BK12: 75.13236807 | BL12: 75.12905935 | BM12: 75.1271763 | BN12: 75.12527615 | BO12: 75.12428267 | BP12: 75.12030158 | BQ12: 75.11286377 | BR12: 75.09762582 | BS12: 75.07367441 | BT12: 75.07032619 | BU12: 75.06231553 | BV12: 75.06175079 | BW12: 75.05892451 | BX12: 75.05561579 | BY12: 75.05480949 | BZ12: 75.05373274 | CA12: 75.05083911 | CB12: 75.0423971 | CC12: 75.03146641 | CD12: 75.0273514 | CE12: 75.02418226 | CF12: 75.01493901 | CG12: 74.99688263 | CH12: 74.99328181 | CI12: 74.98887197 | CJ12: 74.98830722 | CK12: 74.98217222 | CL12: 74.98028917 | CM12: 74.97739554 | CN12: 75.34858375 | CO12: 75.34063227 | CP12: 75.33617136 | CQ12: 75.31811498 | CR12: 75.31010432 | CS12: 75.3098781 | CT12: 75.28264623 | CU12: 75.28208148 | CV12: 75.2792552 | CW12: 75.27406343 | CX12: 75.2711698 | CY12: 75.26952392 | CZ12: 75.26718871 | DA12: 75.250659 | DB12: 75.24467142 | DC12: 75.2382466 | DD12: 75.23643454 | DE12: 75.21721332 | DF12: 75.20920266 | DG12: 75.20863792 | DH12: 75.20581164 | DI12: 75.20061987 | DJ12: 75.19772624 | DK12: 75.19374514 | DL12: 75.17159916 | DM12: 75.16299098 | DN12: 75.15273425 | DO12: 75.14376976 | DP12: 75.14032185 | DQ12: 75.1357591 | DR12: 74.79681242 | DS12: 74.7861654 | DT12: 74.78436264 | DU12: 74.77639347 | DV12: 74.7693337 | DW12: 74.76112313 | DX12: 74.74051844 | DY12: 74.7405131 | DZ12: 74.73769215 | EA12: 74.73438344 | EB12: 74.73357715 | EC12: 74.73250039 | ED12: 74.72960675 | EE12: 74.72336885 | EF12: 74.72116475 | EG12: 74.71272183 | EH12: 74.71091908 | EI12: 74.7029499 | EJ12: 74.69950755 | EK12: 74.69589014 | EL12: 74.67387927 | EM12: 74.67204945 | EN12: 74.66707488 | EO12: 74.66319838 | EP12: 74.66093988 | EQ12: 74.65905683 | ER12: 74.65616319 | ES12: 74.64992529 | ET12: 74.64258835 | EU12: 74.63927827 | EV12: 74.96084914 | EW12: 74.95802285 | EX12: 74.95283109 | EY12: 74.95073869 | EZ12: 74.94993745 | FA12: 74.93636261 | FB12: 74.93124977 | FC12: 74.92942665 | FD12: 74.92343906 | FE12: 74.91701426 | FF12: 74.90872866 | FG12: 74.89535705 | FH12: 74.88740557 | FI12: 74.88457928 | FJ12: 74.87938752 | FK12: 74.87729513 | FL12: 74.87649388 | FM12: 74.87025598 | FN12: 74.85780621 | FO12: 74.83843786 | FP12: 74.83528509 | FQ12: 74.8315019 | FR12: 74.81908951 | FS12: 74.81396201 | FT12: 74.81113572 | FU12: 74.80782701 | FV12: 74.80594396 | FW12: 74.80385156 | FX12: 74.80305032 | FY12: 74.7974323 | FZ12: 74.4631303 | GA12: 74.45994345 | GB12: 74.45555466 | GC12: 74.44810135 | GD12: 74.43989078 | GE12: 74.42621672 | GF12: 74.41928076 | GG12: 74.41702928 | GH12: 74.41683052 | GI12: 74.40213651 | GJ12: 74.3958986 | GK12: 74.39148948 | GL12: 74.38968673 | GM12: 74.38649989 | GN12: 74.3821111 | GO12: 74.38010501 | GP12: 74.37827519 | GQ12: 74.37465778 | GR12: 74.36942412 | GS12: 74.35264692 | GT12: 74.34358572 | GU12: 74.34338695 | GV12: 74.34196603 | GW12: 74.33206035 | GX12: 74.32869294 | GY12: 74.32829196 | GZ12: 74.32245504 | HA12: 74.32136961 | HB12: 74.32135601 | HC12: 74.32006194 | HD12: 74.63747551 | HE12: 74.62950634 | HF12: 74.62244657 | HG12: 74.61513027 | HH12: 74.61383619 | HI12: 74.61001743 | HJ12: 74.60158279 | HK12: 74.58749631 | HL12: 74.57648172 | HM12: 74.57595451 | HN12: 74.5741247 | HO12: 74.5658347 | HP12: 74.56527363 | HQ12: 74.55606277 | HR12: 74.54902364 | HS12: 74.54900301 | HT12: 74.5446636 | HU12: 74.53657386 | HV12: 74.51720551 | HW12: 74.51405275 | HX12: 74.49239114 | HY12: 74.48261921 | HZ12: 74.47802976 | IA12: 74.47619995 | IB12: 74.47558007 | IC12: 74.47555944 | ID12: 74.46934217 | IE12: 74.46734887 | IF12: 74.46694907 | IG12: 74.46493304 | IH12: 74.18448906 | II12: 74.17556791 | IJ12: 74.17317481 | IK12: 74.17115878 | IL12: 74.16616919 | IM12: 74.16178041 | IN12: 74.15679742 | IO12: 74.15432709 | IP12: 74.14810981 | IQ12: 74.14753755 | IR12: 74.14611652 | IS12: 74.14571672 | IT12: 74.13871111 | IU12: 74.13621084 | IV12: 74.13542442 | IW12: 74.13432231 | IX12: 74.13244246 | IY12: 74.12862273 | IZ12: 74.12803083 | JA12: 74.1255201 | JB12: 74.12325502 | JC12: 74.12305626 | JD12: 74.12166192 | JE12: 74.11104549 | JF12: 74.10498437 | JG12: 74.1036903 | JH12: 74.09579694 | JI12: 74.09559816 | JJ12: 74.08611946 | JK12: 74.08507171 | JL12: 74.31804591 | JM12: 74.31751143 | JN12: 74.31624317 | JO12: 74.31305632 | JP12: 74.30866753 | JQ12: 74.30121422 | JR12: 74.29260385 | JS12: 74.28231155 | JT12: 74.28218025 | JU12: 74.28035044 | JV12: 74.27014215 | JW12: 74.26994339 | JX12: 74.25793262 | JY12: 74.25524938 | JZ12: 74.25472217 | KA12: 74.24901147 | KB12: 74.24460235 | KC12: 74.24404127 | KD12: 74.23961276 | KE12: 74.23522397 | KF12: 74.2341356 | KG12: 74.23036721 | KH12: 74.22777066 | KI12: 74.22344486 | KJ12: 74.22343125 | KK12: 74.21958667 | KL12: 74.20886798 | KM12: 74.20206629 | KN12: 74.19669859 | KO12: 74.19649982 | KP12: 73.9610792 | KQ12: 73.96094791 | KR12: 73.95680317 | KS12: 73.94890981 | KT12: 73.94871103 | KU12: 73.94036134 | KV12: 73.93818458 | KW12: 73.93670028 | KX12: 73.93218132 | KY12: 73.9296706 | KZ12: 73.92777912 | LA12: 73.92720686 | LB12: 73.92581241 | LC12: 73.91838041 | LD12: 73.91767377 | LE12: 73.91399162 | LF12: 73.91290324 | LG12: 73.90913487 | LH12: 73.90829203 | LI12: 73.9028088 | LJ12: 73.90221251 | LK12: 73.89835433 | LL12: 73.89026995 | LM12: 73.88763564 | LN12: 73.88315531 | LO12: 73.88083394 | LP12: 73.87546624 | LQ12: 73.87526747 | LR12: 73.86428473 | LS12: 73.86325671 | LT12: 74.07466625 | LU12: 74.07409399 | LV12: 74.06526754 | LW12: 74.06198085 | LX12: 74.06087875 | LY12: 74.05887266 | LZ12: 74.05517916 | MA12: 74.04819177 | MB12: 74.03828609 | MC12: 74.03760193 | MD12: 74.0345177 | ME12: 74.03010608 | MF12: 74.02759535 | MG12: 74.02628768 | MH12: 74.02373717 | MI12: 74.02235337 | MJ12: 74.0221546 | MK12: 74.010828 | ML12: 74.00705962 | MM12: 74.00122269 | MN12: 74.00065042 | MO12: 74.00013727 | MP12: 73.99882959 | MQ12: 73.99627908 | MR12: 73.99182398 | MS12: 73.98853729 | MT12: 73.9881947 | MU12: 73.98743518 | MV12: 73.9817356 | MW12: 73.96415836
A13: 7 | B13: 74.13680216 | C13: 74.12767906 | D13: 74.11848824 | E13: 74.09180101 | F13: 74.07894114 | G13: 74.07665263 | H13: 74.06482747 | I13: 74.05570437 | J13: 74.04651355 | K13: 74.02767676 | L13: 74.01982631 | M13: 74.00467794 | N13: 73.99285278 | O13: 73.98372967 | P13: 73.98297488 | Q13: 73.97453885 | R13: 73.95606595 | S13: 73.95570207 | T13: 73.94785162 | U13: 73.94762993 | V13: 73.93757834 | W13: 73.93270325 | X13: 73.92541419 | Y13: 73.90579432 | Z13: 73.88700862 | AA13: 73.88372738 | AB13: 73.87587693 | AC13: 73.87565524 | AD13: 73.86009969 | AE13: 73.84564479 | AF13: 74.84553074 | AG13: 74.77355605 | AH13: 74.70158136 | AI13: 74.62960666 | AJ13: 74.59555926 | AK13: 74.58643614 | AL13: 74.55763197 | AM13: 74.53072304 | AN13: 74.52358456 | AO13: 74.51446145 | AP13: 74.45874834 | AQ13: 74.45160987 | AR13: 74.44248676 | AS13: 74.38677365 | AT13: 74.37963518 | AU13: 74.37051206 | AV13: 74.31479896 | AW13: 74.30766048 | AX13: 74.29853737 | AY13: 74.28075155 | AZ13: 74.27162845 | BA13: 74.27087365 | BB13: 74.26243763 | BC13: 74.24282426 | BD13: 74.22060202 | BE13: 74.20877686 | BF13: 74.19965375 | BG13: 74.19046293 | BH13: 74.17490739 | BI13: 74.14862733 | BJ13: 73.63249047 | BK13: 73.62972071 | BL13: 73.62647817 | BM13: 73.62463278 | BN13: 73.62277063 | BO13: 73.62179702 | BP13: 73.61789555 | BQ13: 73.61060649 | BR13: 73.59567331 | BS13: 73.57220092 | BT13: 73.56891967 | BU13: 73.56106922 | BV13: 73.56051577 | BW13: 73.55774602 | BX13: 73.55450347 | BY13: 73.5537133 | BZ13: 73.55265808 | CA13: 73.54982233 | CB13: 73.54154916 | CC13: 73.53083709 | CD13: 73.52680438 | CE13: 73.52369861 | CF13: 73.51464023 | CG13: 73.49694498 | CH13: 73.49341617 | CI13: 73.48909453 | CJ13: 73.48854108 | CK13: 73.48252878 | CL13: 73.48068339 | CM13: 73.47784763 | CN13: 73.84161207 | CO13: 73.83381963 | CP13: 73.82944793 | CQ13: 73.81175268 | CR13: 73.80390223 | CS13: 73.80368054 | CT13: 73.7769933 | CU13: 73.77643985 | CV13: 73.7736701 | CW13: 73.76858217 | CX13: 73.76574641 | CY13: 73.76413344 | CZ13: 73.76184494 | DA13: 73.74564582 | DB13: 73.73977799 | DC13: 73.73348167 | DD13: 73.73170585 | DE13: 73.71286906 | DF13: 73.70501861 | DG13: 73.70446516 | DH13: 73.7016954 | DI13: 73.69660747 | DJ13: 73.69377171 | DK13: 73.68987024 | DL13: 73.66816717 | DM13: 73.65973116 | DN13: 73.64967956 | DO13: 73.64089436 | DP13: 73.63751542 | DQ13: 73.63304391 | DR13: 73.30087617 | DS13: 73.29044209 | DT13: 73.28867539 | DU13: 73.2808656 | DV13: 73.27394703 | DW13: 73.26590067 | DX13: 73.24570807 | DY13: 73.24570284 | DZ13: 73.24293831 | EA13: 73.23969577 | EB13: 73.2389056 | EC13: 73.23785039 | ED13: 73.23501462 | EE13: 73.22890147 | EF13: 73.22674145 | EG13: 73.21846739 | EH13: 73.2167007 | EI13: 73.20889091 | EJ13: 73.2055174 | EK13: 73.20197234 | EL13: 73.18040168 | EM13: 73.17860846 | EN13: 73.17373338 | EO13: 73.16993441 | EP13: 73.16772108 | EQ13: 73.16587569 | ER13: 73.16303993 | ES13: 73.15692678 | ET13: 73.14973658 | EU13: 73.1464927 | EV13: 73.46163216 | EW13: 73.45886239 | EX13: 73.45377447 | EY13: 73.45172392 | EZ13: 73.4509387 | FA13: 73.43763536 | FB13: 73.43262478 | FC13: 73.43083812 | FD13: 73.42497028 | FE13: 73.41867397 | FF13: 73.41055408 | FG13: 73.39744991 | FH13: 73.38965746 | FI13: 73.3868877 | FJ13: 73.38179977 | FK13: 73.37974923 | FL13: 73.37896401 | FM13: 73.37285086 | FN13: 73.36065008 | FO13: 73.3416691 | FP13: 73.33857939 | FQ13: 73.33487186 | FR13: 73.32270772 | FS13: 73.31768277 | FT13: 73.314913 | FU13: 73.31167047 | FV13: 73.30982508 | FW13: 73.30777453 | FX13: 73.30698931 | FY13: 73.30148365 | FZ13: 72.97386769 | GA13: 72.97074458 | GB13: 72.96644357 | GC13: 72.95913932 | GD13: 72.95109297 | GE13: 72.93769239 | GF13: 72.93089514 | GG13: 72.92868869 | GH13: 72.92849391 | GI13: 72.91409378 | GJ13: 72.90798063 | GK13: 72.90365969 | GL13: 72.901893 | GM13: 72.89876989 | GN13: 72.89446888 | GO13: 72.89250291 | GP13: 72.89070969 | GQ13: 72.88716463 | GR13: 72.88203564 | GS13: 72.86559398 | GT13: 72.856714 | GU13: 72.85651921 | GV13: 72.85512671 | GW13: 72.84541914 | GX13: 72.84211908 | GY13: 72.84172612 | GZ13: 72.83600594 | HA13: 72.83494222 | HB13: 72.83492889 | HC13: 72.8336607 | HD13: 73.144726 | HE13: 73.13691621 | HF13: 73.12999764 | HG13: 73.12282766 | HH13: 73.12155947 | HI13: 73.11781708 | HJ13: 73.10955113 | HK13: 73.09574639 | HL13: 73.08495209 | HM13: 73.08443542 | HN13: 73.08264221 | HO13: 73.07451801 | HP13: 73.07396816 | HQ13: 73.06494152 | HR13: 73.05804316 | HS13: 73.05802295 | HT13: 73.05377033 | HU13: 73.04584239 | HV13: 73.0268614 | HW13: 73.02377169 | HX13: 73.00254331 | HY13: 72.99296683 | HZ13: 72.98846916 | IA13: 72.98667595 | IB13: 72.98606847 | IC13: 72.98604826 | ID13: 72.97995533 | IE13: 72.97800189 | IF13: 72.97761008 | IG13: 72.97563438 | IH13: 72.70079928 | II13: 72.69205655 | IJ13: 72.68971131 | IK13: 72.68773561 | IL13: 72.68284581 | IM13: 72.6785448 | IN13: 72.67366147 | IO13: 72.67124055 | IP13: 72.66514762 | IQ13: 72.6645868 | IR13: 72.66319419 | IS13: 72.66280239 | IT13: 72.65593689 | IU13: 72.65348662 | IV13: 72.65271593 | IW13: 72.65163586 | IX13: 72.64979361 | IY13: 72.64605027 | IZ13: 72.64547022 | JA13: 72.6430097 | JB13: 72.64078992 | JC13: 72.64059513 | JD13: 72.63922869 | JE13: 72.62882458 | JF13: 72.62288468 | JG13: 72.62161649 | JH13: 72.613881 | JI13: 72.6136862 | JJ13: 72.60439707 | JK13: 72.60337027 | JL13: 72.83168499 | JM13: 72.8311612 | JN13: 72.82991831 | JO13: 72.8267952 | JP13: 72.82249418 | JQ13: 72.81518994 | JR13: 72.80675177 | JS13: 72.79666531 | JT13: 72.79653665 | JU13: 72.79474344 | JV13: 72.78473931 | JW13: 72.78454452 | JX13: 72.77277397 | JY13: 72.77014439 | JZ13: 72.76962772 | KA13: 72.76403124 | KB13: 72.7597103 | KC13: 72.75916045 | KD13: 72.7548205 | KE13: 72.75051949 | KF13: 72.74945288 | KG13: 72.74575987 | KH13: 72.74321524 | KI13: 72.73897596 | KJ13: 72.73896262 | KK13: 72.73519494 | KL13: 72.72469062 | KM13: 72.71802497 | KN13: 72.71276461 | KO13: 72.71256983 | KP13: 72.48185762 | KQ13: 72.48172895 | KR13: 72.4776671 | KS13: 72.46993161 | KT13: 72.46973681 | KU13: 72.46155411 | KV13: 72.45942089 | KW13: 72.45796627 | KX13: 72.4535377 | KY13: 72.45107719 | KZ13: 72.44922354 | LA13: 72.44866272 | LB13: 72.44729617 | LC13: 72.44001281 | LD13: 72.4393203 | LE13: 72.43571178 | LF13: 72.43464518 | LG13: 72.43095217 | LH13: 72.43012619 | LI13: 72.42475262 | LJ13: 72.42416826 | LK13: 72.42038724 | LL13: 72.41246455 | LM13: 72.40988292 | LN13: 72.4054922 | LO13: 72.40321726 | LP13: 72.39795692 | LQ13: 72.39776212 | LR13: 72.38699904 | LS13: 72.38599158 | LT13: 72.59317292 | LU13: 72.59261211 | LV13: 72.58396219 | LW13: 72.58074123 | LX13: 72.57966117 | LY13: 72.5776952 | LZ13: 72.57407558 | MA13: 72.56722794 | MB13: 72.55752036 | MC13: 72.55684989 | MD13: 72.55382735 | ME13: 72.54950396 | MF13: 72.54704344 | MG13: 72.54576192 | MH13: 72.54326243 | MI13: 72.5419063 | MJ13: 72.54171151 | MK13: 72.53061144 | ML13: 72.52691843 | MM13: 72.52119823 | MN13: 72.52063741 | MO13: 72.52013452 | MP13: 72.518853 | MQ13: 72.5163535 | MR13: 72.5119875 | MS13: 72.50876654 | MT13: 72.50843081 | MU13: 72.50768648 | MV13: 72.50210089 | MW13: 72.48487519
A14: 8 | B14: 72.65406612 | C14: 72.64512548 | D14: 72.63611848 | E14: 72.60996499 | F14: 72.59736231 | G14: 72.59511958 | H14: 72.58353092 | I14: 72.57459028 | J14: 72.56558328 | K14: 72.54712323 | L14: 72.53942979 | M14: 72.52458438 | N14: 72.51299572 | O14: 72.50405508 | P14: 72.50331538 | Q14: 72.49504808 | R14: 72.47694463 | S14: 72.47658803 | T14: 72.46889459 | U14: 72.46867733 | V14: 72.45882677 | W14: 72.45404918 | X14: 72.44690591 | Y14: 72.42767844 | Z14: 72.40926844 | AA14: 72.40605283 | AB14: 72.39835939 | AC14: 72.39814213 | AD14: 72.3828977 | AE14: 72.3687319 | AF14: 73.34862013 | AG14: 73.27808493 | AH14: 73.20754973 | AI14: 73.13701453 | AJ14: 73.10364807 | AK14: 73.09470742 | AL14: 73.06647933 | AM14: 73.04010857 | AN14: 73.03311287 | AO14: 73.02417222 | AP14: 72.96957338 | AQ14: 72.96257767 | AR14: 72.95363702 | AS14: 72.89903818 | AT14: 72.89204247 | AU14: 72.88310182 | AV14: 72.82850298 | AW14: 72.82150727 | AX14: 72.81256662 | AY14: 72.79513652 | AZ14: 72.78619588 | BA14: 72.78545618 | BB14: 72.77718887 | BC14: 72.75796778 | BD14: 72.73618998 | BE14: 72.72460132 | BF14: 72.71566068 | BG14: 72.70665367 | BH14: 72.69140924 | BI14: 72.66565478 | BJ14: 72.15984066 | BK14: 72.1571263 | BL14: 72.1539486 | BM14: 72.15214012 | BN14: 72.15031522 | BO14: 72.14936108 | BP14: 72.14553764 | BQ14: 72.13839436 | BR14: 72.12375984 | BS14: 72.1007569 | BT14: 72.09754128 | BU14: 72.08984784 | BV14: 72.08930546 | BW14: 72.0865911 | BX14: 72.0834134 | BY14: 72.08263903 | BZ14: 72.08160492 | CA14: 72.07882588 | CB14: 72.07071818 | CC14: 72.06022034 | CD14: 72.05626829 | CE14: 72.05322464 | CF14: 72.04434742 | CG14: 72.02700608 | CH14: 72.02354785 | CI14: 72.01931264 | CJ14: 72.01877026 | CK14: 72.0128782 | CL14: 72.01106972 | CM14: 72.00829068 | CN14: 72.36477983 | CO14: 72.35714324 | CP14: 72.35285898 | CQ14: 72.33551763 | CR14: 72.32782419 | CS14: 72.32760693 | CT14: 72.30145343 | CU14: 72.30091106 | CV14: 72.2981967 | CW14: 72.29321052 | CX14: 72.29043148 | CY14: 72.28885077 | CZ14: 72.28660804 | DA14: 72.2707329 | DB14: 72.26498243 | DC14: 72.25881204 | DD14: 72.25707173 | DE14: 72.23861168 | DF14: 72.23091823 | DG14: 72.23037586 | DH14: 72.2276615 | DI14: 72.22267532 | DJ14: 72.21989628 | DK14: 72.21607284 | DL14: 72.19480383 | DM14: 72.18653653 | DN14: 72.17668597 | DO14: 72.16807648 | DP14: 72.16476511 | DQ14: 72.16038304 | DR14: 71.83485864 | DS14: 71.82463325 | DT14: 71.82290188 | DU14: 71.81524829 | DV14: 71.80846809 | DW14: 71.80058265 | DX14: 71.78079391 | DY14: 71.78078878 | DZ14: 71.77807955 | EA14: 71.77490186 | EB14: 71.77412749 | EC14: 71.77309338 | ED14: 71.77031433 | EE14: 71.76432344 | EF14: 71.76220662 | EG14: 71.75409805 | EH14: 71.75236668 | EI14: 71.74471309 | EJ14: 71.74140705 | EK14: 71.73793289 | EL14: 71.71679365 | EM14: 71.71503629 | EN14: 71.71025871 | EO14: 71.70653572 | EP14: 71.70436666 | EQ14: 71.70255818 | ER14: 71.69977913 | ES14: 71.69378825 | ET14: 71.68674185 | EU14: 71.68356285 | EV14: 71.99239951 | EW14: 71.98968514 | EX14: 71.98469898 | EY14: 71.98268944 | EZ14: 71.98191993 | FA14: 71.96888265 | FB14: 71.96397228 | FC14: 71.96222136 | FD14: 71.95647088 | FE14: 71.95030049 | FF14: 71.942343 | FG14: 71.92950091 | FH14: 71.92186431 | FI14: 71.91914994 | FJ14: 71.91416378 | FK14: 71.91215424 | FL14: 71.91138473 | FM14: 71.90539384 | FN14: 71.89343708 | FO14: 71.87483572 | FP14: 71.8718078 | FQ14: 71.86817442 | FR14: 71.85625356 | FS14: 71.85132911 | FT14: 71.84861474 | FU14: 71.84543706 | FV14: 71.84362858 | FW14: 71.84161904 | FX14: 71.84084953 | FY14: 71.83545398 | FZ14: 71.51439034 | GA14: 71.51132969 | GB14: 71.5071147 | GC14: 71.49995654 | GD14: 71.49207111 | GE14: 71.47893854 | GF14: 71.47227724 | GG14: 71.47011492 | GH14: 71.46992403 | GI14: 71.4558119 | GJ14: 71.44982102 | GK14: 71.44558649 | GL14: 71.44385514 | GM14: 71.44079449 | GN14: 71.4365795 | GO14: 71.43465285 | GP14: 71.4328955 | GQ14: 71.42942134 | GR14: 71.42439492 | GS14: 71.4082821 | GT14: 71.39957972 | GU14: 71.39938883 | GV14: 71.39802418 | GW14: 71.38851076 | GX14: 71.3852767 | GY14: 71.3848916 | GZ14: 71.37928582 | HA14: 71.37824337 | HB14: 71.37823031 | HC14: 71.37698748 | HD14: 71.68183148 | HE14: 71.67417789 | HF14: 71.66739769 | HG14: 71.66037111 | HH14: 71.65912828 | HI14: 71.65546074 | HJ14: 71.64736011 | HK14: 71.63383146 | HL14: 71.62325305 | HM14: 71.62274671 | HN14: 71.62098937 | HO14: 71.61302765 | HP14: 71.61248879 | HQ14: 71.60364269 | HR14: 71.5968823 | HS14: 71.59686249 | HT14: 71.59269492 | HU14: 71.58492554 | HV14: 71.56632417 | HW14: 71.56329626 | HX14: 71.54249245 | HY14: 71.53310749 | HZ14: 71.52869978 | IA14: 71.52694244 | IB14: 71.5263471 | IC14: 71.52632729 | ID14: 71.52035622 | IE14: 71.51844185 | IF14: 71.51805788 | IG14: 71.51612169 | IH14: 71.24678329 | II14: 71.23821542 | IJ14: 71.23591708 | IK14: 71.23398089 | IL14: 71.22918889 | IM14: 71.2249739 | IN14: 71.22018824 | IO14: 71.21781574 | IP14: 71.21184467 | IQ14: 71.21129506 | IR14: 71.20993031 | IS14: 71.20954634 | IT14: 71.20281815 | IU14: 71.20041689 | IV14: 71.19966161 | IW14: 71.19860315 | IX14: 71.19679774 | IY14: 71.19312927 | IZ14: 71.19256081 | JA14: 71.19014951 | JB14: 71.18797412 | JC14: 71.18778323 | JD14: 71.18644411 | JE14: 71.17624809 | JF14: 71.17042699 | JG14: 71.16918416 | JH14: 71.16160338 | JI14: 71.16141248 | JJ14: 71.15230913 | JK14: 71.15130287 | JL14: 71.37505129 | JM14: 71.37453798 | JN14: 71.37331994 | JO14: 71.37025929 | JP14: 71.3660443 | JQ14: 71.35888614 | JR14: 71.35061674 | JS14: 71.34073201 | JT14: 71.34060591 | JU14: 71.33884857 | JV14: 71.32904452 | JW14: 71.32885363 | JX14: 71.31731849 | JY14: 71.3147415 | JZ14: 71.31423517 | KA14: 71.30875062 | KB14: 71.30451609 | KC14: 71.30397724 | KD14: 71.29972409 | KE14: 71.2955091 | KF14: 71.29446383 | KG14: 71.29084467 | KH14: 71.28835094 | KI14: 71.28419644 | KJ14: 71.28418337 | KK14: 71.28049104 | KL14: 71.27019681 | KM14: 71.26366447 | KN14: 71.25850932 | KO14: 71.25831843 | KP14: 71.03222046 | KQ14: 71.03209437 | KR14: 71.02811376 | KS14: 71.02053298 | KT14: 71.02034208 | KU14: 71.01232303 | KV14: 71.01023247 | KW14: 71.00880695 | KX14: 71.00446694 | KY14: 71.00205565 | KZ14: 71.00023907 | LA14: 70.99968947 | LB14: 70.99835024 | LC14: 70.99121255 | LD14: 70.99053389 | LE14: 70.98699755 | LF14: 70.98595227 | LG14: 70.98233313 | LH14: 70.98152367 | LI14: 70.97625757 | LJ14: 70.97568489 | LK14: 70.9719795 | LL14: 70.96421526 | LM14: 70.96168527 | LN14: 70.95738236 | LO14: 70.95515292 | LP14: 70.94999778 | LQ14: 70.94980688 | LR14: 70.93925906 | LS14: 70.93827175 | LT14: 71.14130947 | LU14: 71.14075986 | LV14: 71.13228295 | LW14: 71.12912641 | LX14: 71.12806795 | LY14: 71.1261413 | LZ14: 71.12259407 | MA14: 71.11588338 | MB14: 71.10636996 | MC14: 71.10571289 | MD14: 71.1027508 | ME14: 71.09851388 | MF14: 71.09610258 | MG14: 71.09484668 | MH14: 71.09239718 | MI14: 71.09106818 | MJ14: 71.09087728 | MK14: 71.07999921 | ML14: 71.07638006 | MM14: 71.07077427 | MN14: 71.07022467 | MO14: 71.06973183 | MP14: 71.06847594 | MQ14: 71.06602643 | MR14: 71.06174775 | MS14: 71.05859121 | MT14: 71.05826219 | MU14: 71.05753275 | MV14: 71.05205887 | MW14: 71.03517769
A15: 9 | B15: 71.2009848 | C15: 71.19222297 | D15: 71.18339611 | E15: 71.15776569 | F15: 71.14541507 | G15: 71.14321719 | H15: 71.1318603 | I15: 71.12309847 | J15: 71.11427161 | K15: 71.09618076 | L15: 71.08864119 | M15: 71.07409269 | N15: 71.06273581 | O15: 71.05397398 | P15: 71.05324908 | Q15: 71.04514711 | R15: 71.02740574 | S15: 71.02705627 | T15: 71.0195167 | U15: 71.01930378 | V15: 71.00965024 | W15: 71.0049682 | X15: 70.99796779 | Y15: 70.97912487 | Z15: 70.96108308 | AA15: 70.95793177 | AB15: 70.9503922 | AC15: 70.95017929 | AD15: 70.93523975 | AE15: 70.92135726 | AF15: 71.88164772 | AG15: 71.81252323 | AH15: 71.74339873 | AI15: 71.67427424 | AJ15: 71.64157511 | AK15: 71.63281327 | AL15: 71.60514974 | AM15: 71.5793064 | AN15: 71.57245061 | AO15: 71.56368878 | AP15: 71.51018191 | AQ15: 71.50332612 | AR15: 71.49456428 | AS15: 71.44105741 | AT15: 71.43420162 | AU15: 71.42543979 | AV15: 71.37193292 | AW15: 71.36507713 | AX15: 71.35631529 | AY15: 71.33923379 | AZ15: 71.33047196 | BA15: 71.32974706 | BB15: 71.3216451 | BC15: 71.30280842 | BD15: 71.28146618 | BE15: 71.27010929 | BF15: 71.26134746 | BG15: 71.2525206 | BH15: 71.23758106 | BI15: 71.21234168 | BJ15: 70.71664384 | BK15: 70.71398377 | BL15: 70.71086963 | BM15: 70.70909732 | BN15: 70.70730891 | BO15: 70.70637386 | BP15: 70.70262688 | BQ15: 70.69562647 | BR15: 70.68128464 | BS15: 70.65874176 | BT15: 70.65559045 | BU15: 70.64805088 | BV15: 70.64751935 | BW15: 70.64485928 | BX15: 70.64174513 | BY15: 70.64098625 | BZ15: 70.63997282 | CA15: 70.63724936 | CB15: 70.62930381 | CC15: 70.61901594 | CD15: 70.61514292 | CE15: 70.61216015 | CF15: 70.60346047 | CG15: 70.58646596 | CH15: 70.58307689 | CI15: 70.57892638 | CJ15: 70.57839485 | CK15: 70.57262064 | CL15: 70.57084833 | CM15: 70.56812487 | CN15: 70.91748424 | CO15: 70.91000037 | CP15: 70.9058018 | CQ15: 70.88880728 | CR15: 70.8812677 | CS15: 70.88105479 | CT15: 70.85542437 | CU15: 70.85489283 | CV15: 70.85223276 | CW15: 70.84734631 | CX15: 70.84462285 | CY15: 70.84307375 | CZ15: 70.84087588 | DA15: 70.82531824 | DB15: 70.81968278 | DC15: 70.8136358 | DD15: 70.8119303 | DE15: 70.79383944 | DF15: 70.78629987 | DG15: 70.78576834 | DH15: 70.78310827 | DI15: 70.77822182 | DJ15: 70.77549835 | DK15: 70.77175138 | DL15: 70.75090775 | DM15: 70.7428058 | DN15: 70.73315225 | DO15: 70.72471495 | DP15: 70.72146981 | DQ15: 70.71717537 | DR15: 70.39816147 | DS15: 70.38814058 | DT15: 70.38644384 | DU15: 70.37894332 | DV15: 70.37229873 | DW15: 70.364571 | DX15: 70.34517803 | DY15: 70.34517301 | DZ15: 70.34251795 | EA15: 70.33940382 | EB15: 70.33864494 | EC15: 70.33763151 | ED15: 70.33490804 | EE15: 70.32903698 | EF15: 70.32696249 | EG15: 70.31901609 | EH15: 70.31731935 | EI15: 70.30981883 | EJ15: 70.30657891 | EK15: 70.30317423 | EL15: 70.28245778 | EM15: 70.28073557 | EN15: 70.27605354 | EO15: 70.27240501 | EP15: 70.27027933 | EQ15: 70.26850702 | ER15: 70.26578355 | ES15: 70.25991248 | ET15: 70.25300702 | EU15: 70.24989159 | EV15: 70.55255152 | EW15: 70.54989144 | EX15: 70.545005 | EY15: 70.54303565 | EZ15: 70.54228153 | FA15: 70.529505 | FB15: 70.52469284 | FC15: 70.52297693 | FD15: 70.51734146 | FE15: 70.51129448 | FF15: 70.50349614 | FG15: 70.49091089 | FH15: 70.48342703 | FI15: 70.48076695 | FJ15: 70.4758805 | FK15: 70.47391116 | FL15: 70.47315703 | FM15: 70.46728597 | FN15: 70.45556834 | FO15: 70.43733901 | FP15: 70.43437165 | FQ15: 70.43081093 | FR15: 70.41912849 | FS15: 70.41430253 | FT15: 70.41164245 | FU15: 70.40852832 | FV15: 70.40675601 | FW15: 70.40478666 | FX15: 70.40403254 | FY15: 70.3987449 | FZ15: 70.08410253 | GA15: 70.0811031 | GB15: 70.07697241 | GC15: 70.06995741 | GD15: 70.06222969 | GE15: 70.04935977 | GF15: 70.04283169 | GG15: 70.04071262 | GH15: 70.04052555 | GI15: 70.02669566 | GJ15: 70.0208246 | GK15: 70.01667476 | GL15: 70.01497804 | GM15: 70.0119786 | GN15: 70.00784791 | GO15: 70.00595979 | GP15: 70.00423759 | GQ15: 70.00083291 | GR15: 69.99590703 | GS15: 69.98011646 | GT15: 69.97158813 | GU15: 69.97140105 | GV15: 69.9700637 | GW15: 69.96074054 | GX15: 69.95757117 | GY15: 69.95719377 | GZ15: 69.9517001 | HA15: 69.95067851 | HB15: 69.9506657 | HC15: 69.94944773 | HD15: 70.24819485 | HE15: 70.24069433 | HF15: 70.23404974 | HG15: 70.22716369 | HH15: 70.22594572 | HI15: 70.22235152 | HJ15: 70.21441291 | HK15: 70.20115483 | HL15: 70.19078798 | HM15: 70.19029178 | HN15: 70.18856958 | HO15: 70.18076709 | HP15: 70.18023902 | HQ15: 70.17156984 | HR15: 70.16494465 | HS15: 70.16492524 | HT15: 70.16084102 | HU15: 70.15322703 | HV15: 70.13499769 | HW15: 70.13203033 | HX15: 70.1116426 | HY15: 70.10244534 | HZ15: 70.09812579 | IA15: 70.09640359 | IB15: 70.09582016 | IC15: 70.09580074 | ID15: 70.08994909 | IE15: 70.08807302 | IF15: 70.08769672 | IG15: 70.08579926 | IH15: 69.82184762 | II15: 69.81345111 | IJ15: 69.81119874 | IK15: 69.80930128 | IL15: 69.80460512 | IM15: 69.80047442 | IN15: 69.79578447 | IO15: 69.79345942 | IP15: 69.78760777 | IQ15: 69.78706916 | IR15: 69.7857317 | IS15: 69.78535541 | IT15: 69.77876179 | IU15: 69.77640855 | IV15: 69.77566838 | IW15: 69.77463108 | IX15: 69.77286179 | IY15: 69.76926668 | IZ15: 69.7687096 | JA15: 69.76634652 | JB15: 69.76421464 | JC15: 69.76402757 | JD15: 69.76271523 | JE15: 69.75272313 | JF15: 69.74701845 | JG15: 69.74580048 | JH15: 69.73837131 | JI15: 69.73818423 | JJ15: 69.72926295 | JK15: 69.72827681 | JL15: 69.94755027 | JM15: 69.94704722 | JN15: 69.94585354 | JO15: 69.94285411 | JP15: 69.93872341 | JQ15: 69.93170841 | JR15: 69.9236044 | JS15: 69.91391737 | JT15: 69.91379379 | JU15: 69.9120716 | JV15: 69.90246363 | JW15: 69.90227656 | JX15: 69.89097212 | JY15: 69.88844667 | JZ15: 69.88795046 | KA15: 69.88257561 | KB15: 69.87842577 | KC15: 69.8778977 | KD15: 69.87372961 | KE15: 69.86959892 | KF15: 69.86857455 | KG15: 69.86502778 | KH15: 69.86258392 | KI15: 69.85851252 | KJ15: 69.8584997 | KK15: 69.85488122 | KL15: 69.84479287 | KM15: 69.83839118 | KN15: 69.83333914 | KO15: 69.83315206 | KP15: 69.61157606 | KQ15: 69.61145248 | KR15: 69.60755149 | KS15: 69.60012232 | KT15: 69.59993524 | KU15: 69.59207657 | KV15: 69.59002782 | KW15: 69.58863081 | KX15: 69.5843776 | KY15: 69.58201453 | KZ15: 69.58023429 | LA15: 69.57969568 | LB15: 69.57838324 | LC15: 69.5713883 | LD15: 69.57072321 | LE15: 69.5672576 | LF15: 69.56623323 | LG15: 69.56268646 | LH15: 69.5618932 | LI15: 69.55673242 | LJ15: 69.55617119 | LK15: 69.55253991 | LL15: 69.54493096 | LM15: 69.54245156 | LN15: 69.53823471 | LO15: 69.53604986 | LP15: 69.53099782 | LQ15: 69.53081074 | LR15: 69.52047388 | LS15: 69.51950631 | LT15: 69.71848328 | LU15: 69.71794467 | LV15: 69.70963729 | LW15: 69.70654388 | LX15: 69.70550659 | LY15: 69.70361847 | LZ15: 69.70014219 | MA15: 69.69356571 | MB15: 69.68424256 | MC15: 69.68359863 | MD15: 69.68069579 | ME15: 69.6765436 | MF15: 69.67418052 | MG15: 69.67294975 | MH15: 69.67054924 | MI15: 69.66924681 | MJ15: 69.66905973 | MK15: 69.65839923 | ML15: 69.65485246 | MM15: 69.64935878 | MN15: 69.64882017 | MO15: 69.64833719 | MP15: 69.64710642 | MQ15: 69.6447059 | MR15: 69.64051279 | MS15: 69.63741939 | MT15: 69.63709695 | MU15: 69.63638209 | MV15: 69.63101769 | MW15: 69.61447414
A16: 10 | B16: 69.7769651 | C16: 69.76837851 | D16: 69.75972818 | E16: 69.73461037 | F16: 69.72250677 | G16: 69.72035284 | H16: 69.7092231 | I16: 69.7006365 | J16: 69.69198618 | K16: 69.67425715 | L16: 69.66686837 | M16: 69.65261084 | N16: 69.64148109 | O16: 69.6328945 | P16: 69.63218409 | Q16: 69.62424417 | R16: 69.60685762 | S16: 69.60651514 | T16: 69.59912636 | U16: 69.59891771 | V16: 69.58945723 | W16: 69.58486883 | X16: 69.57800843 | Y16: 69.55954237 | Z16: 69.54186141 | AA16: 69.53877314 | AB16: 69.53138436 | AC16: 69.5311757 | AD16: 69.51653495 | AE16: 69.50293011 | AF16: 70.44401477 | AG16: 70.37627276 | AH16: 70.30853076 | AI16: 70.24078875 | AJ16: 70.20874361 | AK16: 70.20015701 | AL16: 70.17304675 | AM16: 70.14772028 | AN16: 70.1410016 | AO16: 70.132415 | AP16: 70.07997827 | AQ16: 70.0732596 | AR16: 70.064673 | AS16: 70.01223626 | AT16: 70.00551759 | AU16: 69.99693099 | AV16: 69.94449426 | AW16: 69.93777559 | AX16: 69.92918898 | AY16: 69.91244911 | AZ16: 69.90386252 | BA16: 69.90315212 | BB16: 69.8952122 | BC16: 69.87675225 | BD16: 69.85583686 | BE16: 69.84470711 | BF16: 69.83612051 | BG16: 69.82747019 | BH16: 69.81282944 | BI16: 69.78809485 | BJ16: 69.30231097 | BK16: 69.2997041 | BL16: 69.29665224 | BM16: 69.29491537 | BN16: 69.29316274 | BO16: 69.29224638 | BP16: 69.28857435 | BQ16: 69.28171395 | BR16: 69.26765895 | BS16: 69.24556693 | BT16: 69.24247864 | BU16: 69.23508986 | BV16: 69.23456896 | BW16: 69.23196209 | BX16: 69.22891023 | BY16: 69.22816653 | BZ16: 69.22717337 | CA16: 69.22450437 | CB16: 69.21671774 | CC16: 69.20663562 | CD16: 69.20284006 | CE16: 69.19991694 | CF16: 69.19139127 | CG16: 69.17473664 | CH16: 69.17141535 | CI16: 69.16734786 | CJ16: 69.16682696 | CK16: 69.16116823 | CL16: 69.15943136 | CM16: 69.15676237 | CN16: 69.49913455 | CO16: 69.49180036 | CP16: 69.48768576 | CQ16: 69.47103113 | CR16: 69.46364235 | CS16: 69.4634337 | CT16: 69.43831588 | CU16: 69.43779498 | CV16: 69.43518811 | CW16: 69.43039939 | CX16: 69.42773039 | CY16: 69.42621228 | CZ16: 69.42405836 | DA16: 69.40881188 | DB16: 69.40328913 | DC16: 69.39736308 | DD16: 69.39569169 | DE16: 69.37796265 | DF16: 69.37057387 | DG16: 69.37005297 | DH16: 69.3674461 | DI16: 69.36265738 | DJ16: 69.35998839 | DK16: 69.35631635 | DL16: 69.3358896 | DM16: 69.32794969 | DN16: 69.31848921 | DO16: 69.31022065 | DP16: 69.30704041 | DQ16: 69.30283187 | DR16: 68.99019824 | DS16: 68.98037777 | DT16: 68.97871497 | DU16: 68.97136446 | DV16: 68.96485275 | DW16: 68.95727958 | DX16: 68.93827447 | DY16: 68.93826955 | DZ16: 68.9356676 | EA16: 68.93261574 | EB16: 68.93187204 | EC16: 68.93087888 | ED16: 68.92820988 | EE16: 68.92245624 | EF16: 68.92042324 | EG16: 68.91263576 | EH16: 68.91097296 | EI16: 68.90362245 | EJ16: 68.90044733 | EK16: 68.89711075 | EL16: 68.87680862 | EM16: 68.87512086 | EN16: 68.87053247 | EO16: 68.86695691 | EP16: 68.86487374 | EQ16: 68.86313688 | ER16: 68.86046787 | ES16: 68.85471423 | ET16: 68.84794688 | EU16: 68.84489376 | EV16: 69.14150049 | EW16: 69.13889361 | EX16: 69.1341049 | EY16: 69.13217494 | EZ16: 69.1314359 | FA16: 69.1189149 | FB16: 69.11419898 | FC16: 69.11251739 | FD16: 69.10699463 | FE16: 69.10106859 | FF16: 69.09342622 | FG16: 69.08109267 | FH16: 69.07375849 | FI16: 69.07115161 | FJ16: 69.06636289 | FK16: 69.06443293 | FL16: 69.06369389 | FM16: 69.05794025 | FN16: 69.04645697 | FO16: 69.02859223 | FP16: 69.02568421 | FQ16: 69.02219471 | FR16: 69.01074592 | FS16: 69.00601648 | FT16: 69.0034096 | FU16: 69.00035775 | FV16: 68.99862089 | FW16: 68.99669093 | FX16: 68.99595189 | FY16: 68.99077 | FZ16: 68.68242048 | GA16: 68.67948104 | GB16: 68.67543296 | GC16: 68.66855826 | GD16: 68.66098509 | GE16: 68.64837257 | GF16: 68.64197506 | GG16: 68.63989837 | GH16: 68.63971504 | GI16: 68.62616175 | GJ16: 68.62040811 | GK16: 68.61634127 | GL16: 68.61467848 | GM16: 68.61173903 | GN16: 68.60769095 | GO16: 68.6058406 | GP16: 68.60415283 | GQ16: 68.60081625 | GR16: 68.59598889 | GS16: 68.58051413 | GT16: 68.57215636 | GU16: 68.57197303 | GV16: 68.57066242 | GW16: 68.56152573 | GX16: 68.55841974 | GY16: 68.55804989 | GZ16: 68.5526661 | HA16: 68.55166494 | HB16: 68.55165239 | HC16: 68.55045878 | HD16: 68.84323096 | HE16: 68.83588044 | HF16: 68.82936874 | HG16: 68.82262041 | HH16: 68.8214268 | HI16: 68.81790449 | HJ16: 68.81012465 | HK16: 68.79713173 | HL16: 68.78697223 | HM16: 68.78648594 | HN16: 68.78479819 | HO16: 68.77715175 | HP16: 68.77663424 | HQ16: 68.76813844 | HR16: 68.76164576 | HS16: 68.76162674 | HT16: 68.7576242 | HU16: 68.75016249 | HV16: 68.73229773 | HW16: 68.72938973 | HX16: 68.70940975 | HY16: 68.70039643 | HZ16: 68.69616327 | IA16: 68.69447551 | IB16: 68.69390376 | IC16: 68.69388473 | ID16: 68.68815011 | IE16: 68.68631156 | IF16: 68.68594279 | IG16: 68.68408327 | IH16: 68.42541067 | II16: 68.41718209 | IJ16: 68.41497477 | IK16: 68.41311525 | IL16: 68.40851301 | IM16: 68.40446493 | IN16: 68.39986878 | IO16: 68.39759023 | IP16: 68.39185562 | IQ16: 68.39132778 | IR16: 68.39001707 | IS16: 68.3896483 | IT16: 68.38318655 | IU16: 68.38088038 | IV16: 68.38015501 | IW16: 68.37913846 | IX16: 68.37740455 | IY16: 68.37388135 | IZ16: 68.3733354 | JA16: 68.37101959 | JB16: 68.36893035 | JC16: 68.36874701 | JD16: 68.36746092 | JE16: 68.35766867 | JF16: 68.35207808 | JG16: 68.35088447 | JH16: 68.34360388 | JI16: 68.34342054 | JJ16: 68.33467769 | JK16: 68.33371127 | JL16: 68.54859926 | JM16: 68.54810628 | JN16: 68.54693647 | JO16: 68.54399703 | JP16: 68.53994895 | JQ16: 68.53307425 | JR16: 68.52513231 | JS16: 68.51563902 | JT16: 68.51551792 | JU16: 68.51383016 | JV16: 68.50441436 | JW16: 68.50423103 | JX16: 68.49315268 | JY16: 68.49067774 | JZ16: 68.49019146 | KA16: 68.4849241 | KB16: 68.48085726 | KC16: 68.48033974 | KD16: 68.47625502 | KE16: 68.47220694 | KF16: 68.47120306 | KG16: 68.46772722 | KH16: 68.46533224 | KI16: 68.46134227 | KJ16: 68.46132971 | KK16: 68.4577836 | KL16: 68.44789702 | KM16: 68.44162336 | KN16: 68.43667235 | KO16: 68.43648902 | KP16: 68.21934453 | KQ16: 68.21922343 | KR16: 68.21540046 | KS16: 68.20811987 | KT16: 68.20793653 | KU16: 68.20023504 | KV16: 68.19822726 | KW16: 68.19685819 | KX16: 68.19269005 | KY16: 68.19037424 | KZ16: 68.1886296 | LA16: 68.18810176 | LB16: 68.18681557 | LC16: 68.17996053 | LD16: 68.17930875 | LE16: 68.17591245 | LF16: 68.17490856 | LG16: 68.17143274 | LH16: 68.17065533 | LI16: 68.16559777 | LJ16: 68.16504777 | LK16: 68.16148911 | LL16: 68.15403234 | LM16: 68.15160253 | LN16: 68.14747002 | LO16: 68.14532886 | LP16: 68.14037787 | LQ16: 68.14019452 | LR16: 68.1300644 | LS16: 68.12911618 | LT16: 68.32411361 | LU16: 68.32358577 | LV16: 68.31544454 | LW16: 68.312413 | LX16: 68.31139646 | LY16: 68.3095461 | LZ16: 68.30613934 | MA16: 68.2996944 | MB16: 68.29055771 | MC16: 68.28992666 | MD16: 68.28708187 | ME16: 68.28301273 | MF16: 68.28069691 | MG16: 68.27949076 | MH16: 68.27713825 | MI16: 68.27586188 | MJ16: 68.27567854 | MK16: 68.26523124 | ML16: 68.26175541 | MM16: 68.25637161 | MN16: 68.25584377 | MO16: 68.25537045 | MP16: 68.25416429 | MQ16: 68.25181178 | MR16: 68.24770254 | MS16: 68.244671 | MT16: 68.24435501 | MU16: 68.24365445 | MV16: 68.23839734 | MW16: 68.22218465
C21: eff
B22: Wood Pallets
B23: Within 500 meters of coast
B24: 0.08
B25: Soft (0-60 mg/L salts)
B26: 5 Days a week
B28: final

Sheet Data2 (hidden)
A1: Wood Pallets | B1: Wood Pallets | C1: Wood Pallets | D1: Wood Pallets | E1: Wood Pallets | F1: Wood Pallets | G1: Wood Pallets | H1: Wood Pallets | I1: Wood Pallets | J1: Wood Pallets | K1: Wood Pallets | L1: Wood Pallets | M1: Wood Pallets | N1: Wood Pallets | O1: Wood Pallets | P1: Wood Pallets | Q1: Wood Pallets | R1: Wood Pallets | S1: Wood Pallets | T1: Wood Pallets | U1: Wood Pallets | V1: Wood Pallets | W1: Wood Pallets | X1: Wood Pallets | Y1: Wood Pallets | Z1: Wood Pallets | AA1: Wood Pallets | AB1: Wood Pallets | AC1: Wood Pallets | AD1: Wood Pallets | AE1: Wood Pallets | AF1: Wood Pallets | AG1: Wood Pallets | AH1: Wood Pallets | AI1: Wood Pallets | AJ1: Wood Pallets | AK1: Wood Pallets | AL1: Wood Pallets | AM1: Wood Pallets | AN1: Wood Pallets | AO1: Wood Pallets | AP1: Wood Pallets | AQ1: Wood Pallets | AR1: Wood Pallets | AS1: Wood Pallets | AT1: Wood Pallets | AU1: Wood Pallets | AV1: Wood Pallets | AW1: Wood Pallets | AX1: Wood Pallets | AY1: Wood Pallets | AZ1: Wood Pallets | BA1: Wood Pallets | BB1: Wood Pallets | BC1: Wood Pallets | BD1: Wood Pallets | BE1: Wood Pallets | BF1: Wood Pallets | BG1: Wood Pallets | BH1: Wood Pallets | BI1: Wood Logs | BJ1: Wood Logs | BK1: Wood Logs | BL1: Wood Logs | BM1: Wood Logs | BN1: Wood Logs | BO1: Wood Logs | BP1: Wood Logs | BQ1: Wood Logs | BR1: Wood Logs | BS1: Wood Logs | BT1: Wood Logs | BU1: Wood Logs | BV1: Wood Logs | BW1: Wood Logs | BX1: Wood Logs | BY1: Wood Logs | BZ1: Wood Logs | CA1: Wood Logs | CB1: Wood Logs | CC1: Wood Logs | CD1: Wood Logs | CE1: Wood Logs | CF1: Wood Logs | CG1: Wood Logs | CH1: Wood Logs | CI1: Wood Logs | CJ1: Wood Logs | CK1: Wood Logs | CL1: Wood Logs | CM1: Wood Logs | CN1: Wood Logs | CO1: Wood Logs | CP1: Wood Logs | CQ1: Wood Logs | CR1: Wood Logs | CS1: Wood Logs | CT1: Wood Logs | CU1: Wood Logs | CV1: Wood Logs | CW1: Wood Logs | CX1: Wood Logs | CY1: Wood Logs | CZ1: Wood Logs | DA1: Wood Logs | DB1: Wood Logs | DC1: Wood Logs | DD1: Wood Logs | DE1: Wood Logs | DF1: Wood Logs | DG1: Wood Logs | DH1: Wood Logs | DI1: Wood Logs | DJ1: Wood Logs | DK1: Wood Logs | DL1: Wood Logs | DM1: Wood Logs | DN1: Wood Logs | DO1: Wood Logs | DP1: Wood Logs | DQ1: Wood Chip | DR1: Wood Chip | DS1: Wood Chip | DT1: Wood Chip | DU1: Wood Chip | DV1: Wood Chip | DW1: Wood Chip | DX1: Wood Chip | DY1: Wood Chip | DZ1: Wood Chip | EA1: Wood Chip | EB1: Wood Chip | EC1: Wood Chip | ED1: Wood Chip | EE1: Wood Chip | EF1: Wood Chip | EG1: Wood Chip | EH1: Wood Chip | EI1: Wood Chip | EJ1: Wood Chip | EK1: Wood Chip | EL1: Wood Chip | EM1: Wood Chip | EN1: Wood Chip | EO1: Wood Chip | EP1: Wood Chip | EQ1: Wood Chip | ER1: Wood Chip | ES1: Wood Chip | ET1: Wood Chip | EU1: Wood Chip | EV1: Wood Chip | EW1: Wood Chip | EX1: Wood Chip | EY1: Wood Chip | EZ1: Wood Chip | FA1: Wood Chip | FB1: Wood Chip | FC1: Wood Chip | FD1: Wood Chip | FE1: Wood Chip | FF1: Wood Chip | FG1: Wood Chip | FH1: Wood Chip | FI1: Wood Chip | FJ1: Wood Chip | FK1: Wood Chip | FL1: Wood Chip | FM1: Wood Chip | FN1: Wood Chip | FO1: Wood Chip | FP1: Wood Chip | FQ1: Wood Chip | FR1: Wood Chip | FS1: Wood Chip | FT1: Wood Chip | FU1: Wood Chip | FV1: Wood Chip | FW1: Wood Chip | FX1: Wood Chip | FY1: Rice Husk | FZ1: Rice Husk | GA1: Rice Husk | GB1: Rice Husk | GC1: Rice Husk | GD1: Rice Husk | GE1: Rice Husk | GF1: Rice Husk | GG1: Rice Husk | GH1: Rice Husk | GI1: Rice Husk | GJ1: Rice Husk | GK1: Rice Husk | GL1: Rice Husk | GM1: Rice Husk | GN1: Rice Husk | GO1: Rice Husk | GP1: Rice Husk | GQ1: Rice Husk | GR1: Rice Husk | GS1: Rice Husk | GT1: Rice Husk | GU1: Rice Husk | GV1: Rice Husk | GW1: Rice Husk | GX1: Rice Husk | GY1: Rice Husk | GZ1: Rice Husk | HA1: Rice Husk | HB1: Rice Husk | HC1: Rice Husk | HD1: Rice Husk | HE1: Rice Husk | HF1: Rice Husk | HG1: Rice Husk | HH1: Rice Husk | HI1: Rice Husk | HJ1: Rice Husk | HK1: Rice Husk | HL1: Rice Husk | HM1: Rice Husk | HN1: Rice Husk | HO1: Rice Husk | HP1: Rice Husk | HQ1: Rice Husk | HR1: Rice Husk | HS1: Rice Husk | HT1: Rice Husk | HU1: Rice Husk | HV1: Rice Husk | HW1: Rice Husk | HX1: Rice Husk | HY1: Rice Husk | HZ1: Rice Husk | IA1: Rice Husk | IB1: Rice Husk | IC1: Rice Husk | ID1: Rice Husk | IE1: Rice Husk | IF1: Rice Husk | IG1: Sugar Cane | IH1: Sugar Cane | II1: Sugar Cane | IJ1: Sugar Cane | IK1: Sugar Cane | IL1: Sugar Cane | IM1: Sugar Cane | IN1: Sugar Cane | IO1: Sugar Cane | IP1: Sugar Cane | IQ1: Sugar Cane | IR1: Sugar Cane | IS1: Sugar Cane | IT1: Sugar Cane | IU1: Sugar Cane | IV1: Sugar Cane | IW1: Sugar Cane | IX1: Sugar Cane | IY1: Sugar Cane | IZ1: Sugar Cane | JA1: Sugar Cane | JB1: Sugar Cane | JC1: Sugar Cane | JD1: Sugar Cane | JE1: Sugar Cane | JF1: Sugar Cane | JG1: Sugar Cane | JH1: Sugar Cane | JI1: Sugar Cane | JJ1: Sugar Cane | JK1: Sugar Cane | JL1: Sugar Cane | JM1: Sugar Cane | JN1: Sugar Cane | JO1: Sugar Cane | JP1: Sugar Cane | JQ1: Sugar Cane | JR1: Sugar Cane | JS1: Sugar Cane | JT1: Sugar Cane | JU1: Sugar Cane | JV1: Sugar Cane | JW1: Sugar Cane | JX1: Sugar Cane | JY1: Sugar Cane | JZ1: Sugar Cane | KA1: Sugar Cane | KB1: Sugar Cane | KC1: Sugar Cane | KD1: Sugar Cane | KE1: Sugar Cane | KF1: Sugar Cane | KG1: Sugar Cane | KH1: Sugar Cane | KI1: Sugar Cane | KJ1: Sugar Cane | KK1: Sugar Cane | KL1: Sugar Cane | KM1: Sugar Cane | KN1: Sugar Cane | KO1: Corn Waste | KP1: Corn Waste | KQ1: Corn Waste | KR1: Corn Waste | KS1: Corn Waste | KT1: Corn Waste | KU1: Corn Waste | KV1: Corn Waste | KW1: Corn Waste | KX1: Corn Waste | KY1: Corn Waste | KZ1: Corn Waste | LA1: Corn Waste | LB1: Corn Waste | LC1: Corn Waste | LD1: Corn Waste | LE1: Corn Waste | LF1: Corn Waste | LG1: Corn Waste | LH1: Corn Waste | LI1: Corn Waste | LJ1: Corn Waste | LK1: Corn Waste | LL1: Corn Waste | LM1: Corn Waste | LN1: Corn Waste | LO1: Corn Waste | LP1: Corn Waste | LQ1: Corn Waste | LR1: Corn Waste | LS1: Corn Waste | LT1: Corn Waste | LU1: Corn Waste | LV1: Corn Waste | LW1: Corn Waste | LX1: Corn Waste | LY1: Corn Waste | LZ1: Corn Waste | MA1: Corn Waste | MB1: Corn Waste | MC1: Corn Waste | MD1: Corn Waste | ME1: Corn Waste | MF1: Corn Waste | MG1: Corn Waste | MH1: Corn Waste | MI1: Corn Waste | MJ1: Corn Waste | MK1: Corn Waste | ML1: Corn Waste | MM1: Corn Waste | MN1: Corn Waste | MO1: Corn Waste | MP1: Corn Waste | MQ1: Corn Waste | MR1: Corn Waste | MS1: Corn Waste | MT1: Corn Waste | MU1: Corn Waste | MV1: Corn Waste
A2: With in 500 meters of costal location | B2: With in 500 meters of costal location | C2: With in 500 meters of costal location | D2: With in 500 meters of costal location | E2: With in 500 meters of costal location | F2: With in 500 meters of costal location | G2: With in 500 meters of costal location | H2: With in 500 meters of costal location | I2: With in 500 meters of costal location | J2: With in 500 meters of costal location | K2: With in 500 meters of costal location | L2: With in 500 meters of costal location | M2: With in 500 meters of costal location | N2: With in 500 meters of costal location | O2: With in 500 meters of costal location | P2: With in 500 meters of costal location | Q2: With in 500 meters of costal location | R2: With in 500 meters of costal location | S2: With in 500 meters of costal location | T2: With in 500 meters of costal location | U2: With in 500 meters of costal location | V2: With in 500 meters of costal location | W2: With in 500 meters of costal location | X2: With in 500 meters of costal location | Y2: With in 500 meters of costal location | Z2: With in 500 meters of costal location | AA2: With in 500 meters of costal location | AB2: With in 500 meters of costal location | AC2: With in 500 meters of costal location | AD2: With in 500 meters of costal location | AE2: Not with in 500 meters of costal location | AF2: Not with in 500 meters of costal location | AG2: Not with in 500 meters of costal location | AH2: Not with in 500 meters of costal location | AI2: Not with in 500 meters of costal location | AJ2: Not with in 500 meters of costal location | AK2: Not with in 500 meters of costal location | AL2: Not with in 500 meters of costal location | AM2: Not with in 500 meters of costal location | AN2: Not with in 500 meters of costal location | AO2: Not with in 500 meters of costal location | AP2: Not with in 500 meters of costal location | AQ2: Not with in 500 meters of costal location | AR2: Not with in 500 meters of costal location | AS2: Not with in 500 meters of costal location | AT2: Not with in 500 meters of costal location | AU2: Not with in 500 meters of costal location | AV2: Not with in 500 meters of costal location | AW2: Not with in 500 meters of costal location | AX2: Not with in 500 meters of costal location | AY2: Not with in 500 meters of costal location | AZ2: Not with in 500 meters of costal location | BA2: Not with in 500 meters of costal location | BB2: Not with in 500 meters of costal location | BC2: Not with in 500 meters of costal location | BD2: Not with in 500 meters of costal location | BE2: Not with in 500 meters of costal location | BF2: Not with in 500 meters of costal location | BG2: Not with in 500 meters of costal location | BH2: Not with in 500 meters of costal location | BI2: With in 500 meters of costal location | BJ2: With in 500 meters of costal location | BK2: With in 500 meters of costal location | BL2: With in 500 meters of costal location | BM2: With in 500 meters of costal location | BN2: With in 500 meters of costal location | BO2: With in 500 meters of costal location | BP2: With in 500 meters of costal location | BQ2: With in 500 meters of costal location | BR2: With in 500 meters of costal location | BS2: With in 500 meters of costal location | BT2: With in 500 meters of costal location | BU2: With in 500 meters of costal location | BV2: With in 500 meters of costal location | BW2: With in 500 meters of costal location | BX2: With in 500 meters of costal location | BY2: With in 500 meters of costal location | BZ2: With in 500 meters of costal location | CA2: With in 500 meters of costal location | CB2: With in 500 meters of costal location | CC2: With in 500 meters of costal location | CD2: With in 500 meters of costal location | CE2: With in 500 meters of costal location | CF2: With in 500 meters of costal location | CG2: With in 500 meters of costal location | CH2: With in 500 meters of costal location | CI2: With in 500 meters of costal location | CJ2: With in 500 meters of costal location | CK2: With in 500 meters of costal location | CL2: With in 500 meters of costal location | CM2: Not with in 500 meters of costal location | CN2: Not with in 500 meters of costal location | CO2: Not with in 500 meters of costal location | CP2: Not with in 500 meters of costal location | CQ2: Not with in 500 meters of costal location | CR2: Not with in 500 meters of costal location | CS2: Not with in 500 meters of costal location | CT2: Not with in 500 meters of costal location | CU2: Not with in 500 meters of costal location | CV2: Not with in 500 meters of costal location | CW2: Not with in 500 meters of costal location | CX2: Not with in 500 meters of costal location | CY2: Not with in 500 meters of costal location | CZ2: Not with in 500 meters of costal location | DA2: Not with in 500 meters of costal location | DB2: Not with in 500 meters of costal location | DC2: Not with in 500 meters of costal location | DD2: Not with in 500 meters of costal location | DE2: Not with in 500 meters of costal location | DF2: Not with in 500 meters of costal location | DG2: Not with in 500 meters of costal location | DH2: Not with in 500 meters of costal location | DI2: Not with in 500 meters of costal location | DJ2: Not with in 500 meters of costal location | DK2: Not with in 500 meters of costal location | DL2: Not with in 500 meters of costal location | DM2: Not with in 500 meters of costal location | DN2: Not with in 500 meters of costal location | DO2: Not with in 500 meters of costal location | DP2: Not with in 500 meters of costal location | DQ2: With in 500 meters of costal location | DR2: With in 500 meters of costal location | DS2: With in 500 meters of costal location | DT2: With in 500 meters of costal location | DU2: With in 500 meters of costal location | DV2: With in 500 meters of costal location | DW2: With in 500 meters of costal location | DX2: With in 500 meters of costal location | DY2: With in 500 meters of costal location | DZ2: With in 500 meters of costal location | EA2: With in 500 meters of costal location | EB2: With in 500 meters of costal location | EC2: With in 500 meters of costal location | ED2: With in 500 meters of costal location | EE2: With in 500 meters of costal location | EF2: With in 500 meters of costal location | EG2: With in 500 meters of costal location | EH2: With in 500 meters of costal location | EI2: With in 500 meters of costal location | EJ2: With in 500 meters of costal location | EK2: With in 500 meters of costal location | EL2: With in 500 meters of costal location | EM2: With in 500 meters of costal location | EN2: With in 500 meters of costal location | EO2: With in 500 meters of costal location | EP2: With in 500 meters of costal location | EQ2: With in 500 meters of costal location | ER2: With in 500 meters of costal location | ES2: With in 500 meters of costal location | ET2: With in 500 meters of costal location | EU2: Not with in 500 meters of costal location | EV2: Not with in 500 meters of costal location | EW2: Not with in 500 meters of costal location | EX2: Not with in 500 meters of costal location | EY2: Not with in 500 meters of costal location | EZ2: Not with in 500 meters of costal location | FA2: Not with in 500 meters of costal location | FB2: Not with in 500 meters of costal location | FC2: Not with in 500 meters of costal location | FD2: Not with in 500 meters of costal location | FE2: Not with in 500 meters of costal location | FF2: Not with in 500 meters of costal location | FG2: Not with in 500 meters of costal location | FH2: Not with in 500 meters of costal location | FI2: Not with in 500 meters of costal location | FJ2: Not with in 500 meters of costal location | FK2: Not with in 500 meters of costal location | FL2: Not with in 500 meters of costal location | FM2: Not with in 500 meters of costal location | FN2: Not with in 500 meters of costal location | FO2: Not with in 500 meters of costal location | FP2: Not with in 500 meters of costal location | FQ2: Not with in 500 meters of costal location | FR2: Not with in 500 meters of costal location | FS2: Not with in 500 meters of costal location | FT2: Not with in 500 meters of costal location | FU2: Not with in 500 meters of costal location | FV2: Not with in 500 meters of costal location | FW2: Not with in 500 meters of costal location | FX2: Not with in 500 meters of costal location | FY2: With in 500 meters of costal location | FZ2: With in 500 meters of costal location | GA2: With in 500 meters of costal location | GB2: With in 500 meters of costal location | GC2: With in 500 meters of costal location | GD2: With in 500 meters of costal location | GE2: With in 500 meters of costal location | GF2: With in 500 meters of costal location | GG2: With in 500 meters of costal location | GH2: With in 500 meters of costal location | GI2: With in 500 meters of costal location | GJ2: With in 500 meters of costal location | GK2: With in 500 meters of costal location | GL2: With in 500 meters of costal location | GM2: With in 500 meters of costal location | GN2: With in 500 meters of costal location | GO2: With in 500 meters of costal location | GP2: With in 500 meters of costal location | GQ2: With in 500 meters of costal location | GR2: With in 500 meters of costal location | GS2: With in 500 meters of costal location | GT2: With in 500 meters of costal location | GU2: With in 500 meters of costal location | GV2: With in 500 meters of costal location | GW2: With in 500 meters of costal location | GX2: With in 500 meters of costal location | GY2: With in 500 meters of costal location | GZ2: With in 500 meters of costal location | HA2: With in 500 meters of costal location | HB2: With in 500 meters of costal location | HC2: Not with in 500 meters of costal location | HD2: Not with in 500 meters of costal location | HE2: Not with in 500 meters of costal location | HF2: Not with in 500 meters of costal location | HG2: Not with in 500 meters of costal location | HH2: Not with in 500 meters of costal location | HI2: Not with in 500 meters of costal location | HJ2: Not with in 500 meters of costal location | HK2: Not with in 500 meters of costal location | HL2: Not with in 500 meters of costal location | HM2: Not with in 500 meters of costal location | HN2: Not with in 500 meters of costal location | HO2: Not with in 500 meters of costal location | HP2: Not with in 500 meters of costal location | HQ2: Not with in 500 meters of costal location | HR2: Not with in 500 meters of costal location | HS2: Not with in 500 meters of costal location | HT2: Not with in 500 meters of costal location | HU2: Not with in 500 meters of costal location | HV2: Not with in 500 meters of costal location | HW2: Not with in 500 meters of costal location | HX2: Not with in 500 meters of costal location | HY2: Not with in 500 meters of costal location | HZ2: Not with in 500 meters of costal location | IA2: Not with in 500 meters of costal location | IB2: Not with in 500 meters of costal location | IC2: Not with in 500 meters of costal location | ID2: Not with in 500 meters of costal location | IE2: Not with in 500 meters of costal location | IF2: Not with in 500 meters of costal location | IG2: With in 500 meters of costal location | IH2: With in 500 meters of costal location | II2: With in 500 meters of costal location | IJ2: With in 500 meters of costal location | IK2: With in 500 meters of costal location | IL2: With in 500 meters of costal location | IM2: With in 500 meters of costal location | IN2: With in 500 meters of costal location | IO2: With in 500 meters of costal location | IP2: With in 500 meters of costal location | IQ2: With in 500 meters of costal location | IR2: With in 500 meters of costal location | IS2: With in 500 meters of costal location | IT2: With in 500 meters of costal location | IU2: With in 500 meters of costal location | IV2: With in 500 meters of costal location | IW2: With in 500 meters of costal location | IX2: With in 500 meters of costal location | IY2: With in 500 meters of costal location | IZ2: With in 500 meters of costal location | JA2: With in 500 meters of costal location | JB2: With in 500 meters of costal location | JC2: With in 500 meters of costal location | JD2: With in 500 meters of costal location | JE2: With in 500 meters of costal location | JF2: With in 500 meters of costal location | JG2: With in 500 meters of costal location | JH2: With in 500 meters of costal location | JI2: With in 500 meters of costal location | JJ2: With in 500 meters of costal location | JK2: Not with in 500 meters of costal location | JL2: Not with in 500 meters of costal location | JM2: Not with in 500 meters of costal location | JN2: Not with in 500 meters of costal location | JO2: Not with in 500 meters of costal location | JP2: Not with in 500 meters of costal location | JQ2: Not with in 500 meters of costal location | JR2: Not with in 500 meters of costal location | JS2: Not with in 500 meters of costal location | JT2: Not with in 500 meters of costal location | JU2: Not with in 500 meters of costal location | JV2: Not with in 500 meters of costal location | JW2: Not with in 500 meters of costal location | JX2: Not with in 500 meters of costal location | JY2: Not with in 500 meters of costal location | JZ2: Not with in 500 meters of costal location | KA2: Not with in 500 meters of costal location | KB2: Not with in 500 meters of costal location | KC2: Not with in 500 meters of costal location | KD2: Not with in 500 meters of costal location | KE2: Not with in 500 meters of costal location | KF2: Not with in 500 meters of costal location | KG2: Not with in 500 meters of costal location | KH2: Not with in 500 meters of costal location | KI2: Not with in 500 meters of costal location | KJ2: Not with in 500 meters of costal location | KK2: Not with in 500 meters of costal location | KL2: Not with in 500 meters of costal location | KM2: Not with in 500 meters of costal location | KN2: Not with in 500 meters of costal location | KO2: With in 500 meters of costal location | KP2: With in 500 meters of costal location | KQ2: With in 500 meters of costal location | KR2: With in 500 meters of costal location | KS2: With in 500 meters of costal location | KT2: With in 500 meters of costal location | KU2: With in 500 meters of costal location | KV2: With in 500 meters of costal location | KW2: With in 500 meters of costal location | KX2: With in 500 meters of costal location | KY2: With in 500 meters of costal location | KZ2: With in 500 meters of costal location | LA2: With in 500 meters of costal location | LB2: With in 500 meters of costal location | LC2: With in 500 meters of costal location | LD2: With in 500 meters of costal location | LE2: With in 500 meters of costal location | LF2: With in 500 meters of costal location | LG2: With in 500 meters of costal location | LH2: With in 500 meters of costal location | LI2: With in 500 meters of costal location | LJ2: With in 500 meters of costal location | LK2: With in 500 meters of costal location | LL2: With in 500 meters of costal location | LM2: With in 500 meters of costal location | LN2: With in 500 meters of costal location | LO2: With in 500 meters of costal location | LP2: With in 500 meters of costal location | LQ2: With in 500 meters of costal location | LR2: With in 500 meters of costal location | LS2: Not with in 500 meters of costal location | LT2: Not with in 500 meters of costal location | LU2: Not with in 500 meters of costal location | LV2: Not with in 500 meters of costal location | LW2: Not with in 500 meters of costal location | LX2: Not with in 500 meters of costal location | LY2: Not with in 500 meters of costal location | LZ2: Not with in 500 meters of costal location | MA2: Not with in 500 meters of costal location | MB2: Not with in 500 meters of costal location | MC2: Not with in 500 meters of costal location | MD2: Not with in 500 meters of costal location | ME2: Not with in 500 meters of costal location | MF2: Not with in 500 meters of costal location | MG2: Not with in 500 meters of costal location | MH2: Not with in 500 meters of costal location | MI2: Not with in 500 meters of costal location | MJ2: Not with in 500 meters of costal location | MK2: Not with in 500 meters of costal location | ML2: Not with in 500 meters of costal location | MM2: Not with in 500 meters of costal location | MN2: Not with in 500 meters of costal location | MO2: Not with in 500 meters of costal location | MP2: Not with in 500 meters of costal location | MQ2: Not with in 500 meters of costal location | MR2: Not with in 500 meters of costal location | MS2: Not with in 500 meters of costal location | MT2: Not with in 500 meters of costal location | MU2: Not with in 500 meters of costal location | MV2: Not with in 500 meters of costal location
A3: a | B3: a | C3: a | D3: a | E3: a | F3: a | G3: b | H3: b | I3: b | J3: b | K3: b | L3: b | M3: c | N3: c | O3: c | P3: c | Q3: c | R3: c | S3: d | T3: d | U3: d | V3: d | W3: d | X3: d | Y3: e | Z3: e | AA3: e | AB3: e | AC3: e | AD3: e | AE3: a | AF3: a | AG3: a | AH3: a | AI3: a | AJ3: a | AK3: b | AL3: b | AM3: b | AN3: b | AO3: b | AP3: b | AQ3: c | AR3: c | AS3: c | AT3: c | AU3: c | AV3: c | AW3: d | AX3: d | AY3: d | AZ3: d | BA3: d | BB3: d | BC3: e | BD3: e | BE3: e | BF3: e | BG3: e | BH3: e | BI3: a | BJ3: a | BK3: a | BL3: a | BM3: a | BN3: a | BO3: b | BP3: b | BQ3: b | BR3: b | BS3: b | BT3: b | BU3: c | BV3: c | BW3: c | BX3: c | BY3: c | BZ3: c | CA3: d | CB3: d | CC3: d | CD3: d | CE3: d | CF3: d | CG3: e | CH3: e | CI3: e | CJ3: e | CK3: e | CL3: e | CM3: a | CN3: a | CO3: a | CP3: a | CQ3: a | CR3: a | CS3: b | CT3: b | CU3: b | CV3: b | CW3: b | CX3: b | CY3: c | CZ3: c | DA3: c | DB3: c | DC3: c | DD3: c | DE3: d | DF3: d | DG3: d | DH3: d | DI3: d | DJ3: d | DK3: e | DL3: e | DM3: e | DN3: e | DO3: e | DP3: e | DQ3: a | DR3: a | DS3: a | DT3: a | DU3: a | DV3: a | DW3: b | DX3: b | DY3: b | DZ3: b | EA3: b | EB3: b | EC3: c | ED3: c | EE3: c | EF3: c | EG3: c | EH3: c | EI3: d | EJ3: d | EK3: d | EL3: d | EM3: d | EN3: d | EO3: e | EP3: e | EQ3: e | ER3: e | ES3: e | ET3: e | EU3: a | EV3: a | EW3: a | EX3: a | EY3: a | EZ3: a | FA3: b | FB3: b | FC3: b | FD3: b | FE3: b | FF3: b | FG3: c | FH3: c | FI3: c | FJ3: c | FK3: c | FL3: c | FM3: d | FN3: d | FO3: d | FP3: d | FQ3: d | FR3: d | FS3: e | FT3: e | FU3: e | FV3: e | FW3: e | FX3: e | FY3: a | FZ3: a | GA3: a | GB3: a | GC3: a | GD3: a | GE3: b | GF3: b | GG3: b | GH3: b | GI3: b | GJ3: b | GK3: c | GL3: c | GM3: c | GN3: c | GO3: c | GP3: c | GQ3: d | GR3: d | GS3: d | GT3: d | GU3: d | GV3: d | GW3: e | GX3: e | GY3: e | GZ3: e | HA3: e | HB3: e | HC3: a | HD3: a | HE3: a | HF3: a | HG3: a | HH3: a | HI3: b | HJ3: b | HK3: b | HL3: b | HM3: b | HN3: b | HO3: c | HP3: c | HQ3: c | HR3: c | HS3: c | HT3: c | HU3: d | HV3: d | HW3: d | HX3: d | HY3: d | HZ3: d | IA3: e | IB3: e | IC3: e | ID3: e | IE3: e | IF3: e | IG3: a | IH3: a | II3: a | IJ3: a | IK3: a | IL3: a | IM3: b | IN3: b | IO3: b | IP3: b | IQ3: b | IR3: b | IS3: c | IT3: c | IU3: c | IV3: c | IW3: c | IX3: c | IY3: d | IZ3: d | JA3: d | JB3: d | JC3: d | JD3: d | JE3: e | JF3: e | JG3: e | JH3: e | JI3: e | JJ3: e | JK3: a | JL3: a | JM3: a | JN3: a | JO3: a | JP3: a | JQ3: b | JR3: b | JS3: b | JT3: b | JU3: b | JV3: b | JW3: c | JX3: c | JY3: c | JZ3: c | KA3: c | KB3: c | KC3: d | KD3: d | KE3: d | KF3: d | KG3: d | KH3: d | KI3: e | KJ3: e | KK3: e | KL3: e | KM3: e | KN3: e | KO3: a | KP3: a | KQ3: a | KR3: a | KS3: a | KT3: a | KU3: b | KV3: b | KW3: b | KX3: b | KY3: b | KZ3: b | LA3: c | LB3: c | LC3: c | LD3: c | LE3: c | LF3: c | LG3: d | LH3: d | LI3: d | LJ3: d | LK3: d | LL3: d | LM3: e | LN3: e | LO3: e | LP3: e | LQ3: e | LR3: e | LS3: a | LT3: a | LU3: a | LV3: a | LW3: a | LX3: a | LY3: b | LZ3: b | MA3: b | MB3: b | MC3: b | MD3: b | ME3: c | MF3: c | MG3: c | MH3: c | MI3: c | MJ3: c | MK3: d | ML3: d | MM3: d | MN3: d | MO3: d | MP3: d | MQ3: e | MR3: e | MS3: e | MT3: e | MU3: e | MV3: e
A4: Soft Water | B4: Soft Water | C4: Moderate Water | D4: Moderate Water | E4: Soft Water | F4: Soft Water | G4: Soft Water | H4: Soft Water | I4: Moderate Water | J4: Moderate Water | K4: Soft Water | L4: Soft Water | M4: Soft Water | N4: Soft Water | O4: Moderate Water | P4: Moderate Water | Q4: Soft Water | R4: Soft Water | S4: Soft Water | T4: Soft Water | U4: Moderate Water | V4: Moderate Water | W4: Soft Water | X4: Soft Water | Y4: Soft Water | Z4: Soft Water | AA4: Moderate Water | AB4: Moderate Water | AC4: Soft Water | AD4: Soft Water | AE4: Soft Water | AF4: Soft Water | AG4: Moderate Water | AH4: Moderate Water | AI4: Soft Water | AJ4: Soft Water | AK4: Soft Water | AL4: Soft Water | AM4: Moderate Water | AN4: Moderate Water | AO4: Soft Water | AP4: Soft Water | AQ4: Soft Water | AR4: Soft Water | AS4: Moderate Water | AT4: Moderate Water | AU4: Soft Water | AV4: Soft Water | AW4: Soft Water | AX4: Soft Water | AY4: Moderate Water | AZ4: Moderate Water | BA4: Soft Water | BB4: Soft Water | BC4: Soft Water | BD4: Soft Water | BE4: Moderate Water | BF4: Moderate Water | BG4: Soft Water | BH4: Soft Water | BI4: Soft Water | BJ4: Soft Water | BK4: Moderate Water | BL4: Moderate Water | BM4: Soft Water | BN4: Soft Water | BO4: Soft Water | BP4: Soft Water | BQ4: Moderate Water | BR4: Moderate Water | BS4: Soft Water | BT4: Soft Water | BU4: Soft Water | BV4: Soft Water | BW4: Moderate Water | BX4: Moderate Water | BY4: Soft Water | BZ4: Soft Water | CA4: Soft Water | CB4: Soft Water | CC4: Moderate Water | CD4: Moderate Water | CE4: Soft Water | CF4: Soft Water | CG4: Soft Water | CH4: Soft Water | CI4: Moderate Water | CJ4: Moderate Water | CK4: Soft Water | CL4: Soft Water | CM4: Soft Water | CN4: Soft Water | CO4: Moderate Water | CP4: Moderate Water | CQ4: Soft Water | CR4: Soft Water | CS4: Soft Water | CT4: Soft Water | CU4: Moderate Water | CV4: Moderate Water | CW4: Soft Water | CX4: Soft Water | CY4: Soft Water | CZ4: Soft Water | DA4: Moderate Water | DB4: Moderate Water | DC4: Soft Water | DD4: Soft Water | DE4: Soft Water | DF4: Soft Water | DG4: Moderate Water | DH4: Moderate Water | DI4: Soft Water | DJ4: Soft Water | DK4: Soft Water | DL4: Soft Water | DM4: Moderate Water | DN4: Moderate Water | DO4: Soft Water | DP4: Soft Water | DQ4: Soft Water | DR4: Soft Water | DS4: Moderate Water | DT4: Moderate Water | DU4: Soft Water | DV4: Soft Water | DW4: Soft Water | DX4: Soft Water | DY4: Moderate Water | DZ4: Moderate Water | EA4: Soft Water | EB4: Soft Water | EC4: Soft Water | ED4: Soft Water | EE4: Moderate Water | EF4: Moderate Water | EG4: Soft Water | EH4: Soft Water | EI4: Soft Water | EJ4: Soft Water | EK4: Moderate Water | EL4: Moderate Water | EM4: Soft Water | EN4: Soft Water | EO4: Soft Water | EP4: Soft Water | EQ4: Moderate Water | ER4: Moderate Water | ES4: Soft Water | ET4: Soft Water | EU4: Soft Water | EV4: Soft Water | EW4: Moderate Water | EX4: Moderate Water | EY4: Soft Water | EZ4: Soft Water | FA4: Soft Water | FB4: Soft Water | FC4: Moderate Water | FD4: Moderate Water | FE4: Soft Water | FF4: Soft Water | FG4: Soft Water | FH4: Soft Water | FI4: Moderate Water | FJ4: Moderate Water | FK4: Soft Water | FL4: Soft Water | FM4: Soft Water | FN4: Soft Water | FO4: Moderate Water | FP4: Moderate Water | FQ4: Soft Water | FR4: Soft Water | FS4: Soft Water | FT4: Soft Water | FU4: Moderate Water | FV4: Moderate Water | FW4: Soft Water | FX4: Soft Water | FY4: Soft Water | FZ4: Soft Water | GA4: Moderate Water | GB4: Moderate Water | GC4: Soft Water | GD4: Soft Water | GE4: Soft Water | GF4: Soft Water | GG4: Moderate Water | GH4: Moderate Water | GI4: Soft Water | GJ4: Soft Water | GK4: Soft Water | GL4: Soft Water | GM4: Moderate Water | GN4: Moderate Water | GO4: Soft Water | GP4: Soft Water | GQ4: Soft Water | GR4: Soft Water | GS4: Moderate Water | GT4: Moderate Water | GU4: Soft Water | GV4: Soft Water | GW4: Soft Water | GX4: Soft Water | GY4: Moderate Water | GZ4: Moderate Water | HA4: Soft Water | HB4: Soft Water | HC4: Soft Water | HD4: Soft Water | HE4: Moderate Water | HF4: Moderate Water | HG4: Soft Water | HH4: Soft Water | HI4: Soft Water | HJ4: Soft Water | HK4: Moderate Water | HL4: Moderate Water | HM4: Soft Water | HN4: Soft Water | HO4: Soft Water | HP4: Soft Water | HQ4: Moderate Water | HR4: Moderate Water | HS4: Soft Water | HT4: Soft Water | HU4: Soft Water | HV4: Soft Water | HW4: Moderate Water | HX4: Moderate Water | HY4: Soft Water | HZ4: Soft Water | IA4: Soft Water | IB4: Soft Water | IC4: Moderate Water | ID4: Moderate Water | IE4: Soft Water | IF4: Soft Water | IG4: Soft Water | IH4: Soft Water | II4: Moderate Water | IJ4: Moderate Water | IK4: Soft Water | IL4: Soft Water | IM4: Soft Water | IN4: Soft Water | IO4: Moderate Water | IP4: Moderate Water | IQ4: Soft Water | IR4: Soft Water | IS4: Soft Water | IT4: Soft Water | IU4: Moderate Water | IV4: Moderate Water | IW4: Soft Water | IX4: Soft Water | IY4: Soft Water | IZ4: Soft Water | JA4: Moderate Water | JB4: Moderate Water | JC4: Soft Water | JD4: Soft Water | JE4: Soft Water | JF4: Soft Water | JG4: Moderate Water | JH4: Moderate Water | JI4: Soft Water | JJ4: Soft Water | JK4: Soft Water | JL4: Soft Water | JM4: Moderate Water | JN4: Moderate Water | JO4: Soft Water | JP4: Soft Water | JQ4: Soft Water | JR4: Soft Water | JS4: Moderate Water | JT4: Moderate Water | JU4: Soft Water | JV4: Soft Water | JW4: Soft Water | JX4: Soft Water | JY4: Moderate Water | JZ4: Moderate Water | KA4: Soft Water | KB4: Soft Water | KC4: Soft Water | KD4: Soft Water | KE4: Moderate Water | KF4: Moderate Water | KG4: Soft Water | KH4: Soft Water | KI4: Soft Water | KJ4: Soft Water | KK4: Moderate Water | KL4: Moderate Water | KM4: Soft Water | KN4: Soft Water | KO4: Soft Water | KP4: Soft Water | KQ4: Moderate Water | KR4: Moderate Water | KS4: Soft Water | KT4: Soft Water | KU4: Soft Water | KV4: Soft Water | KW4: Moderate Water | KX4: Moderate Water | KY4: Soft Water | KZ4: Soft Water | LA4: Soft Water | LB4: Soft Water | LC4: Moderate Water | LD4: Moderate Water | LE4: Soft Water | LF4: Soft Water | LG4: Soft Water | LH4: Soft Water | LI4: Moderate Water | LJ4: Moderate Water | LK4: Soft Water | LL4: Soft Water | LM4: Soft Water | LN4: Soft Water | LO4: Moderate Water | LP4: Moderate Water | LQ4: Soft Water | LR4: Soft Water | LS4: Soft Water | LT4: Soft Water | LU4: Moderate Water | LV4: Moderate Water | LW4: Soft Water | LX4: Soft Water | LY4: Soft Water | LZ4: Soft Water | MA4: Moderate Water | MB4: Moderate Water | MC4: Soft Water | MD4: Soft Water | ME4: Soft Water | MF4: Soft Water | MG4: Moderate Water | MH4: Moderate Water | MI4: Soft Water | MJ4: Soft Water | MK4: Soft Water | ML4: Soft Water | MM4: Moderate Water | MN4: Moderate Water | MO4: Soft Water | MP4: Soft Water | MQ4: Soft Water | MR4: Soft Water | MS4: Moderate Water | MT4: Moderate Water | MU4: Soft Water | MV4: Soft Water
A5: 5 Days a week | B5: 7 Days a week Days a week | C5: 5 Days a week | D5: 7 Days a week Days a week | E5: 5 Days a week | F5: 7 Days a week Days a week | G5: 5 Days a week | H5: 7 Days a week Days a week | I5: 5 Days a week | J5: 7 Days a week Days a week | K5: 5 Days a week | L5: 7 Days a week Days a week | M5: 5 Days a week | N5: 7 Days a week Days a week | O5: 5 Days a week | P5: 7 Days a week Days a week | Q5: 5 Days a week | R5: 7 Days a week Days a week | S5: 5 Days a week | T5: 7 Days a week Days a week | U5: 5 Days a week | V5: 7 Days a week Days a week | W5: 5 Days a week | X5: 7 Days a week Days a week | Y5: 5 Days a week | Z5: 7 Days a week Days a week | AA5: 5 Days a week | AB5: 7 Days a week Days a week | AC5: 5 Days a week | AD5: 7 Days a week Days a week | AE5: 5 Days a week | AF5: 7 Days a week Days a week | AG5: 5 Days a week | AH5: 7 Days a week Days a week | AI5: 5 Days a week | AJ5: 7 Days a week Days a week | AK5: 5 Days a week | AL5: 7 Days a week Days a week | AM5: 5 Days a week | AN5: 7 Days a week Days a week | AO5: 5 Days a week | AP5: 7 Days a week Days a week | AQ5: 5 Days a week | AR5: 7 Days a week Days a week | AS5: 5 Days a week | AT5: 7 Days a week Days a week | AU5: 5 Days a week | AV5: 7 Days a week Days a week | AW5: 5 Days a week | AX5: 7 Days a week Days a week | AY5: 5 Days a week | AZ5: 7 Days a week Days a week | BA5: 5 Days a week | BB5: 7 Days a week Days a week | BC5: 5 Days a week | BD5: 7 Days a week Days a week | BE5: 5 Days a week | BF5: 7 Days a week Days a week | BG5: 5 Days a week | BH5: 7 Days a week Days a week | BI5: 5 Days a week | BJ5: 7 Days a week Days a week | BK5: 5 Days a week | BL5: 7 Days a week Days a week | BM5: 5 Days a week | BN5: 7 Days a week Days a week | BO5: 5 Days a week | BP5: 7 Days a week Days a week | BQ5: 5 Days a week | BR5: 7 Days a week Days a week | BS5: 5 Days a week | BT5: 7 Days a week Days a week | BU5: 5 Days a week | BV5: 7 Days a week Days a week | BW5: 5 Days a week | BX5: 7 Days a week Days a week | BY5: 5 Days a week | BZ5: 7 Days a week Days a week | CA5: 5 Days a week | CB5: 7 Days a week Days a week | CC5: 5 Days a week | CD5: 7 Days a week Days a week | CE5: 5 Days a week | CF5: 7 Days a week Days a week | CG5: 5 Days a week | CH5: 7 Days a week Days a week | CI5: 5 Days a week | CJ5: 7 Days a week Days a week | CK5: 5 Days a week | CL5: 7 Days a week Days a week | CM5: 5 Days a week | CN5: 7 Days a week Days a week | CO5: 5 Days a week | CP5: 7 Days a week Days a week | CQ5: 5 Days a week | CR5: 7 Days a week Days a week | CS5: 5 Days a week | CT5: 7 Days a week Days a week | CU5: 5 Days a week | CV5: 7 Days a week Days a week | CW5: 5 Days a week | CX5: 7 Days a week Days a week | CY5: 5 Days a week | CZ5: 7 Days a week Days a week | DA5: 5 Days a week | DB5: 7 Days a week Days a week | DC5: 5 Days a week | DD5: 7 Days a week Days a week | DE5: 5 Days a week | DF5: 7 Days a week Days a week | DG5: 5 Days a week | DH5: 7 Days a week Days a week | DI5: 5 Days a week | DJ5: 7 Days a week Days a week | DK5: 5 Days a week | DL5: 7 Days a week Days a week | DM5: 5 Days a week | DN5: 7 Days a week Days a week | DO5: 5 Days a week | DP5: 7 Days a week Days a week | DQ5: 5 Days a week | DR5: 7 Days a week Days a week | DS5: 5 Days a week | DT5: 7 Days a week Days a week | DU5: 5 Days a week | DV5: 7 Days a week Days a week | DW5: 5 Days a week | DX5: 7 Days a week Days a week | DY5: 5 Days a week | DZ5: 7 Days a week Days a week | EA5: 5 Days a week | EB5: 7 Days a week Days a week | EC5: 5 Days a week | ED5: 7 Days a week Days a week | EE5: 5 Days a week | EF5: 7 Days a week Days a week | EG5: 5 Days a week | EH5: 7 Days a week Days a week | EI5: 5 Days a week | EJ5: 7 Days a week Days a week | EK5: 5 Days a week | EL5: 7 Days a week Days a week | EM5: 5 Days a week | EN5: 7 Days a week Days a week | EO5: 5 Days a week | EP5: 7 Days a week Days a week | EQ5: 5 Days a week | ER5: 7 Days a week Days a week | ES5: 5 Days a week | ET5: 7 Days a week Days a week | EU5: 5 Days a week | EV5: 7 Days a week Days a week | EW5: 5 Days a week | EX5: 7 Days a week Days a week | EY5: 5 Days a week | EZ5: 7 Days a week Days a week | FA5: 5 Days a week | FB5: 7 Days a week Days a week | FC5: 5 Days a week | FD5: 7 Days a week Days a week | FE5: 5 Days a week | FF5: 7 Days a week Days a week | FG5: 5 Days a week | FH5: 7 Days a week Days a week | FI5: 5 Days a week | FJ5: 7 Days a week Days a week | FK5: 5 Days a week | FL5: 7 Days a week Days a week | FM5: 5 Days a week | FN5: 7 Days a week Days a week | FO5: 5 Days a week | FP5: 7 Days a week Days a week | FQ5: 5 Days a week | FR5: 7 Days a week Days a week | FS5: 5 Days a week | FT5: 7 Days a week Days a week | FU5: 5 Days a week | FV5: 7 Days a week Days a week | FW5: 5 Days a week | FX5: 7 Days a week Days a week | FY5: 5 Days a week | FZ5: 7 Days a week Days a week | GA5: 5 Days a week | GB5: 7 Days a week Days a week | GC5: 5 Days a week | GD5: 7 Days a week Days a week | GE5: 5 Days a week | GF5: 7 Days a week Days a week | GG5: 5 Days a week | GH5: 7 Days a week Days a week | GI5: 5 Days a week | GJ5: 7 Days a week Days a week | GK5: 5 Days a week | GL5: 7 Days a week Days a week | GM5: 5 Days a week | GN5: 7 Days a week Days a week | GO5: 5 Days a week | GP5: 7 Days a week Days a week | GQ5: 5 Days a week | GR5: 7 Days a week Days a week | GS5: 5 Days a week | GT5: 7 Days a week Days a week | GU5: 5 Days a week | GV5: 7 Days a week Days a week | GW5: 5 Days a week | GX5: 7 Days a week Days a week | GY5: 5 Days a week | GZ5: 7 Days a week Days a week | HA5: 5 Days a week | HB5: 7 Days a week Days a week | HC5: 5 Days a week | HD5: 7 Days a week Days a week | HE5: 5 Days a week | HF5: 7 Days a week Days a week | HG5: 5 Days a week | HH5: 7 Days a week Days a week | HI5: 5 Days a week | HJ5: 7 Days a week Days a week | HK5: 5 Days a week | HL5: 7 Days a week Days a week | HM5: 5 Days a week | HN5: 7 Days a week Days a week | HO5: 5 Days a week | HP5: 7 Days a week Days a week | HQ5: 5 Days a week | HR5: 7 Days a week Days a week | HS5: 5 Days a week | HT5: 7 Days a week Days a week | HU5: 5 Days a week | HV5: 7 Days a week Days a week | HW5: 5 Days a week | HX5: 7 Days a week Days a week | HY5: 5 Days a week | HZ5: 7 Days a week Days a week | IA5: 5 Days a week | IB5: 7 Days a week Days a week | IC5: 5 Days a week | ID5: 7 Days a week Days a week | IE5: 5 Days a week | IF5: 7 Days a week Days a week | IG5: 5 Days a week | IH5: 7 Days a week Days a week | II5: 5 Days a week | IJ5: 7 Days a week Days a week | IK5: 5 Days a week | IL5: 7 Days a week Days a week | IM5: 5 Days a week | IN5: 7 Days a week Days a week | IO5: 5 Days a week | IP5: 7 Days a week Days a week | IQ5: 5 Days a week | IR5: 7 Days a week Days a week | IS5: 5 Days a week | IT5: 7 Days a week Days a week | IU5: 5 Days a week | IV5: 7 Days a week Days a week | IW5: 5 Days a week | IX5: 7 Days a week Days a week | IY5: 5 Days a week | IZ5: 7 Days a week Days a week | JA5: 5 Days a week | JB5: 7 Days a week Days a week | JC5: 5 Days a week | JD5: 7 Days a week Days a week | JE5: 5 Days a week | JF5: 7 Days a week Days a week | JG5: 5 Days a week | JH5: 7 Days a week Days a week | JI5: 5 Days a week | JJ5: 7 Days a week Days a week | JK5: 5 Days a week | JL5: 7 Days a week Days a week | JM5: 5 Days a week | JN5: 7 Days a week Days a week | JO5: 5 Days a week | JP5: 7 Days a week Days a week | JQ5: 5 Days a week | JR5: 7 Days a week Days a week | JS5: 5 Days a week | JT5: 7 Days a week Days a week | JU5: 5 Days a week | JV5: 7 Days a week Days a week | JW5: 5 Days a week | JX5: 7 Days a week Days a week | JY5: 5 Days a week | JZ5: 7 Days a week Days a week | KA5: 5 Days a week | KB5: 7 Days a week Days a week | KC5: 5 Days a week | KD5: 7 Days a week Days a week | KE5: 5 Days a week | KF5: 7 Days a week Days a week | KG5: 5 Days a week | KH5: 7 Days a week Days a week | KI5: 5 Days a week | KJ5: 7 Days a week Days a week | KK5: 5 Days a week | KL5: 7 Days a week Days a week | KM5: 5 Days a week | KN5: 7 Days a week Days a week | KO5: 5 Days a week | KP5: 7 Days a week Days a week | KQ5: 5 Days a week | KR5: 7 Days a week Days a week | KS5: 5 Days a week | KT5: 7 Days a week Days a week | KU5: 5 Days a week | KV5: 7 Days a week Days a week | KW5: 5 Days a week | KX5: 7 Days a week Days a week | KY5: 5 Days a week | KZ5: 7 Days a week Days a week | LA5: 5 Days a week | LB5: 7 Days a week Days a week | LC5: 5 Days a week | LD5: 7 Days a week Days a week | LE5: 5 Days a week | LF5: 7 Days a week Days a week | LG5: 5 Days a week | LH5: 7 Days a week Days a week | LI5: 5 Days a week | LJ5: 7 Days a week Days a week | LK5: 5 Days a week | LL5: 7 Days a week Days a week | LM5: 5 Days a week | LN5: 7 Days a week Days a week | LO5: 5 Days a week | LP5: 7 Days a week Days a week | LQ5: 5 Days a week | LR5: 7 Days a week Days a week | LS5: 5 Days a week | LT5: 7 Days a week Days a week | LU5: 5 Days a week | LV5: 7 Days a week Days a week | LW5: 5 Days a week | LX5: 7 Days a week Days a week | LY5: 5 Days a week | LZ5: 7 Days a week Days a week | MA5: 5 Days a week | MB5: 7 Days a week Days a week | MC5: 5 Days a week | MD5: 7 Days a week Days a week | ME5: 5 Days a week | MF5: 7 Days a week Days a week | MG5: 5 Days a week | MH5: 7 Days a week Days a week | MI5: 5 Days a week | MJ5: 7 Days a week Days a week | MK5: 5 Days a week | ML5: 7 Days a week Days a week | MM5: 5 Days a week | MN5: 7 Days a week Days a week | MO5: 5 Days a week | MP5: 7 Days a week Days a week | MQ5: 5 Days a week | MR5: 7 Days a week Days a week | MS5: 5 Days a week | MT5: 7 Days a week Days a week | MU5: 5 Days a week | MV5: 7 Days a week Days a week
A7: 84.49079922 | B7: 84.40954922 | C7: 84.32829922 | D7: 84.24704922 | E7: 84.20861416 | F7: 84.19831536 | G7: 84.16579922 | H7: 84.13542256 | I7: 84.12736416 | J7: 84.11706536 | K7: 84.05417256 | L7: 84.04611416 | M7: 84.03581536 | N7: 83.97292256 | O7: 83.96486416 | P7: 83.95456536 | Q7: 83.89167256 | R7: 83.88361416 | S7: 83.87331536 | T7: 83.8532375 | U7: 83.84293871 | V7: 83.84208665 | W7: 83.83256348 | X7: 83.81042256 | Y7: 83.78533656 | Z7: 83.7719875 | AA7: 83.76168871 | AB7: 83.75131348 | AC7: 83.73375331 | AD7: 83.70408656 | AE7: 83.6907375 | AF7: 83.68043871 | AG7: 83.67006348 | AH7: 83.63993709 | AI7: 83.62541998 | AJ7: 83.62283656 | AK7: 83.6094875 | AL7: 83.59918871 | AM7: 83.58881348 | AN7: 83.56754922 | AO7: 83.55868709 | AP7: 83.54158656 | AQ7: 83.5282375 | AR7: 83.51793871 | AS7: 83.51708665 | AT7: 83.50756348 | AU7: 83.48670999 | AV7: 83.48629922 | AW7: 83.47743709 | AX7: 83.47718683 | AY7: 83.4658399 | AZ7: 83.46033656 | BA7: 83.45210817 | BB7: 83.42995991 | BC7: 83.40875331 | BD7: 83.40504922 | BE7: 83.39618709 | BF7: 83.39593683 | BG7: 83.37837666 | BH7: 83.36205897 | BI7: 83.35750656 | BJ7: 83.34870991 | BK7: 83.34377484 | BL7: 83.32379922 | BM7: 83.31493709 | BN7: 83.31468683 | BO7: 83.28456043 | BP7: 83.28393566 | BQ7: 83.28080897 | BR7: 83.27506536 | BS7: 83.27186416 | BT7: 83.27004333 | BU7: 83.26745991 | BV7: 83.24917323 | BW7: 83.24254922 | BX7: 83.2354415 | BY7: 83.23343683 | BZ7: 83.21217256 | CA7: 83.20331043 | CB7: 83.20268566 | CC7: 83.19955897 | CD7: 83.19381536 | CE7: 83.19061416 | CF7: 83.18620991 | CG7: 83.16170999 | CH7: 83.15218683 | CI7: 83.1408399 | CJ7: 83.13092256 | CK7: 83.12710817 | CL7: 83.12206043 | CM7: 83.12143566 | CN7: 83.11830897 | CO7: 83.11464856 | CP7: 83.11256536 | CQ7: 83.11046324 | CR7: 83.10936416 | CS7: 83.10495991 | CT7: 83.09673152 | CU7: 83.07987391 | CV7: 83.05337666 | CW7: 83.04967256 | CX7: 83.04081043 | CY7: 83.04018566 | CZ7: 83.03705897 | DA7: 83.03339856 | DB7: 83.03250656 | DC7: 83.03131536 | DD7: 83.02811416 | DE7: 83.01877484 | DF7: 83.00668231 | DG7: 83.00212991 | DH7: 82.99862391 | DI7: 82.98839818 | DJ7: 82.96842256 | DK7: 82.964439 | DL7: 82.95956043 | DM7: 82.95893566 | DN7: 82.95214856 | DO7: 82.95006536 | DP7: 82.94686416 | DQ7: 82.92855901 | DR7: 82.92543231 | DS7: 82.91968871 | DT7: 82.91737391 | DU7: 82.9164875 | DV7: 82.90146977 | DW7: 82.89581348 | DX7: 82.89379658 | DY7: 82.88717256 | DZ7: 82.88006485 | EA7: 82.87089856 | EB7: 82.85610566 | EC7: 82.84730901 | ED7: 82.84418231 | EE7: 82.83843871 | EF7: 82.83612391 | EG7: 82.8352375 | EH7: 82.82833656 | EI7: 82.81456348 | EJ7: 82.79313644 | EK7: 82.78964856 | EL7: 82.78546324 | EM7: 82.77173152 | EN7: 82.76605901 | EO7: 82.76293231 | EP7: 82.75927191 | EQ7: 82.75718871 | ER7: 82.75487391 | ES7: 82.7539875 | ET7: 82.74777233 | EU7: 82.74708656 | EV7: 82.73530785 | EW7: 82.73331348 | EX7: 82.72449725 | EY7: 82.71668709 | EZ7: 82.7076038 | FA7: 82.68480901 | FB7: 82.6848031 | FC7: 82.68168231 | FD7: 82.67802191 | FE7: 82.67712991 | FF7: 82.67593871 | FG7: 82.6727375 | FH7: 82.66583656 | FI7: 82.66339818 | FJ7: 82.65405785 | FK7: 82.65206348 | FL7: 82.64324725 | FM7: 82.639439 | FN7: 82.63543709 | FO7: 82.61108665 | FP7: 82.60906234 | FQ7: 82.60355901 | FR7: 82.59927047 | FS7: 82.59677191 | FT7: 82.59468871 | FU7: 82.5914875 | FV7: 82.58458656 | FW7: 82.57646977 | FX7: 82.57280785 | FY7: 82.57081348 | FZ7: 82.56199725 | GA7: 82.55418709 | GB7: 82.54609312 | GC7: 82.5446615 | GD7: 82.54043683 | GE7: 82.53110566 | GF7: 82.51552191 | GG7: 82.50333656 | GH7: 82.50275331 | GI7: 82.50072901 | GJ7: 82.49155785 | GK7: 82.49093714 | GL7: 82.48074725 | GM7: 82.47295991 | GN7: 82.47293709 | GO7: 82.46813644 | GP7: 82.45918683 | GQ7: 82.43775978 | GR7: 82.43427191 | GS7: 82.41030785 | GT7: 82.39949725 | GU7: 82.39441998 | GV7: 82.39239568 | GW7: 82.39170991 | GX7: 82.39168709 | GY7: 82.38480897 | GZ7: 82.3826038 | HA7: 82.3821615 | HB7: 82.37993119 | HC7: 82.37793683 | HD7: 82.37441125 | HE7: 82.36955597 | HF7: 82.36131043 | HG7: 82.35222715 | HH7: 82.33709965 | HI7: 82.32942645 | HJ7: 82.32693566 | HK7: 82.32671577 | HL7: 82.31045991 | HM7: 82.30355897 | HN7: 82.29868119 | HO7: 82.29668683 | HP7: 82.29316125 | HQ7: 82.28830597 | HR7: 82.28608665 | HS7: 82.28406234 | HT7: 82.28006043 | HU7: 82.27427047 | HV7: 82.25570999 | HW7: 82.24568566 | HX7: 82.24546577 | HY7: 82.24389382 | HZ7: 82.23293524 | IA7: 82.22920991 | IB7: 82.22876631 | IC7: 82.22230897 | ID7: 82.22110817 | IE7: 82.22109312 | IF7: 82.2196615 | IG7: 82.21743119 | IH7: 82.2168399 | II7: 82.21543683 | IJ7: 82.21191125 | IK7: 82.20705597 | IL7: 82.19881043 | IM7: 82.18928485 | IN7: 82.17789856 | IO7: 82.17775331 | IP7: 82.17572901 | IQ7: 82.16443566 | IR7: 82.16421577 | IS7: 82.15092836 | IT7: 82.14795991 | IU7: 82.14737666 | IV7: 82.14105897 | IW7: 82.13618119 | IX7: 82.13556048 | IY7: 82.13066125 | IZ7: 82.12580597 | JA7: 82.12460191 | JB7: 82.12043298 | JC7: 82.11756043 | JD7: 82.11277484 | JE7: 82.11275978 | JF7: 82.10850656 | JG7: 82.09664856 | JH7: 82.08912391 | JI7: 82.08318566 | JJ7: 82.08296577 | JK7: 82.06967836 | JL7: 82.05980897 | JM7: 82.0571615 | JN7: 82.05493119 | JO7: 82.04941125 | JP7: 82.04455597 | JQ7: 82.03904333 | JR7: 82.03631043 | JS7: 82.02943231 | JT7: 82.02879922 | JU7: 82.02722715 | JV7: 82.02678485 | JW7: 82.0190346 | JX7: 82.01626857 | JY7: 82.01539856 | JZ7: 82.01417931 | KA7: 82.01209965 | KB7: 82.00787391 | KC7: 82.0072191 | KD7: 82.0044415 | KE7: 82.00193566 | KF7: 82.00171577 | KG7: 82.00017323 | KH7: 81.98842836 | KI7: 81.98172299 | KJ7: 81.98029137 | KK7: 81.97155901 | KL7: 81.97133911 | KM7: 81.9608529 | KN7: 81.95969378 | KO7: 81.94818231 | KP7: 81.94754922 | KQ7: 81.9377846 | KR7: 81.93414856 | KS7: 81.93292931 | KT7: 81.93070999 | KU7: 81.92662391 | KV7: 81.91889382 | KW7: 81.90793524 | KX7: 81.90717836 | KY7: 81.90376631 | KZ7: 81.89888577 | LA7: 81.89610817 | LB7: 81.8946615 | LC7: 81.8918399 | LD7: 81.89030901 | LE7: 81.89008911 | LF7: 81.87755859 | LG7: 81.87338966 | LH7: 81.86693231 | LI7: 81.86629922 | LJ7: 81.86573152 | LK7: 81.86428485 | LL7: 81.86146324 | LM7: 81.8565346 | LN7: 81.85289856 | LO7: 81.85251956 | LP7: 81.85167931 | LQ7: 81.84537391 | LR7: 81.82592836 | LS7: 81.82252191 | LT7: 81.82237666 | LU7: 81.81779137 | LV7: 81.80905901 | LW7: 81.80883911 | LX7: 81.79960191 | LY7: 81.79719378 | LZ7: 81.79555171 | MA7: 81.79055243 | MB7: 81.78777484 | MC7: 81.78568231 | MD7: 81.78504922 | ME7: 81.78350656 | MF7: 81.7752846 | MG7: 81.77450285 | MH7: 81.77042931 | MI7: 81.76922525 | MJ7: 81.76505633 | MK7: 81.76412391 | ML7: 81.75805785 | MM7: 81.75739818 | MN7: 81.75312991 | MO7: 81.74418623 | MP7: 81.74127191 | MQ7: 81.73631536 | MR7: 81.73374725 | MS7: 81.72780901 | MT7: 81.72758911 | MU7: 81.715439 | MV7: 81.71430171
A8: =A7/100*98 -> 82.80098324 | B8: =B7/100*98 -> 82.72135824 | C8: =C7/100*98 -> 82.64173324 | D8: =D7/100*98 -> 82.56210824 | E8: =E7/100*98 -> 82.52444188 | F8: =F7/100*98 -> 82.51434905 | G8: =G7/100*98 -> 82.48248324 | H8: =H7/100*98 -> 82.45271411 | I8: =I7/100*98 -> 82.44481688 | J8: =J7/100*98 -> 82.43472405 | K8: =K7/100*98 -> 82.37308911 | L8: =L7/100*98 -> 82.36519188 | M8: =M7/100*98 -> 82.35509905 | N8: =N7/100*98 -> 82.29346411 | O8: =O7/100*98 -> 82.28556688 | P8: =P7/100*98 -> 82.27547405 | Q8: =Q7/100*98 -> 82.21383911 | R8: =R7/100*98 -> 82.20594188 | S8: =S7/100*98 -> 82.19584905 | T8: =T7/100*98 -> 82.17617275 | U8: =U7/100*98 -> 82.16607994 | V8: =V7/100*98 -> 82.16524492 | W8: =W7/100*98 -> 82.15591221 | X8: =X7/100*98 -> 82.13421411 | Y8: =Y7/100*98 -> 82.10962983 | Z8: =Z7/100*98 -> 82.09654775 | AA8: =AA7/100*98 -> 82.08645494 | AB8: =AB7/100*98 -> 82.07628721 | AC8: =AC7/100*98 -> 82.05907824 | AD8: =AD7/100*98 -> 82.03000483 | AE8: =AE7/100*98 -> 82.01692275 | AF8: =AF7/100*98 -> 82.00682994 | AG8: =AG7/100*98 -> 81.99666221 | AH8: =AH7/100*98 -> 81.96713835 | AI8: =AI7/100*98 -> 81.95291158 | AJ8: =AJ7/100*98 -> 81.95037983 | AK8: =AK7/100*98 -> 81.93729775 | AL8: =AL7/100*98 -> 81.92720494 | AM8: =AM7/100*98 -> 81.91703721 | AN8: =AN7/100*98 -> 81.89619824 | AO8: =AO7/100*98 -> 81.88751335 | AP8: =AP7/100*98 -> 81.87075483 | AQ8: =AQ7/100*98 -> 81.85767275 | AR8: =AR7/100*98 -> 81.84757994 | AS8: =AS7/100*98 -> 81.84674492 | AT8: =AT7/100*98 -> 81.83741221 | AU8: =AU7/100*98 -> 81.81697579 | AV8: =AV7/100*98 -> 81.81657324 | AW8: =AW7/100*98 -> 81.80788835 | AX8: =AX7/100*98 -> 81.80764309 | AY8: =AY7/100*98 -> 81.7965231 | AZ8: =AZ7/100*98 -> 81.79112983 | BA8: =BA7/100*98 -> 81.78306601 | BB8: =BB7/100*98 -> 81.76136071 | BC8: =BC7/100*98 -> 81.74057824 | BD8: =BD7/100*98 -> 81.73694824 | BE8: =BE7/100*98 -> 81.72826335 | BF8: =BF7/100*98 -> 81.72801809 | BG8: =BG7/100*98 -> 81.71080913 | BH8: =BH7/100*98 -> 81.69481779 | BI8: =BI7/100*98 -> 81.69035643 | BJ8: =BJ7/100*98 -> 81.68173571 | BK8: =BK7/100*98 -> 81.67689934 | BL8: =BL7/100*98 -> 81.65732324 | BM8: =BM7/100*98 -> 81.64863835 | BN8: =BN7/100*98 -> 81.64839309 | BO8: =BO7/100*98 -> 81.61886922 | BP8: =BP7/100*98 -> 81.61825695 | BQ8: =BQ7/100*98 -> 81.61519279 | BR8: =BR7/100*98 -> 81.60956405 | BS8: =BS7/100*98 -> 81.60642688 | BT8: =BT7/100*98 -> 81.60464246 | BU8: =BU7/100*98 -> 81.60211071 | BV8: =BV7/100*98 -> 81.58418977 | BW8: =BW7/100*98 -> 81.57769824 | BX8: =BX7/100*98 -> 81.57073267 | BY8: =BY7/100*98 -> 81.56876809 | BZ8: =BZ7/100*98 -> 81.54792911 | CA8: =CA7/100*98 -> 81.53924422 | CB8: =CB7/100*98 -> 81.53863195 | CC8: =CC7/100*98 -> 81.53556779 | CD8: =CD7/100*98 -> 81.52993905 | CE8: =CE7/100*98 -> 81.52680188 | CF8: =CF7/100*98 -> 81.52248571 | CG8: =CG7/100*98 -> 81.49847579 | CH8: =CH7/100*98 -> 81.48914309 | CI8: =CI7/100*98 -> 81.4780231 | CJ8: =CJ7/100*98 -> 81.46830411 | CK8: =CK7/100*98 -> 81.46456601 | CL8: =CL7/100*98 -> 81.45961922 | CM8: =CM7/100*98 -> 81.45900695 | CN8: =CN7/100*98 -> 81.45594279 | CO8: =CO7/100*98 -> 81.45235559 | CP8: =CP7/100*98 -> 81.45031405 | CQ8: =CQ7/100*98 -> 81.44825398 | CR8: =CR7/100*98 -> 81.44717688 | CS8: =CS7/100*98 -> 81.44286071 | CT8: =CT7/100*98 -> 81.43479689 | CU8: =CU7/100*98 -> 81.41827643 | CV8: =CV7/100*98 -> 81.39230913 | CW8: =CW7/100*98 -> 81.38867911 | CX8: =CX7/100*98 -> 81.37999422 | CY8: =CY7/100*98 -> 81.37938195 | CZ8: =CZ7/100*98 -> 81.37631779 | DA8: =DA7/100*98 -> 81.37273059 | DB8: =DB7/100*98 -> 81.37185643 | DC8: =DC7/100*98 -> 81.37068905 | DD8: =DD7/100*98 -> 81.36755188 | DE8: =DE7/100*98 -> 81.35839934 | DF8: =DF7/100*98 -> 81.34654866 | DG8: =DG7/100*98 -> 81.34208731 | DH8: =DH7/100*98 -> 81.33865143 | DI8: =DI7/100*98 -> 81.32863022 | DJ8: =DJ7/100*98 -> 81.30905411 | DK8: =DK7/100*98 -> 81.30515022 | DL8: =DL7/100*98 -> 81.30036922 | DM8: =DM7/100*98 -> 81.29975695 | DN8: =DN7/100*98 -> 81.29310559 | DO8: =DO7/100*98 -> 81.29106405 | DP8: =DP7/100*98 -> 81.28792688 | DQ8: =DQ7/100*98 -> 81.26998783 | DR8: =DR7/100*98 -> 81.26692366 | DS8: =DS7/100*98 -> 81.26129494 | DT8: =DT7/100*98 -> 81.25902643 | DU8: =DU7/100*98 -> 81.25815775 | DV8: =DV7/100*98 -> 81.24344037 | DW8: =DW7/100*98 -> 81.23789721 | DX8: =DX7/100*98 -> 81.23592065 | DY8: =DY7/100*98 -> 81.22942911 | DZ8: =DZ7/100*98 -> 81.22246355 | EA8: =EA7/100*98 -> 81.21348059 | EB8: =EB7/100*98 -> 81.19898355 | EC8: =EC7/100*98 -> 81.19036283 | ED8: =ED7/100*98 -> 81.18729866 | EE8: =EE7/100*98 -> 81.18166994 | EF8: =EF7/100*98 -> 81.17940143 | EG8: =EG7/100*98 -> 81.17853275 | EH8: =EH7/100*98 -> 81.17176983 | EI8: =EI7/100*98 -> 81.15827221 | EJ8: =EJ7/100*98 -> 81.13727371 | EK8: =EK7/100*98 -> 81.13385559 | EL8: =EL7/100*98 -> 81.12975398 | EM8: =EM7/100*98 -> 81.11629689 | EN8: =EN7/100*98 -> 81.11073783 | EO8: =EO7/100*98 -> 81.10767366 | EP8: =EP7/100*98 -> 81.10408647 | EQ8: =EQ7/100*98 -> 81.10204494 | ER8: =ER7/100*98 -> 81.09977643 | ES8: =ES7/100*98 -> 81.09890775 | ET8: =ET7/100*98 -> 81.09281688 | EU8: =EU7/100*98 -> 81.09214483 | EV8: =EV7/100*98 -> 81.08060169 | EW8: =EW7/100*98 -> 81.07864721 | EX8: =EX7/100*98 -> 81.0700073 | EY8: =EY7/100*98 -> 81.06235335 | EZ8: =EZ7/100*98 -> 81.05345172 | FA8: =FA7/100*98 -> 81.03111283 | FB8: =FB7/100*98 -> 81.03110704 | FC8: =FC7/100*98 -> 81.02804866 | FD8: =FD7/100*98 -> 81.02446147 | FE8: =FE7/100*98 -> 81.02358731 | FF8: =FF7/100*98 -> 81.02241994 | FG8: =FG7/100*98 -> 81.01928275 | FH8: =FH7/100*98 -> 81.01251983 | FI8: =FI7/100*98 -> 81.01013022 | FJ8: =FJ7/100*98 -> 81.00097669 | FK8: =FK7/100*98 -> 80.99902221 | FL8: =FL7/100*98 -> 80.99038231 | FM8: =FM7/100*98 -> 80.98665022 | FN8: =FN7/100*98 -> 80.98272835 | FO8: =FO7/100*98 -> 80.95886492 | FP8: =FP7/100*98 -> 80.95688109 | FQ8: =FQ7/100*98 -> 80.95148783 | FR8: =FR7/100*98 -> 80.94728506 | FS8: =FS7/100*98 -> 80.94483647 | FT8: =FT7/100*98 -> 80.94279494 | FU8: =FU7/100*98 -> 80.93965775 | FV8: =FV7/100*98 -> 80.93289483 | FW8: =FW7/100*98 -> 80.92494037 | FX8: =FX7/100*98 -> 80.92135169 | FY8: =FY7/100*98 -> 80.91939721 | FZ8: =FZ7/100*98 -> 80.91075731 | GA8: =GA7/100*98 -> 80.90310335 | GB8: =GB7/100*98 -> 80.89517126 | GC8: =GC7/100*98 -> 80.89376827 | GD8: =GD7/100*98 -> 80.88962809 | GE8: =GE7/100*98 -> 80.88048355 | GF8: =GF7/100*98 -> 80.86521147 | GG8: =GG7/100*98 -> 80.85326983 | GH8: =GH7/100*98 -> 80.85269824 | GI8: =GI7/100*98 -> 80.85071443 | GJ8: =GJ7/100*98 -> 80.84172669 | GK8: =GK7/100*98 -> 80.8411184 | GL8: =GL7/100*98 -> 80.8311323 | GM8: =GM7/100*98 -> 80.82350071 | GN8: =GN7/100*98 -> 80.82347835 | GO8: =GO7/100*98 -> 80.81877371 | GP8: =GP7/100*98 -> 80.81000309 | GQ8: =GQ7/100*98 -> 80.78900458 | GR8: =GR7/100*98 -> 80.78558647 | GS8: =GS7/100*98 -> 80.76210169 | GT8: =GT7/100*98 -> 80.75150731 | GU8: =GU7/100*98 -> 80.74653158 | GV8: =GV7/100*98 -> 80.74454777 | GW8: =GW7/100*98 -> 80.74387571 | GX8: =GX7/100*98 -> 80.74385335 | GY8: =GY7/100*98 -> 80.73711279 | GZ8: =GZ7/100*98 -> 80.73495172 | HA8: =HA7/100*98 -> 80.73451827 | HB8: =HB7/100*98 -> 80.73233257 | HC8: =HC7/100*98 -> 80.73037809 | HD8: =HD7/100*98 -> 80.72692302 | HE8: =HE7/100*98 -> 80.72216485 | HF8: =HF7/100*98 -> 80.71408422 | HG8: =HG7/100*98 -> 80.70518261 | HH8: =HH7/100*98 -> 80.69035766 | HI8: =HI7/100*98 -> 80.68283792 | HJ8: =HJ7/100*98 -> 80.68039695 | HK8: =HK7/100*98 -> 80.68018145 | HL8: =HL7/100*98 -> 80.66425071 | HM8: =HM7/100*98 -> 80.65748779 | HN8: =HN7/100*98 -> 80.65270757 | HO8: =HO7/100*98 -> 80.65075309 | HP8: =HP7/100*98 -> 80.64729802 | HQ8: =HQ7/100*98 -> 80.64253985 | HR8: =HR7/100*98 -> 80.64036492 | HS8: =HS7/100*98 -> 80.63838109 | HT8: =HT7/100*98 -> 80.63445922 | HU8: =HU7/100*98 -> 80.62878506 | HV8: =HV7/100*98 -> 80.61059579 | HW8: =HW7/100*98 -> 80.60077195 | HX8: =HX7/100*98 -> 80.60055645 | HY8: =HY7/100*98 -> 80.59901594 | HZ8: =HZ7/100*98 -> 80.58827654 | IA8: =IA7/100*98 -> 80.58462571 | IB8: =IB7/100*98 -> 80.58419098 | IC8: =IC7/100*98 -> 80.57786279 | ID8: =ID7/100*98 -> 80.57668601 | IE8: =IE7/100*98 -> 80.57667126 | IF8: =IF7/100*98 -> 80.57526827 | IG8: =IG7/100*98 -> 80.57308257 | IH8: =IH7/100*98 -> 80.5725031 | II8: =II7/100*98 -> 80.57112809 | IJ8: =IJ7/100*98 -> 80.56767303 | IK8: =IK7/100*98 -> 80.56291485 | IL8: =IL7/100*98 -> 80.55483422 | IM8: =IM7/100*98 -> 80.54549915 | IN8: =IN7/100*98 -> 80.53434059 | IO8: =IO7/100*98 -> 80.53419824 | IP8: =IP7/100*98 -> 80.53221443 | IQ8: =IQ7/100*98 -> 80.52114695 | IR8: =IR7/100*98 -> 80.52093145 | IS8: =IS7/100*98 -> 80.50790979 | IT8: =IT7/100*98 -> 80.50500071 | IU8: =IU7/100*98 -> 80.50442913 | IV8: =IV7/100*98 -> 80.49823779 | IW8: =IW7/100*98 -> 80.49345757 | IX8: =IX7/100*98 -> 80.49284927 | IY8: =IY7/100*98 -> 80.48804802 | IZ8: =IZ7/100*98 -> 80.48328985 | JA8: =JA7/100*98 -> 80.48210987 | JB8: =JB7/100*98 -> 80.47802432 | JC8: =JC7/100*98 -> 80.47520922 | JD8: =JD7/100*98 -> 80.47051934 | JE8: =JE7/100*98 -> 80.47050458 | JF8: =JF7/100*98 -> 80.46633643 | JG8: =JG7/100*98 -> 80.45471559 | JH8: =JH7/100*98 -> 80.44734143 | JI8: =JI7/100*98 -> 80.44152195 | JJ8: =JJ7/100*98 -> 80.44130645 | JK8: =JK7/100*98 -> 80.42828479 | JL8: =JL7/100*98 -> 80.41861279 | JM8: =JM7/100*98 -> 80.41601827 | JN8: =JN7/100*98 -> 80.41383257 | JO8: =JO7/100*98 -> 80.40842303 | JP8: =JP7/100*98 -> 80.40366485 | JQ8: =JQ7/100*98 -> 80.39826246 | JR8: =JR7/100*98 -> 80.39558422 | JS8: =JS7/100*98 -> 80.38884366 | JT8: =JT7/100*98 -> 80.38822324 | JU8: =JU7/100*98 -> 80.38668261 | JV8: =JV7/100*98 -> 80.38624915 | JW8: =JW7/100*98 -> 80.37865391 | JX8: =JX7/100*98 -> 80.3759432 | JY8: =JY7/100*98 -> 80.37509059 | JZ8: =JZ7/100*98 -> 80.37389572 | KA8: =KA7/100*98 -> 80.37185766 | KB8: =KB7/100*98 -> 80.36771643 | KC8: =KC7/100*98 -> 80.36707472 | KD8: =KD7/100*98 -> 80.36435267 | KE8: =KE7/100*98 -> 80.36189695 | KF8: =KF7/100*98 -> 80.36168145 | KG8: =KG7/100*98 -> 80.36016977 | KH8: =KH7/100*98 -> 80.34865979 | KI8: =KI7/100*98 -> 80.34208853 | KJ8: =KJ7/100*98 -> 80.34068554 | KK8: =KK7/100*98 -> 80.33212783 | KL8: =KL7/100*98 -> 80.33191233 | KM8: =KM7/100*98 -> 80.32163584 | KN8: =KN7/100*98 -> 80.3204999 | KO8: =KO7/100*98 -> 80.30921866 | KP8: =KP7/100*98 -> 80.30859824 | KQ8: =KQ7/100*98 -> 80.29902891 | KR8: =KR7/100*98 -> 80.29546559 | KS8: =KS7/100*98 -> 80.29427072 | KT8: =KT7/100*98 -> 80.29209579 | KU8: =KU7/100*98 -> 80.28809143 | KV8: =KV7/100*98 -> 80.28051594 | KW8: =KW7/100*98 -> 80.26977654 | KX8: =KX7/100*98 -> 80.26903479 | KY8: =KY7/100*98 -> 80.26569098 | KZ8: =KZ7/100*98 -> 80.26090805 | LA8: =LA7/100*98 -> 80.25818601 | LB8: =LB7/100*98 -> 80.25676827 | LC8: =LC7/100*98 -> 80.2540031 | LD8: =LD7/100*98 -> 80.25250283 | LE8: =LE7/100*98 -> 80.25228733 | LF8: =LF7/100*98 -> 80.24000742 | LG8: =LG7/100*98 -> 80.23592187 | LH8: =LH7/100*98 -> 80.22959366 | LI8: =LI7/100*98 -> 80.22897324 | LJ8: =LJ7/100*98 -> 80.22841689 | LK8: =LK7/100*98 -> 80.22699915 | LL8: =LL7/100*98 -> 80.22423398 | LM8: =LM7/100*98 -> 80.21940391 | LN8: =LN7/100*98 -> 80.21584059 | LO8: =LO7/100*98 -> 80.21546917 | LP8: =LP7/100*98 -> 80.21464572 | LQ8: =LQ7/100*98 -> 80.20846643 | LR8: =LR7/100*98 -> 80.18940979 | LS8: =LS7/100*98 -> 80.18607147 | LT8: =LT7/100*98 -> 80.18592913 | LU8: =LU7/100*98 -> 80.18143554 | LV8: =LV7/100*98 -> 80.17287783 | LW8: =LW7/100*98 -> 80.17266233 | LX8: =LX7/100*98 -> 80.16360987 | LY8: =LY7/100*98 -> 80.1612499 | LZ8: =LZ7/100*98 -> 80.15964068 | MA8: =MA7/100*98 -> 80.15474138 | MB8: =MB7/100*98 -> 80.15201934 | MC8: =MC7/100*98 -> 80.14996866 | MD8: =MD7/100*98 -> 80.14934824 | ME8: =ME7/100*98 -> 80.14783643 | MF8: =MF7/100*98 -> 80.13977891 | MG8: =MG7/100*98 -> 80.13901279 | MH8: =MH7/100*98 -> 80.13502072 | MI8: =MI7/100*98 -> 80.13384075 | MJ8: =MJ7/100*98 -> 80.1297552 | MK8: =MK7/100*98 -> 80.12884143 | ML8: =ML7/100*98 -> 80.12289669 | MM8: =MM7/100*98 -> 80.12225022 | MN8: =MN7/100*98 -> 80.11806731 | MO8: =MO7/100*98 -> 80.10930251 | MP8: =MP7/100*98 -> 80.10644647 | MQ8: =MQ7/100*98 -> 80.10158905 | MR8: =MR7/100*98 -> 80.0990723 | MS8: =MS7/100*98 -> 80.09325283 | MT8: =MT7/100*98 -> 80.09303733 | MU8: =MU7/100*98 -> 80.08113022 | MV8: =MV7/100*98 -> 80.08001568
A9: 81.14496357 | B9: 81.06693107 | C9: 80.98889857 | D9: 80.91086607 | E9: 80.87395304 | F9: 80.86406207 | G9: 80.83283357 | H9: 80.80365983 | I9: 80.79592054 | J9: 80.78602957 | K9: 80.72562733 | L9: 80.71788804 | M9: 80.70799707 | N9: 80.64759483 | O9: 80.63985554 | P9: 80.62996457 | Q9: 80.56956233 | R9: 80.56182304 | S9: 80.55193207 | T9: 80.5326493 | U9: 80.52275834 | V9: 80.52194002 | W9: 80.51279397 | X9: 80.49152983 | Y9: 80.46743723 | Z9: 80.45461679 | AA9: 80.44472584 | AB9: 80.43476147 | AC9: 80.41789668 | AD9: 80.38940473 | AE9: 80.3765843 | AF9: 80.36669334 | AG9: 80.35672897 | AH9: 80.32779558 | AI9: 80.31385335 | AJ9: 80.31137223 | AK9: 80.2985518 | AL9: 80.28866084 | AM9: 80.27869647 | AN9: 80.25827427 | AO9: 80.24976308 | AP9: 80.23333973 | AQ9: 80.2205193 | AR9: 80.21062834 | AS9: 80.20981002 | AT9: 80.20066397 | AU9: 80.18063627 | AV9: 80.18024177 | AW9: 80.17173058 | AX9: 80.17149023 | AY9: 80.16059264 | AZ9: 80.15530723 | BA9: 80.14740469 | BB9: 80.1261335 | BC9: 80.10576668 | BD9: 80.10220927 | BE9: 80.09369808 | BF9: 80.09345773 | BG9: 80.07659294 | BH9: 80.06092143 | BI9: 80.0565493 | BJ9: 80.048101 | BK9: 80.04336136 | BL9: 80.02417677 | BM9: 80.01566558 | BN9: 80.01542523 | BO9: 79.98649184 | BP9: 79.98589181 | BQ9: 79.98288893 | BR9: 79.97737277 | BS9: 79.97429834 | BT9: 79.97254961 | BU9: 79.9700685 | BV9: 79.95250597 | BW9: 79.94614427 | BX9: 79.93931802 | BY9: 79.93739273 | BZ9: 79.91697053 | CA9: 79.90845934 | CB9: 79.90785931 | CC9: 79.90485643 | CD9: 79.89934027 | CE9: 79.89626584 | CF9: 79.892036 | CG9: 79.86850627 | CH9: 79.85936023 | CI9: 79.84846264 | CJ9: 79.83893803 | CK9: 79.83527469 | CL9: 79.83042684 | CM9: 79.82982681 | CN9: 79.82682393 | CO9: 79.82330848 | CP9: 79.82130777 | CQ9: 79.8192889 | CR9: 79.81823334 | CS9: 79.8140035 | CT9: 79.80610095 | CU9: 79.7899109 | CV9: 79.76446294 | CW9: 79.76090553 | CX9: 79.75239434 | CY9: 79.75179431 | CZ9: 79.74879143 | DA9: 79.74527598 | DB9: 79.7444193 | DC9: 79.74327527 | DD9: 79.74020084 | DE9: 79.73123136 | DF9: 79.71961769 | DG9: 79.71524557 | DH9: 79.7118784 | DI9: 79.70205761 | DJ9: 79.68287303 | DK9: 79.67904722 | DL9: 79.67436184 | DM9: 79.67376181 | DN9: 79.66724348 | DO9: 79.66524277 | DP9: 79.66216834 | DQ9: 79.64458807 | DR9: 79.64158519 | DS9: 79.63606904 | DT9: 79.6338459 | DU9: 79.63299459 | DV9: 79.61857157 | DW9: 79.61313927 | DX9: 79.61120224 | DY9: 79.60484053 | DZ9: 79.59801428 | EA9: 79.58921098 | EB9: 79.57500388 | EC9: 79.56655557 | ED9: 79.56355269 | EE9: 79.55803654 | EF9: 79.5558134 | EG9: 79.55496209 | EH9: 79.54833443 | EI9: 79.53510677 | EJ9: 79.51452824 | EK9: 79.51117848 | EL9: 79.5071589 | EM9: 79.49397095 | EN9: 79.48852307 | EO9: 79.48552019 | EP9: 79.48200474 | EQ9: 79.48000404 | ER9: 79.4777809 | ES9: 79.47692959 | ET9: 79.47096055 | EU9: 79.47030193 | EV9: 79.45898966 | EW9: 79.45707427 | EX9: 79.44860716 | EY9: 79.44110628 | EZ9: 79.43238269 | FA9: 79.41049057 | FB9: 79.4104849 | FC9: 79.40748769 | FD9: 79.40397224 | FE9: 79.40311557 | FF9: 79.40197154 | FG9: 79.39889709 | FH9: 79.39226943 | FI9: 79.38992761 | FJ9: 79.38095716 | FK9: 79.37904177 | FL9: 79.37057466 | FM9: 79.36691722 | FN9: 79.36307378 | FO9: 79.33968762 | FP9: 79.33774347 | FQ9: 79.33245807 | FR9: 79.32833936 | FS9: 79.32593974 | FT9: 79.32393904 | FU9: 79.3208646 | FV9: 79.31423693 | FW9: 79.30644157 | FX9: 79.30292466 | FY9: 79.30100927 | FZ9: 79.29254216 | GA9: 79.28504128 | GB9: 79.27726783 | GC9: 79.2758929 | GD9: 79.27183553 | GE9: 79.26287388 | GF9: 79.24790724 | GG9: 79.23620443 | GH9: 79.23564428 | GI9: 79.23370014 | GJ9: 79.22489216 | GK9: 79.22429603 | GL9: 79.21450966 | GM9: 79.2070307 | GN9: 79.20700878 | GO9: 79.20239824 | GP9: 79.19380303 | GQ9: 79.17322449 | GR9: 79.16987474 | GS9: 79.14685966 | GT9: 79.13647716 | GU9: 79.13160095 | GV9: 79.12965681 | GW9: 79.1289982 | GX9: 79.12897628 | GY9: 79.12237053 | GZ9: 79.12025269 | HA9: 79.1198279 | HB9: 79.11768591 | HC9: 79.11577053 | HD9: 79.11238456 | HE9: 79.10772155 | HF9: 79.09980254 | HG9: 79.09107895 | HH9: 79.0765505 | HI9: 79.06918116 | HJ9: 79.06678901 | HK9: 79.06657783 | HL9: 79.0509657 | HM9: 79.04433803 | HN9: 79.03965341 | HO9: 79.03773803 | HP9: 79.03435206 | HQ9: 79.02968905 | HR9: 79.02755762 | HS9: 79.02561347 | HT9: 79.02177004 | HU9: 79.01620936 | HV9: 78.99838387 | HW9: 78.98875651 | HX9: 78.98854533 | HY9: 78.98703562 | HZ9: 78.976511 | IA9: 78.9729332 | IB9: 78.97250716 | IC9: 78.96630553 | ID9: 78.96515229 | IE9: 78.96513783 | IF9: 78.9637629 | IG9: 78.96162091 | IH9: 78.96105304 | II9: 78.95970553 | IJ9: 78.95631956 | IK9: 78.95165655 | IL9: 78.94373754 | IM9: 78.93458917 | IN9: 78.92365378 | IO9: 78.92351428 | IP9: 78.92157014 | IQ9: 78.91072401 | IR9: 78.91051283 | IS9: 78.8977516 | IT9: 78.8949007 | IU9: 78.89434054 | IV9: 78.88827303 | IW9: 78.88358841 | IX9: 78.88299228 | IY9: 78.87828706 | IZ9: 78.87362405 | JA9: 78.87246767 | JB9: 78.86846383 | JC9: 78.86570504 | JD9: 78.86110896 | JE9: 78.86109449 | JF9: 78.8570097 | JG9: 78.84562128 | JH9: 78.8383946 | JI9: 78.83269151 | JJ9: 78.83248033 | JK9: 78.8197191 | JL9: 78.81024053 | JM9: 78.8076979 | JN9: 78.80555591 | JO9: 78.80025456 | JP9: 78.79559155 | JQ9: 78.79029721 | JR9: 78.78767254 | JS9: 78.78106679 | JT9: 78.78045877 | JU9: 78.77894895 | JV9: 78.77852417 | JW9: 78.77108083 | JX9: 78.76842433 | JY9: 78.76758878 | JZ9: 78.76641781 | KA9: 78.7644205 | KB9: 78.7603621 | KC9: 78.75973322 | KD9: 78.75706562 | KE9: 78.75465901 | KF9: 78.75444783 | KG9: 78.75296637 | KH9: 78.7416866 | KI9: 78.73524676 | KJ9: 78.73387183 | KK9: 78.72548527 | KL9: 78.72527408 | KM9: 78.71520313 | KN9: 78.71408991 | KO9: 78.70303429 | KP9: 78.70242627 | KQ9: 78.69304833 | KR9: 78.68955628 | KS9: 78.68838531 | KT9: 78.68625387 | KU9: 78.6823296 | KV9: 78.67490562 | KW9: 78.664381 | KX9: 78.6636541 | KY9: 78.66037716 | KZ9: 78.65568989 | LA9: 78.65302229 | LB9: 78.6516329 | LC9: 78.64892304 | LD9: 78.64745277 | LE9: 78.64724158 | LF9: 78.63520727 | LG9: 78.63120343 | LH9: 78.62500179 | LI9: 78.62439377 | LJ9: 78.62384855 | LK9: 78.62245917 | LL9: 78.6197493 | LM9: 78.61501583 | LN9: 78.61152378 | LO9: 78.61115979 | LP9: 78.61035281 | LQ9: 78.6042971 | LR9: 78.5856216 | LS9: 78.58235004 | LT9: 78.58221054 | LU9: 78.57780683 | LV9: 78.56942027 | LW9: 78.56920908 | LX9: 78.56033767 | LY9: 78.55802491 | LZ9: 78.55644786 | MA9: 78.55164655 | MB9: 78.54897896 | MC9: 78.54696929 | MD9: 78.54636127 | ME9: 78.5448797 | MF9: 78.53698333 | MG9: 78.53623254 | MH9: 78.53232031 | MI9: 78.53116393 | MJ9: 78.5271601 | MK9: 78.5262646 | ML9: 78.52043876 | MM9: 78.51980521 | MN9: 78.51570597 | MO9: 78.50711646 | MP9: 78.50431754 | MQ9: 78.49955727 | MR9: 78.49709086 | MS9: 78.49138777 | MT9: 78.49117658 | MU9: 78.47950762 | MV9: 78.47841536
A10: 79.5220643 | B10: 79.44559245 | C10: 79.3691206 | D10: 79.29264875 | E10: 79.25647398 | F10: 79.24678083 | G10: 79.2161769 | H10: 79.18758663 | I10: 79.18000213 | J10: 79.17030898 | K10: 79.11111478 | L10: 79.10353028 | M10: 79.09383713 | N10: 79.03464293 | O10: 79.02705843 | P10: 79.01736528 | Q10: 78.95817108 | R10: 78.95058658 | S10: 78.94089343 | T10: 78.92199631 | U10: 78.91230317 | V10: 78.91150122 | W10: 78.90253809 | X10: 78.88169923 | Y10: 78.85808849 | Z10: 78.84552446 | AA10: 78.83583132 | AB10: 78.82606624 | AC10: 78.80953875 | AD10: 78.78161664 | AE10: 78.76905261 | AF10: 78.75935947 | AG10: 78.74959439 | AH10: 78.72123967 | AI10: 78.70757628 | AJ10: 78.70514479 | AK10: 78.69258076 | AL10: 78.68288762 | AM10: 78.67312254 | AN10: 78.65310879 | AO10: 78.64476782 | AP10: 78.62867294 | AQ10: 78.61610891 | AR10: 78.60641577 | AS10: 78.60561382 | AT10: 78.59665069 | AU10: 78.57702355 | AV10: 78.57663694 | AW10: 78.56829597 | AX10: 78.56806043 | AY10: 78.55738079 | AZ10: 78.55220109 | BA10: 78.54445659 | BB10: 78.52361083 | BC10: 78.50365135 | BD10: 78.50016509 | BE10: 78.49182412 | BF10: 78.49158858 | BG10: 78.47506109 | BH10: 78.45970301 | BI10: 78.45541831 | BJ10: 78.44713898 | BK10: 78.44249413 | BL10: 78.42369324 | BM10: 78.41535227 | BN10: 78.41511673 | BO10: 78.386762 | BP10: 78.38617397 | BQ10: 78.38323116 | BR10: 78.37782532 | BS10: 78.37481237 | BT10: 78.37309862 | BU10: 78.37066713 | BV10: 78.35345585 | BW10: 78.34722139 | BX10: 78.34053166 | BY10: 78.33864488 | BZ10: 78.31863112 | CA10: 78.31029015 | CB10: 78.30970212 | CC10: 78.30675931 | CD10: 78.30135347 | CE10: 78.29834052 | CF10: 78.29419528 | CG10: 78.27113615 | CH10: 78.26217303 | CI10: 78.25149339 | CJ10: 78.24215927 | CK10: 78.23856919 | CL10: 78.2338183 | CM10: 78.23323027 | CN10: 78.23028746 | CO10: 78.22684231 | CP10: 78.22488162 | CQ10: 78.22290312 | CR10: 78.22186867 | CS10: 78.21772343 | CT10: 78.20997893 | CU10: 78.19411269 | CV10: 78.16917369 | CW10: 78.16568742 | CX10: 78.15734645 | CY10: 78.15675842 | CZ10: 78.15381561 | DA10: 78.15037046 | DB10: 78.14953091 | DC10: 78.14840977 | DD10: 78.14539682 | DE10: 78.13660673 | DF10: 78.12522534 | DG10: 78.12094065 | DH10: 78.11764084 | DI10: 78.10801646 | DJ10: 78.08921557 | DK10: 78.08546627 | DL10: 78.0808746 | DM10: 78.08028657 | DN10: 78.07389861 | DO10: 78.07193792 | DP10: 78.06892497 | DQ10: 78.05169631 | DR10: 78.04875349 | DS10: 78.04334766 | DT10: 78.04116899 | DU10: 78.0403347 | DV10: 78.02620014 | DW10: 78.02087648 | DX10: 78.01897819 | DY10: 78.01274372 | DZ10: 78.006054 | EA10: 77.99742676 | EB10: 77.9835038 | EC10: 77.97522446 | ED10: 77.97228164 | EE10: 77.96687581 | EF10: 77.96469714 | EG10: 77.96386285 | EH10: 77.95736774 | EI10: 77.94440463 | EJ10: 77.92423767 | EK10: 77.92095491 | EL10: 77.91701572 | EM10: 77.90409153 | EN10: 77.89875261 | EO10: 77.89580979 | EP10: 77.89236465 | EQ10: 77.89040396 | ER10: 77.88822529 | ES10: 77.887391 | ET10: 77.88154133 | EU10: 77.88089589 | EV10: 77.86980987 | EW10: 77.86793278 | EX10: 77.85963502 | EY10: 77.85228416 | EZ10: 77.84373504 | FA10: 77.82228076 | FB10: 77.8222752 | FC10: 77.81933794 | FD10: 77.8158928 | FE10: 77.81505325 | FF10: 77.81393211 | FG10: 77.81091915 | FH10: 77.80442404 | FI10: 77.80212906 | FJ10: 77.79333802 | FK10: 77.79146093 | FL10: 77.78316317 | FM10: 77.77957887 | FN10: 77.77581231 | FO10: 77.75289387 | FP10: 77.7509886 | FQ10: 77.74580891 | FR10: 77.74177257 | FS10: 77.73942095 | FT10: 77.73746026 | FU10: 77.7344473 | FV10: 77.72795219 | FW10: 77.72031274 | FX10: 77.71686617 | FY10: 77.71498908 | FZ10: 77.70669132 | GA10: 77.69934046 | GB10: 77.69172248 | GC10: 77.69037505 | GD10: 77.68639882 | GE10: 77.6776164 | GF10: 77.6629491 | GG10: 77.65148034 | GH10: 77.65093139 | GI10: 77.64902614 | GJ10: 77.64039432 | GK10: 77.63981011 | GL10: 77.63021947 | GM10: 77.62289008 | GN10: 77.62286861 | GO10: 77.61835027 | GP10: 77.60992697 | GQ10: 77.58976 | GR10: 77.58647725 | GS10: 77.56392247 | GT10: 77.55374762 | GU10: 77.54896893 | GV10: 77.54706367 | GW10: 77.54641823 | GX10: 77.54639676 | GY10: 77.53992312 | GZ10: 77.53784764 | HA10: 77.53743135 | HB10: 77.5353322 | HC10: 77.53345512 | HD10: 77.53013687 | HE10: 77.52556712 | HF10: 77.51780649 | HG10: 77.50925738 | HH10: 77.49501949 | HI10: 77.48779754 | HJ10: 77.48545323 | HK10: 77.48524627 | HL10: 77.46994638 | HM10: 77.46345127 | HN10: 77.45886035 | HO10: 77.45698327 | HP10: 77.45366502 | HQ10: 77.44909527 | HR10: 77.44700647 | HS10: 77.4451012 | HT10: 77.44133464 | HU10: 77.43588517 | HV10: 77.4184162 | HW10: 77.40898138 | HX10: 77.40877442 | HY10: 77.40729491 | HZ10: 77.39698078 | IA10: 77.39347453 | IB10: 77.39305702 | IC10: 77.38697942 | ID10: 77.38584924 | IE10: 77.38583508 | IF10: 77.38448765 | IG10: 77.3823885 | IH10: 77.38183198 | II10: 77.38051142 | IJ10: 77.37719317 | IK10: 77.37262342 | IL10: 77.36486279 | IM10: 77.35589739 | IN10: 77.3451807 | IO10: 77.34504399 | IP10: 77.34313874 | IQ10: 77.33250953 | IR10: 77.33230257 | IS10: 77.31979657 | IT10: 77.31700268 | IU10: 77.31645373 | IV10: 77.31050757 | IW10: 77.30591665 | IX10: 77.30533244 | IY10: 77.30072132 | IZ10: 77.29615157 | JA10: 77.29501832 | JB10: 77.29109456 | JC10: 77.28839094 | JD10: 77.28388678 | JE10: 77.2838726 | JF10: 77.27986951 | JG10: 77.26870885 | JH10: 77.26162671 | JI10: 77.25603768 | JJ10: 77.25583072 | JK10: 77.24332472 | JL10: 77.23403572 | JM10: 77.23154395 | JN10: 77.2294448 | JO10: 77.22424947 | JP10: 77.21967972 | JQ10: 77.21449127 | JR10: 77.21191909 | JS10: 77.20544545 | JT10: 77.2048496 | JU10: 77.20336998 | JV10: 77.20295369 | JW10: 77.19565921 | JX10: 77.19305585 | JY10: 77.192237 | JZ10: 77.19108945 | KA10: 77.18913209 | KB10: 77.18515486 | KC10: 77.18453856 | KD10: 77.1819243 | KE10: 77.17956583 | KF10: 77.17935887 | KG10: 77.17790704 | KH10: 77.16685287 | KI10: 77.16054182 | KJ10: 77.1591944 | KK10: 77.15097557 | KL10: 77.1507686 | KM10: 77.14089906 | KN10: 77.13980811 | KO10: 77.1289736 | KP10: 77.12837775 | KQ10: 77.11918736 | KR10: 77.11576515 | KS10: 77.1146176 | KT10: 77.1125288 | KU10: 77.10868301 | KV10: 77.10140751 | KW10: 77.09109338 | KX10: 77.09038102 | KY10: 77.08716962 | KZ10: 77.0825761 | LA10: 77.07996184 | LB10: 77.07860025 | LC10: 77.07594458 | LD10: 77.07450372 | LE10: 77.07429675 | LF10: 77.06250312 | LG10: 77.05857936 | LH10: 77.05250175 | LI10: 77.0519059 | LJ10: 77.05137158 | LK10: 77.05000999 | LL10: 77.04735431 | LM10: 77.04271551 | LN10: 77.0392933 | LO10: 77.03893659 | LP10: 77.03814575 | LQ10: 77.03221116 | LR10: 77.01390917 | LS10: 77.01070304 | LT10: 77.01056633 | LU10: 77.0062507 | LV10: 76.99803187 | LW10: 76.9978249 | LX10: 76.98913092 | LY10: 76.98686441 | LZ10: 76.98531891 | MA10: 76.98061362 | MB10: 76.97799938 | MC10: 76.9760299 | MD10: 76.97543405 | ME10: 76.97398211 | MF10: 76.96624366 | MG10: 76.96550789 | MH10: 76.9616739 | MI10: 76.96054065 | MJ10: 76.9566169 | MK10: 76.95573931 | ML10: 76.95002998 | MM10: 76.94940911 | MN10: 76.94539185 | MO10: 76.93697413 | MP10: 76.93423119 | MQ10: 76.92956613 | MR10: 76.92714904 | MS10: 76.92156002 | MT10: 76.92135305 | MU10: 76.90991746 | MV10: 76.90884706
A11: 77.93162301 | B11: 77.8566806 | C11: 77.78173819 | D11: 77.70679577 | E11: 77.6713445 | F11: 77.66184521 | G11: 77.63185336 | H11: 77.6038349 | I11: 77.59640209 | J11: 77.5869028 | K11: 77.52889248 | L11: 77.52145967 | M11: 77.51196039 | N11: 77.45395007 | O11: 77.44651726 | P11: 77.43701797 | Q11: 77.37900766 | R11: 77.37157485 | S11: 77.36207556 | T11: 77.34355638 | U11: 77.33405711 | V11: 77.33327119 | W11: 77.32448733 | X11: 77.30406525 | Y11: 77.28092672 | Z11: 77.26861397 | AA11: 77.25911469 | AB11: 77.24954491 | AC11: 77.23334797 | AD11: 77.2059843 | AE11: 77.19367156 | AF11: 77.18417228 | AG11: 77.1746025 | AH11: 77.14681488 | AI11: 77.13342476 | AJ11: 77.13104189 | AK11: 77.11872914 | AL11: 77.10922987 | AM11: 77.09966009 | AN11: 77.08004661 | AO11: 77.07187246 | AP11: 77.05609948 | AQ11: 77.04378673 | AR11: 77.03428745 | AS11: 77.03350154 | AT11: 77.02471767 | AU11: 77.00548308 | AV11: 77.0051042 | AW11: 76.99693005 | AX11: 76.99669922 | AY11: 76.98623317 | AZ11: 76.98115707 | BA11: 76.97356746 | BB11: 76.95313861 | BC11: 76.93357832 | BD11: 76.93016178 | BE11: 76.92198764 | BF11: 76.92175681 | BG11: 76.90555986 | BH11: 76.89050895 | BI11: 76.88630995 | BJ11: 76.8781962 | BK11: 76.87364425 | BL11: 76.85521937 | BM11: 76.84704522 | BN11: 76.84681439 | BO11: 76.81902676 | BP11: 76.81845049 | BQ11: 76.81556653 | BR11: 76.81026881 | BS11: 76.80731613 | BT11: 76.80563665 | BU11: 76.80325379 | BV11: 76.78638673 | BW11: 76.78027696 | BX11: 76.77372102 | BY11: 76.77187198 | BZ11: 76.75225849 | CA11: 76.74408435 | CB11: 76.74350808 | CC11: 76.74062412 | CD11: 76.7353264 | CE11: 76.73237371 | CF11: 76.72831137 | CG11: 76.70571343 | CH11: 76.69692957 | CI11: 76.68646352 | CJ11: 76.67731608 | CK11: 76.67379781 | CL11: 76.66914193 | CM11: 76.66856567 | CN11: 76.66568171 | CO11: 76.66230546 | CP11: 76.66038398 | CQ11: 76.65844506 | CR11: 76.6574313 | CS11: 76.65336896 | CT11: 76.64577935 | CU11: 76.63023043 | CV11: 76.60579021 | CW11: 76.60237367 | CX11: 76.59419952 | CY11: 76.59362325 | CZ11: 76.59073929 | DA11: 76.58736305 | DB11: 76.5865403 | DC11: 76.58544157 | DD11: 76.58248889 | DE11: 76.57387459 | DF11: 76.56272083 | DG11: 76.55852184 | DH11: 76.55528802 | DI11: 76.54585613 | DJ11: 76.52743125 | DK11: 76.52375695 | DL11: 76.51925711 | DM11: 76.51868084 | DN11: 76.51242064 | DO11: 76.51049916 | DP11: 76.50754647 | DQ11: 76.49066239 | DR11: 76.48777842 | DS11: 76.4824807 | DT11: 76.48034561 | DU11: 76.47952801 | DV11: 76.46567613 | DW11: 76.46045895 | DX11: 76.45859863 | DY11: 76.45248884 | DZ11: 76.44593292 | EA11: 76.43747822 | EB11: 76.42383372 | EC11: 76.41571997 | ED11: 76.412836 | EE11: 76.40753829 | EF11: 76.40540319 | EG11: 76.4045856 | EH11: 76.39822039 | EI11: 76.38551654 | EJ11: 76.36575292 | EK11: 76.36253581 | EL11: 76.3586754 | EM11: 76.3460097 | EN11: 76.34077756 | EO11: 76.33789359 | EP11: 76.33451735 | EQ11: 76.33259588 | ER11: 76.33046078 | ES11: 76.32964318 | ET11: 76.32391051 | EU11: 76.32327798 | EV11: 76.31241367 | EW11: 76.31057413 | EX11: 76.30244232 | EY11: 76.29523847 | EZ11: 76.28686034 | FA11: 76.26583515 | FB11: 76.2658297 | FC11: 76.26295118 | FD11: 76.25957494 | FE11: 76.25875219 | FF11: 76.25765346 | FG11: 76.25470077 | FH11: 76.24833556 | FI11: 76.24608648 | FJ11: 76.23747126 | FK11: 76.23563171 | FL11: 76.2274999 | FM11: 76.22398729 | FN11: 76.22029606 | FO11: 76.19783599 | FP11: 76.19596883 | FQ11: 76.19089273 | FR11: 76.18693712 | FS11: 76.18463253 | FT11: 76.18271105 | FU11: 76.17975836 | FV11: 76.17339315 | FW11: 76.16590648 | FX11: 76.16252884 | FY11: 76.1606893 | FZ11: 76.15255749 | GA11: 76.14535365 | GB11: 76.13788803 | GC11: 76.13656755 | GD11: 76.13267084 | GE11: 76.12406407 | GF11: 76.10969012 | GG11: 76.09845074 | GH11: 76.09791277 | GI11: 76.09604562 | GJ11: 76.08758643 | GK11: 76.08701391 | GL11: 76.07761508 | GM11: 76.07043228 | GN11: 76.07041123 | GO11: 76.06598327 | GP11: 76.05772843 | GQ11: 76.0379648 | GR11: 76.0347477 | GS11: 76.01264402 | GT11: 76.00267266 | GU11: 75.99798955 | GV11: 75.9961224 | GW11: 75.99548987 | GX11: 75.99546882 | GY11: 75.98912466 | GZ11: 75.98709068 | HA11: 75.98668272 | HB11: 75.98462555 | HC11: 75.98278602 | HD11: 75.97953414 | HE11: 75.97505578 | HF11: 75.96745036 | HG11: 75.95907223 | HH11: 75.9451191 | HI11: 75.93804159 | HJ11: 75.93574416 | HK11: 75.93554134 | HL11: 75.92054746 | HM11: 75.91418225 | HN11: 75.90968314 | HO11: 75.90784361 | HP11: 75.90459172 | HQ11: 75.90011337 | HR11: 75.89806634 | HS11: 75.89619918 | HT11: 75.89250794 | HU11: 75.88716747 | HV11: 75.87004787 | HW11: 75.86080175 | HX11: 75.86059893 | HY11: 75.85914901 | HZ11: 75.84904117 | IA11: 75.84560504 | IB11: 75.84519588 | IC11: 75.83923984 | ID11: 75.83813226 | IE11: 75.83811837 | IF11: 75.83679789 | IG11: 75.83474073 | IH11: 75.83419534 | II11: 75.83290119 | IJ11: 75.82964931 | IK11: 75.82517095 | IL11: 75.81756553 | IM11: 75.80877944 | IN11: 75.79827709 | IO11: 75.79814311 | IP11: 75.79627596 | IQ11: 75.78585934 | IR11: 75.78565652 | IS11: 75.77340063 | IT11: 75.77066263 | IU11: 75.77012466 | IV11: 75.76429742 | IW11: 75.75979831 | IX11: 75.75922579 | IY11: 75.7547069 | IZ11: 75.75022854 | JA11: 75.74911795 | JB11: 75.74527267 | JC11: 75.74262312 | JD11: 75.73820904 | JE11: 75.73819515 | JF11: 75.73427212 | JG11: 75.72333467 | JH11: 75.71639418 | JI11: 75.71091692 | JJ11: 75.7107141 | JK11: 75.69845822 | JL11: 75.68935501 | JM11: 75.68691307 | JN11: 75.6848559 | JO11: 75.67976448 | JP11: 75.67528613 | JQ11: 75.67020144 | JR11: 75.6676807 | JS11: 75.66133655 | JT11: 75.6607526 | JU11: 75.65930258 | JV11: 75.65889461 | JW11: 75.65174603 | JX11: 75.64919473 | JY11: 75.64839226 | JZ11: 75.64726766 | KA11: 75.64534945 | KB11: 75.64145176 | KC11: 75.64084779 | KD11: 75.63828582 | KE11: 75.63597451 | KF11: 75.63577169 | KG11: 75.6343489 | KH11: 75.62351581 | KI11: 75.61733099 | KJ11: 75.61601051 | KK11: 75.60795606 | KL11: 75.60775323 | KM11: 75.59808108 | KN11: 75.59701195 | KO11: 75.58639413 | KP11: 75.58581019 | KQ11: 75.57680362 | KR11: 75.57344985 | KS11: 75.57232525 | KT11: 75.57027822 | KU11: 75.56650935 | KV11: 75.55937936 | KW11: 75.54927152 | KX11: 75.54857339 | KY11: 75.54542623 | KZ11: 75.54092457 | LA11: 75.5383626 | LB11: 75.53702824 | LC11: 75.53442569 | LD11: 75.53301364 | LE11: 75.53281081 | LF11: 75.52125306 | LG11: 75.51740777 | LH11: 75.51145172 | LI11: 75.51086778 | LJ11: 75.51034415 | LK11: 75.50900979 | LL11: 75.50640722 | LM11: 75.5018612 | LN11: 75.49850744 | LO11: 75.49815786 | LP11: 75.49738284 | LQ11: 75.49156694 | LR11: 75.47363098 | LS11: 75.47048898 | LT11: 75.47035501 | LU11: 75.46612568 | LV11: 75.45807123 | LW11: 75.4578684 | LX11: 75.4493483 | LY11: 75.44712712 | LZ11: 75.44561253 | MA11: 75.44100135 | MB11: 75.43843939 | MC11: 75.43650931 | MD11: 75.43592536 | ME11: 75.43450246 | MF11: 75.42691879 | MG11: 75.42619773 | MH11: 75.42244043 | MI11: 75.42132984 | MJ11: 75.41748456 | MK11: 75.41662452 | ML11: 75.41102938 | MM11: 75.41042093 | MN11: 75.40648401 | MO11: 75.39823464 | MP11: 75.39554657 | MQ11: 75.3909748 | MR11: 75.38860606 | MS11: 75.38312882 | MT11: 75.38292599 | MU11: 75.37171911 | MV11: 75.37067011
A12: 76.37299055 | B12: 76.29954699 | C12: 76.22610342 | D12: 76.15265986 | E12: 76.11791761 | F12: 76.10860831 | G12: 76.07921629 | H12: 76.0517582 | I12: 76.04447404 | J12: 76.03516474 | K12: 75.97831463 | L12: 75.97103048 | M12: 75.96172118 | N12: 75.90487107 | O12: 75.89758691 | P12: 75.88827762 | Q12: 75.83142751 | R12: 75.82414335 | S12: 75.81483405 | T12: 75.79668526 | U12: 75.78737596 | V12: 75.78660577 | W12: 75.77799758 | X12: 75.75798394 | Y12: 75.73530818 | Z12: 75.72324169 | AA12: 75.7139324 | AB12: 75.70455401 | AC12: 75.68868101 | AD12: 75.66186462 | AE12: 75.64979813 | AF12: 75.64048884 | AG12: 75.63111045 | AH12: 75.60387858 | AI12: 75.59075626 | AJ12: 75.58842105 | AK12: 75.57635456 | AL12: 75.56704527 | AM12: 75.55766688 | AN12: 75.53844568 | AO12: 75.53043501 | AP12: 75.51497749 | AQ12: 75.502911 | AR12: 75.49360171 | AS12: 75.49283151 | AT12: 75.48422332 | AU12: 75.46537342 | AV12: 75.46500211 | AW12: 75.45699145 | AX12: 75.45676523 | AY12: 75.44650851 | AZ12: 75.44153392 | BA12: 75.43409611 | BB12: 75.41407584 | BC12: 75.39490675 | BD12: 75.39155855 | BE12: 75.38354788 | BF12: 75.38332167 | BG12: 75.36744867 | BH12: 75.35269877 | BI12: 75.34858375 | BJ12: 75.34063227 | BK12: 75.33617136 | BL12: 75.31811498 | BM12: 75.31010432 | BN12: 75.3098781 | BO12: 75.28264623 | BP12: 75.28208148 | BQ12: 75.2792552 | BR12: 75.27406343 | BS12: 75.2711698 | BT12: 75.26952392 | BU12: 75.26718871 | BV12: 75.250659 | BW12: 75.24467142 | BX12: 75.2382466 | BY12: 75.23643454 | BZ12: 75.21721332 | CA12: 75.20920266 | CB12: 75.20863792 | CC12: 75.20581164 | CD12: 75.20061987 | CE12: 75.19772624 | CF12: 75.19374514 | CG12: 75.17159916 | CH12: 75.16299098 | CI12: 75.15273425 | CJ12: 75.14376976 | CK12: 75.14032185 | CL12: 75.1357591 | CM12: 75.13519435 | CN12: 75.13236807 | CO12: 75.12905935 | CP12: 75.1271763 | CQ12: 75.12527615 | CR12: 75.12428267 | CS12: 75.12030158 | CT12: 75.11286377 | CU12: 75.09762582 | CV12: 75.07367441 | CW12: 75.07032619 | CX12: 75.06231553 | CY12: 75.06175079 | CZ12: 75.05892451 | DA12: 75.05561579 | DB12: 75.05480949 | DC12: 75.05373274 | DD12: 75.05083911 | DE12: 75.0423971 | DF12: 75.03146641 | DG12: 75.0273514 | DH12: 75.02418226 | DI12: 75.01493901 | DJ12: 74.99688263 | DK12: 74.99328181 | DL12: 74.98887197 | DM12: 74.98830722 | DN12: 74.98217222 | DO12: 74.98028917 | DP12: 74.97739554 | DQ12: 74.96084914 | DR12: 74.95802285 | DS12: 74.95283109 | DT12: 74.95073869 | DU12: 74.94993745 | DV12: 74.93636261 | DW12: 74.93124977 | DX12: 74.92942665 | DY12: 74.92343906 | DZ12: 74.91701426 | EA12: 74.90872866 | EB12: 74.89535705 | EC12: 74.88740557 | ED12: 74.88457928 | EE12: 74.87938752 | EF12: 74.87729513 | EG12: 74.87649388 | EH12: 74.87025598 | EI12: 74.85780621 | EJ12: 74.83843786 | EK12: 74.83528509 | EL12: 74.8315019 | EM12: 74.81908951 | EN12: 74.81396201 | EO12: 74.81113572 | EP12: 74.80782701 | EQ12: 74.80594396 | ER12: 74.80385156 | ES12: 74.80305032 | ET12: 74.7974323 | EU12: 74.79681242 | EV12: 74.7861654 | EW12: 74.78436264 | EX12: 74.77639347 | EY12: 74.7693337 | EZ12: 74.76112313 | FA12: 74.74051844 | FB12: 74.7405131 | FC12: 74.73769215 | FD12: 74.73438344 | FE12: 74.73357715 | FF12: 74.73250039 | FG12: 74.72960675 | FH12: 74.72336885 | FI12: 74.72116475 | FJ12: 74.71272183 | FK12: 74.71091908 | FL12: 74.7029499 | FM12: 74.69950755 | FN12: 74.69589014 | FO12: 74.67387927 | FP12: 74.67204945 | FQ12: 74.66707488 | FR12: 74.66319838 | FS12: 74.66093988 | FT12: 74.65905683 | FU12: 74.65616319 | FV12: 74.64992529 | FW12: 74.64258835 | FX12: 74.63927827 | FY12: 74.63747551 | FZ12: 74.62950634 | GA12: 74.62244657 | GB12: 74.61513027 | GC12: 74.61383619 | GD12: 74.61001743 | GE12: 74.60158279 | GF12: 74.58749631 | GG12: 74.57648172 | GH12: 74.57595451 | GI12: 74.5741247 | GJ12: 74.5658347 | GK12: 74.56527363 | GL12: 74.55606277 | GM12: 74.54902364 | GN12: 74.54900301 | GO12: 74.5446636 | GP12: 74.53657386 | GQ12: 74.51720551 | GR12: 74.51405275 | GS12: 74.49239114 | GT12: 74.48261921 | GU12: 74.47802976 | GV12: 74.47619995 | GW12: 74.47558007 | GX12: 74.47555944 | GY12: 74.46934217 | GZ12: 74.46734887 | HA12: 74.46694907 | HB12: 74.46493304 | HC12: 74.4631303 | HD12: 74.45994345 | HE12: 74.45555466 | HF12: 74.44810135 | HG12: 74.43989078 | HH12: 74.42621672 | HI12: 74.41928076 | HJ12: 74.41702928 | HK12: 74.41683052 | HL12: 74.40213651 | HM12: 74.3958986 | HN12: 74.39148948 | HO12: 74.38968673 | HP12: 74.38649989 | HQ12: 74.3821111 | HR12: 74.38010501 | HS12: 74.37827519 | HT12: 74.37465778 | HU12: 74.36942412 | HV12: 74.35264692 | HW12: 74.34358572 | HX12: 74.34338695 | HY12: 74.34196603 | HZ12: 74.33206035 | IA12: 74.32869294 | IB12: 74.32829196 | IC12: 74.32245504 | ID12: 74.32136961 | IE12: 74.32135601 | IF12: 74.32006194 | IG12: 74.31804591 | IH12: 74.31751143 | II12: 74.31624317 | IJ12: 74.31305632 | IK12: 74.30866753 | IL12: 74.30121422 | IM12: 74.29260385 | IN12: 74.28231155 | IO12: 74.28218025 | IP12: 74.28035044 | IQ12: 74.27014215 | IR12: 74.26994339 | IS12: 74.25793262 | IT12: 74.25524938 | IU12: 74.25472217 | IV12: 74.24901147 | IW12: 74.24460235 | IX12: 74.24404127 | IY12: 74.23961276 | IZ12: 74.23522397 | JA12: 74.2341356 | JB12: 74.23036721 | JC12: 74.22777066 | JD12: 74.22344486 | JE12: 74.22343125 | JF12: 74.21958667 | JG12: 74.20886798 | JH12: 74.20206629 | JI12: 74.19669859 | JJ12: 74.19649982 | JK12: 74.18448906 | JL12: 74.17556791 | JM12: 74.17317481 | JN12: 74.17115878 | JO12: 74.16616919 | JP12: 74.16178041 | JQ12: 74.15679742 | JR12: 74.15432709 | JS12: 74.14810981 | JT12: 74.14753755 | JU12: 74.14611652 | JV12: 74.14571672 | JW12: 74.13871111 | JX12: 74.13621084 | JY12: 74.13542442 | JZ12: 74.13432231 | KA12: 74.13244246 | KB12: 74.12862273 | KC12: 74.12803083 | KD12: 74.1255201 | KE12: 74.12325502 | KF12: 74.12305626 | KG12: 74.12166192 | KH12: 74.11104549 | KI12: 74.10498437 | KJ12: 74.1036903 | KK12: 74.09579694 | KL12: 74.09559816 | KM12: 74.08611946 | KN12: 74.08507171 | KO12: 74.07466625 | KP12: 74.07409399 | KQ12: 74.06526754 | KR12: 74.06198085 | KS12: 74.06087875 | KT12: 74.05887266 | KU12: 74.05517916 | KV12: 74.04819177 | KW12: 74.03828609 | KX12: 74.03760193 | KY12: 74.0345177 | KZ12: 74.03010608 | LA12: 74.02759535 | LB12: 74.02628768 | LC12: 74.02373717 | LD12: 74.02235337 | LE12: 74.0221546 | LF12: 74.010828 | LG12: 74.00705962 | LH12: 74.00122269 | LI12: 74.00065042 | LJ12: 74.00013727 | LK12: 73.99882959 | LL12: 73.99627908 | LM12: 73.99182398 | LN12: 73.98853729 | LO12: 73.9881947 | LP12: 73.98743518 | LQ12: 73.9817356 | LR12: 73.96415836 | LS12: 73.9610792 | LT12: 73.96094791 | LU12: 73.95680317 | LV12: 73.94890981 | LW12: 73.94871103 | LX12: 73.94036134 | LY12: 73.93818458 | LZ12: 73.93670028 | MA12: 73.93218132 | MB12: 73.9296706 | MC12: 73.92777912 | MD12: 73.92720686 | ME12: 73.92581241 | MF12: 73.91838041 | MG12: 73.91767377 | MH12: 73.91399162 | MI12: 73.91290324 | MJ12: 73.90913487 | MK12: 73.90829203 | ML12: 73.9028088 | MM12: 73.90221251 | MN12: 73.89835433 | MO12: 73.89026995 | MP12: 73.88763564 | MQ12: 73.88315531 | MR12: 73.88083394 | MS12: 73.87546624 | MT12: 73.87526747 | MU12: 73.86428473 | MV12: 73.86325671
A13: 74.84553074 | B13: 74.77355605 | C13: 74.70158136 | D13: 74.62960666 | E13: 74.59555926 | F13: 74.58643614 | G13: 74.55763197 | H13: 74.53072304 | I13: 74.52358456 | J13: 74.51446145 | K13: 74.45874834 | L13: 74.45160987 | M13: 74.44248676 | N13: 74.38677365 | O13: 74.37963518 | P13: 74.37051206 | Q13: 74.31479896 | R13: 74.30766048 | S13: 74.29853737 | T13: 74.28075155 | U13: 74.27162845 | V13: 74.27087365 | W13: 74.26243763 | X13: 74.24282426 | Y13: 74.22060202 | Z13: 74.20877686 | AA13: 74.19965375 | AB13: 74.19046293 | AC13: 74.17490739 | AD13: 74.14862733 | AE13: 74.13680216 | AF13: 74.12767906 | AG13: 74.11848824 | AH13: 74.09180101 | AI13: 74.07894114 | AJ13: 74.07665263 | AK13: 74.06482747 | AL13: 74.05570437 | AM13: 74.04651355 | AN13: 74.02767676 | AO13: 74.01982631 | AP13: 74.00467794 | AQ13: 73.99285278 | AR13: 73.98372967 | AS13: 73.98297488 | AT13: 73.97453885 | AU13: 73.95606595 | AV13: 73.95570207 | AW13: 73.94785162 | AX13: 73.94762993 | AY13: 73.93757834 | AZ13: 73.93270325 | BA13: 73.92541419 | BB13: 73.90579432 | BC13: 73.88700862 | BD13: 73.88372738 | BE13: 73.87587693 | BF13: 73.87565524 | BG13: 73.86009969 | BH13: 73.84564479 | BI13: 73.84161207 | BJ13: 73.83381963 | BK13: 73.82944793 | BL13: 73.81175268 | BM13: 73.80390223 | BN13: 73.80368054 | BO13: 73.7769933 | BP13: 73.77643985 | BQ13: 73.7736701 | BR13: 73.76858217 | BS13: 73.76574641 | BT13: 73.76413344 | BU13: 73.76184494 | BV13: 73.74564582 | BW13: 73.73977799 | BX13: 73.73348167 | BY13: 73.73170585 | BZ13: 73.71286906 | CA13: 73.70501861 | CB13: 73.70446516 | CC13: 73.7016954 | CD13: 73.69660747 | CE13: 73.69377171 | CF13: 73.68987024 | CG13: 73.66816717 | CH13: 73.65973116 | CI13: 73.64967956 | CJ13: 73.64089436 | CK13: 73.63751542 | CL13: 73.63304391 | CM13: 73.63249047 | CN13: 73.62972071 | CO13: 73.62647817 | CP13: 73.62463278 | CQ13: 73.62277063 | CR13: 73.62179702 | CS13: 73.61789555 | CT13: 73.61060649 | CU13: 73.59567331 | CV13: 73.57220092 | CW13: 73.56891967 | CX13: 73.56106922 | CY13: 73.56051577 | CZ13: 73.55774602 | DA13: 73.55450347 | DB13: 73.5537133 | DC13: 73.55265808 | DD13: 73.54982233 | DE13: 73.54154916 | DF13: 73.53083709 | DG13: 73.52680438 | DH13: 73.52369861 | DI13: 73.51464023 | DJ13: 73.49694498 | DK13: 73.49341617 | DL13: 73.48909453 | DM13: 73.48854108 | DN13: 73.48252878 | DO13: 73.48068339 | DP13: 73.47784763 | DQ13: 73.46163216 | DR13: 73.45886239 | DS13: 73.45377447 | DT13: 73.45172392 | DU13: 73.4509387 | DV13: 73.43763536 | DW13: 73.43262478 | DX13: 73.43083812 | DY13: 73.42497028 | DZ13: 73.41867397 | EA13: 73.41055408 | EB13: 73.39744991 | EC13: 73.38965746 | ED13: 73.3868877 | EE13: 73.38179977 | EF13: 73.37974923 | EG13: 73.37896401 | EH13: 73.37285086 | EI13: 73.36065008 | EJ13: 73.3416691 | EK13: 73.33857939 | EL13: 73.33487186 | EM13: 73.32270772 | EN13: 73.31768277 | EO13: 73.314913 | EP13: 73.31167047 | EQ13: 73.30982508 | ER13: 73.30777453 | ES13: 73.30698931 | ET13: 73.30148365 | EU13: 73.30087617 | EV13: 73.29044209 | EW13: 73.28867539 | EX13: 73.2808656 | EY13: 73.27394703 | EZ13: 73.26590067 | FA13: 73.24570807 | FB13: 73.24570284 | FC13: 73.24293831 | FD13: 73.23969577 | FE13: 73.2389056 | FF13: 73.23785039 | FG13: 73.23501462 | FH13: 73.22890147 | FI13: 73.22674145 | FJ13: 73.21846739 | FK13: 73.2167007 | FL13: 73.20889091 | FM13: 73.2055174 | FN13: 73.20197234 | FO13: 73.18040168 | FP13: 73.17860846 | FQ13: 73.17373338 | FR13: 73.16993441 | FS13: 73.16772108 | FT13: 73.16587569 | FU13: 73.16303993 | FV13: 73.15692678 | FW13: 73.14973658 | FX13: 73.1464927 | FY13: 73.144726 | FZ13: 73.13691621 | GA13: 73.12999764 | GB13: 73.12282766 | GC13: 73.12155947 | GD13: 73.11781708 | GE13: 73.10955113 | GF13: 73.09574639 | GG13: 73.08495209 | GH13: 73.08443542 | GI13: 73.08264221 | GJ13: 73.07451801 | GK13: 73.07396816 | GL13: 73.06494152 | GM13: 73.05804316 | GN13: 73.05802295 | GO13: 73.05377033 | GP13: 73.04584239 | GQ13: 73.0268614 | GR13: 73.02377169 | GS13: 73.00254331 | GT13: 72.99296683 | GU13: 72.98846916 | GV13: 72.98667595 | GW13: 72.98606847 | GX13: 72.98604826 | GY13: 72.97995533 | GZ13: 72.97800189 | HA13: 72.97761008 | HB13: 72.97563438 | HC13: 72.97386769 | HD13: 72.97074458 | HE13: 72.96644357 | HF13: 72.95913932 | HG13: 72.95109297 | HH13: 72.93769239 | HI13: 72.93089514 | HJ13: 72.92868869 | HK13: 72.92849391 | HL13: 72.91409378 | HM13: 72.90798063 | HN13: 72.90365969 | HO13: 72.901893 | HP13: 72.89876989 | HQ13: 72.89446888 | HR13: 72.89250291 | HS13: 72.89070969 | HT13: 72.88716463 | HU13: 72.88203564 | HV13: 72.86559398 | HW13: 72.856714 | HX13: 72.85651921 | HY13: 72.85512671 | HZ13: 72.84541914 | IA13: 72.84211908 | IB13: 72.84172612 | IC13: 72.83600594 | ID13: 72.83494222 | IE13: 72.83492889 | IF13: 72.8336607 | IG13: 72.83168499 | IH13: 72.8311612 | II13: 72.82991831 | IJ13: 72.8267952 | IK13: 72.82249418 | IL13: 72.81518994 | IM13: 72.80675177 | IN13: 72.79666531 | IO13: 72.79653665 | IP13: 72.79474344 | IQ13: 72.78473931 | IR13: 72.78454452 | IS13: 72.77277397 | IT13: 72.77014439 | IU13: 72.76962772 | IV13: 72.76403124 | IW13: 72.7597103 | IX13: 72.75916045 | IY13: 72.7548205 | IZ13: 72.75051949 | JA13: 72.74945288 | JB13: 72.74575987 | JC13: 72.74321524 | JD13: 72.73897596 | JE13: 72.73896262 | JF13: 72.73519494 | JG13: 72.72469062 | JH13: 72.71802497 | JI13: 72.71276461 | JJ13: 72.71256983 | JK13: 72.70079928 | JL13: 72.69205655 | JM13: 72.68971131 | JN13: 72.68773561 | JO13: 72.68284581 | JP13: 72.6785448 | JQ13: 72.67366147 | JR13: 72.67124055 | JS13: 72.66514762 | JT13: 72.6645868 | JU13: 72.66319419 | JV13: 72.66280239 | JW13: 72.65593689 | JX13: 72.65348662 | JY13: 72.65271593 | JZ13: 72.65163586 | KA13: 72.64979361 | KB13: 72.64605027 | KC13: 72.64547022 | KD13: 72.6430097 | KE13: 72.64078992 | KF13: 72.64059513 | KG13: 72.63922869 | KH13: 72.62882458 | KI13: 72.62288468 | KJ13: 72.62161649 | KK13: 72.613881 | KL13: 72.6136862 | KM13: 72.60439707 | KN13: 72.60337027 | KO13: 72.59317292 | KP13: 72.59261211 | KQ13: 72.58396219 | KR13: 72.58074123 | KS13: 72.57966117 | KT13: 72.5776952 | KU13: 72.57407558 | KV13: 72.56722794 | KW13: 72.55752036 | KX13: 72.55684989 | KY13: 72.55382735 | KZ13: 72.54950396 | LA13: 72.54704344 | LB13: 72.54576192 | LC13: 72.54326243 | LD13: 72.5419063 | LE13: 72.54171151 | LF13: 72.53061144 | LG13: 72.52691843 | LH13: 72.52119823 | LI13: 72.52063741 | LJ13: 72.52013452 | LK13: 72.518853 | LL13: 72.5163535 | LM13: 72.5119875 | LN13: 72.50876654 | LO13: 72.50843081 | LP13: 72.50768648 | LQ13: 72.50210089 | LR13: 72.48487519 | LS13: 72.48185762 | LT13: 72.48172895 | LU13: 72.4776671 | LV13: 72.46993161 | LW13: 72.46973681 | LX13: 72.46155411 | LY13: 72.45942089 | LZ13: 72.45796627 | MA13: 72.4535377 | MB13: 72.45107719 | MC13: 72.44922354 | MD13: 72.44866272 | ME13: 72.44729617 | MF13: 72.44001281 | MG13: 72.4393203 | MH13: 72.43571178 | MI13: 72.43464518 | MJ13: 72.43095217 | MK13: 72.43012619 | ML13: 72.42475262 | MM13: 72.42416826 | MN13: 72.42038724 | MO13: 72.41246455 | MP13: 72.40988292 | MQ13: 72.4054922 | MR13: 72.40321726 | MS13: 72.39795692 | MT13: 72.39776212 | MU13: 72.38699904 | MV13: 72.38599158
A14: 73.34862013 | B14: 73.27808493 | C14: 73.20754973 | D14: 73.13701453 | E14: 73.10364807 | F14: 73.09470742 | G14: 73.06647933 | H14: 73.04010857 | I14: 73.03311287 | J14: 73.02417222 | K14: 72.96957338 | L14: 72.96257767 | M14: 72.95363702 | N14: 72.89903818 | O14: 72.89204247 | P14: 72.88310182 | Q14: 72.82850298 | R14: 72.82150727 | S14: 72.81256662 | T14: 72.79513652 | U14: 72.78619588 | V14: 72.78545618 | W14: 72.77718887 | X14: 72.75796778 | Y14: 72.73618998 | Z14: 72.72460132 | AA14: 72.71566068 | AB14: 72.70665367 | AC14: 72.69140924 | AD14: 72.66565478 | AE14: 72.65406612 | AF14: 72.64512548 | AG14: 72.63611848 | AH14: 72.60996499 | AI14: 72.59736231 | AJ14: 72.59511958 | AK14: 72.58353092 | AL14: 72.57459028 | AM14: 72.56558328 | AN14: 72.54712323 | AO14: 72.53942979 | AP14: 72.52458438 | AQ14: 72.51299572 | AR14: 72.50405508 | AS14: 72.50331538 | AT14: 72.49504808 | AU14: 72.47694463 | AV14: 72.47658803 | AW14: 72.46889459 | AX14: 72.46867733 | AY14: 72.45882677 | AZ14: 72.45404918 | BA14: 72.44690591 | BB14: 72.42767844 | BC14: 72.40926844 | BD14: 72.40605283 | BE14: 72.39835939 | BF14: 72.39814213 | BG14: 72.3828977 | BH14: 72.3687319 | BI14: 72.36477983 | BJ14: 72.35714324 | BK14: 72.35285898 | BL14: 72.33551763 | BM14: 72.32782419 | BN14: 72.32760693 | BO14: 72.30145343 | BP14: 72.30091106 | BQ14: 72.2981967 | BR14: 72.29321052 | BS14: 72.29043148 | BT14: 72.28885077 | BU14: 72.28660804 | BV14: 72.2707329 | BW14: 72.26498243 | BX14: 72.25881204 | BY14: 72.25707173 | BZ14: 72.23861168 | CA14: 72.23091823 | CB14: 72.23037586 | CC14: 72.2276615 | CD14: 72.22267532 | CE14: 72.21989628 | CF14: 72.21607284 | CG14: 72.19480383 | CH14: 72.18653653 | CI14: 72.17668597 | CJ14: 72.16807648 | CK14: 72.16476511 | CL14: 72.16038304 | CM14: 72.15984066 | CN14: 72.1571263 | CO14: 72.1539486 | CP14: 72.15214012 | CQ14: 72.15031522 | CR14: 72.14936108 | CS14: 72.14553764 | CT14: 72.13839436 | CU14: 72.12375984 | CV14: 72.1007569 | CW14: 72.09754128 | CX14: 72.08984784 | CY14: 72.08930546 | CZ14: 72.0865911 | DA14: 72.0834134 | DB14: 72.08263903 | DC14: 72.08160492 | DD14: 72.07882588 | DE14: 72.07071818 | DF14: 72.06022034 | DG14: 72.05626829 | DH14: 72.05322464 | DI14: 72.04434742 | DJ14: 72.02700608 | DK14: 72.02354785 | DL14: 72.01931264 | DM14: 72.01877026 | DN14: 72.0128782 | DO14: 72.01106972 | DP14: 72.00829068 | DQ14: 71.99239951 | DR14: 71.98968514 | DS14: 71.98469898 | DT14: 71.98268944 | DU14: 71.98191993 | DV14: 71.96888265 | DW14: 71.96397228 | DX14: 71.96222136 | DY14: 71.95647088 | DZ14: 71.95030049 | EA14: 71.942343 | EB14: 71.92950091 | EC14: 71.92186431 | ED14: 71.91914994 | EE14: 71.91416378 | EF14: 71.91215424 | EG14: 71.91138473 | EH14: 71.90539384 | EI14: 71.89343708 | EJ14: 71.87483572 | EK14: 71.8718078 | EL14: 71.86817442 | EM14: 71.85625356 | EN14: 71.85132911 | EO14: 71.84861474 | EP14: 71.84543706 | EQ14: 71.84362858 | ER14: 71.84161904 | ES14: 71.84084953 | ET14: 71.83545398 | EU14: 71.83485864 | EV14: 71.82463325 | EW14: 71.82290188 | EX14: 71.81524829 | EY14: 71.80846809 | EZ14: 71.80058265 | FA14: 71.78079391 | FB14: 71.78078878 | FC14: 71.77807955 | FD14: 71.77490186 | FE14: 71.77412749 | FF14: 71.77309338 | FG14: 71.77031433 | FH14: 71.76432344 | FI14: 71.76220662 | FJ14: 71.75409805 | FK14: 71.75236668 | FL14: 71.74471309 | FM14: 71.74140705 | FN14: 71.73793289 | FO14: 71.71679365 | FP14: 71.71503629 | FQ14: 71.71025871 | FR14: 71.70653572 | FS14: 71.70436666 | FT14: 71.70255818 | FU14: 71.69977913 | FV14: 71.69378825 | FW14: 71.68674185 | FX14: 71.68356285 | FY14: 71.68183148 | FZ14: 71.67417789 | GA14: 71.66739769 | GB14: 71.66037111 | GC14: 71.65912828 | GD14: 71.65546074 | GE14: 71.64736011 | GF14: 71.63383146 | GG14: 71.62325305 | GH14: 71.62274671 | GI14: 71.62098937 | GJ14: 71.61302765 | GK14: 71.61248879 | GL14: 71.60364269 | GM14: 71.5968823 | GN14: 71.59686249 | GO14: 71.59269492 | GP14: 71.58492554 | GQ14: 71.56632417 | GR14: 71.56329626 | GS14: 71.54249245 | GT14: 71.53310749 | GU14: 71.52869978 | GV14: 71.52694244 | GW14: 71.5263471 | GX14: 71.52632729 | GY14: 71.52035622 | GZ14: 71.51844185 | HA14: 71.51805788 | HB14: 71.51612169 | HC14: 71.51439034 | HD14: 71.51132969 | HE14: 71.5071147 | HF14: 71.49995654 | HG14: 71.49207111 | HH14: 71.47893854 | HI14: 71.47227724 | HJ14: 71.47011492 | HK14: 71.46992403 | HL14: 71.4558119 | HM14: 71.44982102 | HN14: 71.44558649 | HO14: 71.44385514 | HP14: 71.44079449 | HQ14: 71.4365795 | HR14: 71.43465285 | HS14: 71.4328955 | HT14: 71.42942134 | HU14: 71.42439492 | HV14: 71.4082821 | HW14: 71.39957972 | HX14: 71.39938883 | HY14: 71.39802418 | HZ14: 71.38851076 | IA14: 71.3852767 | IB14: 71.3848916 | IC14: 71.37928582 | ID14: 71.37824337 | IE14: 71.37823031 | IF14: 71.37698748 | IG14: 71.37505129 | IH14: 71.37453798 | II14: 71.37331994 | IJ14: 71.37025929 | IK14: 71.3660443 | IL14: 71.35888614 | IM14: 71.35061674 | IN14: 71.34073201 | IO14: 71.34060591 | IP14: 71.33884857 | IQ14: 71.32904452 | IR14: 71.32885363 | IS14: 71.31731849 | IT14: 71.3147415 | IU14: 71.31423517 | IV14: 71.30875062 | IW14: 71.30451609 | IX14: 71.30397724 | IY14: 71.29972409 | IZ14: 71.2955091 | JA14: 71.29446383 | JB14: 71.29084467 | JC14: 71.28835094 | JD14: 71.28419644 | JE14: 71.28418337 | JF14: 71.28049104 | JG14: 71.27019681 | JH14: 71.26366447 | JI14: 71.25850932 | JJ14: 71.25831843 | JK14: 71.24678329 | JL14: 71.23821542 | JM14: 71.23591708 | JN14: 71.23398089 | JO14: 71.22918889 | JP14: 71.2249739 | JQ14: 71.22018824 | JR14: 71.21781574 | JS14: 71.21184467 | JT14: 71.21129506 | JU14: 71.20993031 | JV14: 71.20954634 | JW14: 71.20281815 | JX14: 71.20041689 | JY14: 71.19966161 | JZ14: 71.19860315 | KA14: 71.19679774 | KB14: 71.19312927 | KC14: 71.19256081 | KD14: 71.19014951 | KE14: 71.18797412 | KF14: 71.18778323 | KG14: 71.18644411 | KH14: 71.17624809 | KI14: 71.17042699 | KJ14: 71.16918416 | KK14: 71.16160338 | KL14: 71.16141248 | KM14: 71.15230913 | KN14: 71.15130287 | KO14: 71.14130947 | KP14: 71.14075986 | KQ14: 71.13228295 | KR14: 71.12912641 | KS14: 71.12806795 | KT14: 71.1261413 | KU14: 71.12259407 | KV14: 71.11588338 | KW14: 71.10636996 | KX14: 71.10571289 | KY14: 71.1027508 | KZ14: 71.09851388 | LA14: 71.09610258 | LB14: 71.09484668 | LC14: 71.09239718 | LD14: 71.09106818 | LE14: 71.09087728 | LF14: 71.07999921 | LG14: 71.07638006 | LH14: 71.07077427 | LI14: 71.07022467 | LJ14: 71.06973183 | LK14: 71.06847594 | LL14: 71.06602643 | LM14: 71.06174775 | LN14: 71.05859121 | LO14: 71.05826219 | LP14: 71.05753275 | LQ14: 71.05205887 | LR14: 71.03517769 | LS14: 71.03222046 | LT14: 71.03209437 | LU14: 71.02811376 | LV14: 71.02053298 | LW14: 71.02034208 | LX14: 71.01232303 | LY14: 71.01023247 | LZ14: 71.00880695 | MA14: 71.00446694 | MB14: 71.00205565 | MC14: 71.00023907 | MD14: 70.99968947 | ME14: 70.99835024 | MF14: 70.99121255 | MG14: 70.99053389 | MH14: 70.98699755 | MI14: 70.98595227 | MJ14: 70.98233313 | MK14: 70.98152367 | ML14: 70.97625757 | MM14: 70.97568489 | MN14: 70.9719795 | MO14: 70.96421526 | MP14: 70.96168527 | MQ14: 70.95738236 | MR14: 70.95515292 | MS14: 70.94999778 | MT14: 70.94980688 | MU14: 70.93925906 | MV14: 70.93827175
A15: 71.88164772 | B15: 71.81252323 | C15: 71.74339873 | D15: 71.67427424 | E15: 71.64157511 | F15: 71.63281327 | G15: 71.60514974 | H15: 71.5793064 | I15: 71.57245061 | J15: 71.56368878 | K15: 71.51018191 | L15: 71.50332612 | M15: 71.49456428 | N15: 71.44105741 | O15: 71.43420162 | P15: 71.42543979 | Q15: 71.37193292 | R15: 71.36507713 | S15: 71.35631529 | T15: 71.33923379 | U15: 71.33047196 | V15: 71.32974706 | W15: 71.3216451 | X15: 71.30280842 | Y15: 71.28146618 | Z15: 71.27010929 | AA15: 71.26134746 | AB15: 71.2525206 | AC15: 71.23758106 | AD15: 71.21234168 | AE15: 71.2009848 | AF15: 71.19222297 | AG15: 71.18339611 | AH15: 71.15776569 | AI15: 71.14541507 | AJ15: 71.14321719 | AK15: 71.1318603 | AL15: 71.12309847 | AM15: 71.11427161 | AN15: 71.09618076 | AO15: 71.08864119 | AP15: 71.07409269 | AQ15: 71.06273581 | AR15: 71.05397398 | AS15: 71.05324908 | AT15: 71.04514711 | AU15: 71.02740574 | AV15: 71.02705627 | AW15: 71.0195167 | AX15: 71.01930378 | AY15: 71.00965024 | AZ15: 71.0049682 | BA15: 70.99796779 | BB15: 70.97912487 | BC15: 70.96108308 | BD15: 70.95793177 | BE15: 70.9503922 | BF15: 70.95017929 | BG15: 70.93523975 | BH15: 70.92135726 | BI15: 70.91748424 | BJ15: 70.91000037 | BK15: 70.9058018 | BL15: 70.88880728 | BM15: 70.8812677 | BN15: 70.88105479 | BO15: 70.85542437 | BP15: 70.85489283 | BQ15: 70.85223276 | BR15: 70.84734631 | BS15: 70.84462285 | BT15: 70.84307375 | BU15: 70.84087588 | BV15: 70.82531824 | BW15: 70.81968278 | BX15: 70.8136358 | BY15: 70.8119303 | BZ15: 70.79383944 | CA15: 70.78629987 | CB15: 70.78576834 | CC15: 70.78310827 | CD15: 70.77822182 | CE15: 70.77549835 | CF15: 70.77175138 | CG15: 70.75090775 | CH15: 70.7428058 | CI15: 70.73315225 | CJ15: 70.72471495 | CK15: 70.72146981 | CL15: 70.71717537 | CM15: 70.71664384 | CN15: 70.71398377 | CO15: 70.71086963 | CP15: 70.70909732 | CQ15: 70.70730891 | CR15: 70.70637386 | CS15: 70.70262688 | CT15: 70.69562647 | CU15: 70.68128464 | CV15: 70.65874176 | CW15: 70.65559045 | CX15: 70.64805088 | CY15: 70.64751935 | CZ15: 70.64485928 | DA15: 70.64174513 | DB15: 70.64098625 | DC15: 70.63997282 | DD15: 70.63724936 | DE15: 70.62930381 | DF15: 70.61901594 | DG15: 70.61514292 | DH15: 70.61216015 | DI15: 70.60346047 | DJ15: 70.58646596 | DK15: 70.58307689 | DL15: 70.57892638 | DM15: 70.57839485 | DN15: 70.57262064 | DO15: 70.57084833 | DP15: 70.56812487 | DQ15: 70.55255152 | DR15: 70.54989144 | DS15: 70.545005 | DT15: 70.54303565 | DU15: 70.54228153 | DV15: 70.529505 | DW15: 70.52469284 | DX15: 70.52297693 | DY15: 70.51734146 | DZ15: 70.51129448 | EA15: 70.50349614 | EB15: 70.49091089 | EC15: 70.48342703 | ED15: 70.48076695 | EE15: 70.4758805 | EF15: 70.47391116 | EG15: 70.47315703 | EH15: 70.46728597 | EI15: 70.45556834 | EJ15: 70.43733901 | EK15: 70.43437165 | EL15: 70.43081093 | EM15: 70.41912849 | EN15: 70.41430253 | EO15: 70.41164245 | EP15: 70.40852832 | EQ15: 70.40675601 | ER15: 70.40478666 | ES15: 70.40403254 | ET15: 70.3987449 | EU15: 70.39816147 | EV15: 70.38814058 | EW15: 70.38644384 | EX15: 70.37894332 | EY15: 70.37229873 | EZ15: 70.364571 | FA15: 70.34517803 | FB15: 70.34517301 | FC15: 70.34251795 | FD15: 70.33940382 | FE15: 70.33864494 | FF15: 70.33763151 | FG15: 70.33490804 | FH15: 70.32903698 | FI15: 70.32696249 | FJ15: 70.31901609 | FK15: 70.31731935 | FL15: 70.30981883 | FM15: 70.30657891 | FN15: 70.30317423 | FO15: 70.28245778 | FP15: 70.28073557 | FQ15: 70.27605354 | FR15: 70.27240501 | FS15: 70.27027933 | FT15: 70.26850702 | FU15: 70.26578355 | FV15: 70.25991248 | FW15: 70.25300702 | FX15: 70.24989159 | FY15: 70.24819485 | FZ15: 70.24069433 | GA15: 70.23404974 | GB15: 70.22716369 | GC15: 70.22594572 | GD15: 70.22235152 | GE15: 70.21441291 | GF15: 70.20115483 | GG15: 70.19078798 | GH15: 70.19029178 | GI15: 70.18856958 | GJ15: 70.18076709 | GK15: 70.18023902 | GL15: 70.17156984 | GM15: 70.16494465 | GN15: 70.16492524 | GO15: 70.16084102 | GP15: 70.15322703 | GQ15: 70.13499769 | GR15: 70.13203033 | GS15: 70.1116426 | GT15: 70.10244534 | GU15: 70.09812579 | GV15: 70.09640359 | GW15: 70.09582016 | GX15: 70.09580074 | GY15: 70.08994909 | GZ15: 70.08807302 | HA15: 70.08769672 | HB15: 70.08579926 | HC15: 70.08410253 | HD15: 70.0811031 | HE15: 70.07697241 | HF15: 70.06995741 | HG15: 70.06222969 | HH15: 70.04935977 | HI15: 70.04283169 | HJ15: 70.04071262 | HK15: 70.04052555 | HL15: 70.02669566 | HM15: 70.0208246 | HN15: 70.01667476 | HO15: 70.01497804 | HP15: 70.0119786 | HQ15: 70.00784791 | HR15: 70.00595979 | HS15: 70.00423759 | HT15: 70.00083291 | HU15: 69.99590703 | HV15: 69.98011646 | HW15: 69.97158813 | HX15: 69.97140105 | HY15: 69.9700637 | HZ15: 69.96074054 | IA15: 69.95757117 | IB15: 69.95719377 | IC15: 69.9517001 | ID15: 69.95067851 | IE15: 69.9506657 | IF15: 69.94944773 | IG15: 69.94755027 | IH15: 69.94704722 | II15: 69.94585354 | IJ15: 69.94285411 | IK15: 69.93872341 | IL15: 69.93170841 | IM15: 69.9236044 | IN15: 69.91391737 | IO15: 69.91379379 | IP15: 69.9120716 | IQ15: 69.90246363 | IR15: 69.90227656 | IS15: 69.89097212 | IT15: 69.88844667 | IU15: 69.88795046 | IV15: 69.88257561 | IW15: 69.87842577 | IX15: 69.8778977 | IY15: 69.87372961 | IZ15: 69.86959892 | JA15: 69.86857455 | JB15: 69.86502778 | JC15: 69.86258392 | JD15: 69.85851252 | JE15: 69.8584997 | JF15: 69.85488122 | JG15: 69.84479287 | JH15: 69.83839118 | JI15: 69.83333914 | JJ15: 69.83315206 | JK15: 69.82184762 | JL15: 69.81345111 | JM15: 69.81119874 | JN15: 69.80930128 | JO15: 69.80460512 | JP15: 69.80047442 | JQ15: 69.79578447 | JR15: 69.79345942 | JS15: 69.78760777 | JT15: 69.78706916 | JU15: 69.7857317 | JV15: 69.78535541 | JW15: 69.77876179 | JX15: 69.77640855 | JY15: 69.77566838 | JZ15: 69.77463108 | KA15: 69.77286179 | KB15: 69.76926668 | KC15: 69.7687096 | KD15: 69.76634652 | KE15: 69.76421464 | KF15: 69.76402757 | KG15: 69.76271523 | KH15: 69.75272313 | KI15: 69.74701845 | KJ15: 69.74580048 | KK15: 69.73837131 | KL15: 69.73818423 | KM15: 69.72926295 | KN15: 69.72827681 | KO15: 69.71848328 | KP15: 69.71794467 | KQ15: 69.70963729 | KR15: 69.70654388 | KS15: 69.70550659 | KT15: 69.70361847 | KU15: 69.70014219 | KV15: 69.69356571 | KW15: 69.68424256 | KX15: 69.68359863 | KY15: 69.68069579 | KZ15: 69.6765436 | LA15: 69.67418052 | LB15: 69.67294975 | LC15: 69.67054924 | LD15: 69.66924681 | LE15: 69.66905973 | LF15: 69.65839923 | LG15: 69.65485246 | LH15: 69.64935878 | LI15: 69.64882017 | LJ15: 69.64833719 | LK15: 69.64710642 | LL15: 69.6447059 | LM15: 69.64051279 | LN15: 69.63741939 | LO15: 69.63709695 | LP15: 69.63638209 | LQ15: 69.63101769 | LR15: 69.61447414 | LS15: 69.61157606 | LT15: 69.61145248 | LU15: 69.60755149 | LV15: 69.60012232 | LW15: 69.59993524 | LX15: 69.59207657 | LY15: 69.59002782 | LZ15: 69.58863081 | MA15: 69.5843776 | MB15: 69.58201453 | MC15: 69.58023429 | MD15: 69.57969568 | ME15: 69.57838324 | MF15: 69.5713883 | MG15: 69.57072321 | MH15: 69.5672576 | MI15: 69.56623323 | MJ15: 69.56268646 | MK15: 69.5618932 | ML15: 69.55673242 | MM15: 69.55617119 | MN15: 69.55253991 | MO15: 69.54493096 | MP15: 69.54245156 | MQ15: 69.53823471 | MR15: 69.53604986 | MS15: 69.53099782 | MT15: 69.53081074 | MU15: 69.52047388 | MV15: 69.51950631
A16: 70.44401477 | B16: 70.37627276 | C16: 70.30853076 | D16: 70.24078875 | E16: 70.20874361 | F16: 70.20015701 | G16: 70.17304675 | H16: 70.14772028 | I16: 70.1410016 | J16: 70.132415 | K16: 70.07997827 | L16: 70.0732596 | M16: 70.064673 | N16: 70.01223626 | O16: 70.00551759 | P16: 69.99693099 | Q16: 69.94449426 | R16: 69.93777559 | S16: 69.92918898 | T16: 69.91244911 | U16: 69.90386252 | V16: 69.90315212 | W16: 69.8952122 | X16: 69.87675225 | Y16: 69.85583686 | Z16: 69.84470711 | AA16: 69.83612051 | AB16: 69.82747019 | AC16: 69.81282944 | AD16: 69.78809485 | AE16: 69.7769651 | AF16: 69.76837851 | AG16: 69.75972818 | AH16: 69.73461037 | AI16: 69.72250677 | AJ16: 69.72035284 | AK16: 69.7092231 | AL16: 69.7006365 | AM16: 69.69198618 | AN16: 69.67425715 | AO16: 69.66686837 | AP16: 69.65261084 | AQ16: 69.64148109 | AR16: 69.6328945 | AS16: 69.63218409 | AT16: 69.62424417 | AU16: 69.60685762 | AV16: 69.60651514 | AW16: 69.59912636 | AX16: 69.59891771 | AY16: 69.58945723 | AZ16: 69.58486883 | BA16: 69.57800843 | BB16: 69.55954237 | BC16: 69.54186141 | BD16: 69.53877314 | BE16: 69.53138436 | BF16: 69.5311757 | BG16: 69.51653495 | BH16: 69.50293011 | BI16: 69.49913455 | BJ16: 69.49180036 | BK16: 69.48768576 | BL16: 69.47103113 | BM16: 69.46364235 | BN16: 69.4634337 | BO16: 69.43831588 | BP16: 69.43779498 | BQ16: 69.43518811 | BR16: 69.43039939 | BS16: 69.42773039 | BT16: 69.42621228 | BU16: 69.42405836 | BV16: 69.40881188 | BW16: 69.40328913 | BX16: 69.39736308 | BY16: 69.39569169 | BZ16: 69.37796265 | CA16: 69.37057387 | CB16: 69.37005297 | CC16: 69.3674461 | CD16: 69.36265738 | CE16: 69.35998839 | CF16: 69.35631635 | CG16: 69.3358896 | CH16: 69.32794969 | CI16: 69.31848921 | CJ16: 69.31022065 | CK16: 69.30704041 | CL16: 69.30283187 | CM16: 69.30231097 | CN16: 69.2997041 | CO16: 69.29665224 | CP16: 69.29491537 | CQ16: 69.29316274 | CR16: 69.29224638 | CS16: 69.28857435 | CT16: 69.28171395 | CU16: 69.26765895 | CV16: 69.24556693 | CW16: 69.24247864 | CX16: 69.23508986 | CY16: 69.23456896 | CZ16: 69.23196209 | DA16: 69.22891023 | DB16: 69.22816653 | DC16: 69.22717337 | DD16: 69.22450437 | DE16: 69.21671774 | DF16: 69.20663562 | DG16: 69.20284006 | DH16: 69.19991694 | DI16: 69.19139127 | DJ16: 69.17473664 | DK16: 69.17141535 | DL16: 69.16734786 | DM16: 69.16682696 | DN16: 69.16116823 | DO16: 69.15943136 | DP16: 69.15676237 | DQ16: 69.14150049 | DR16: 69.13889361 | DS16: 69.1341049 | DT16: 69.13217494 | DU16: 69.1314359 | DV16: 69.1189149 | DW16: 69.11419898 | DX16: 69.11251739 | DY16: 69.10699463 | DZ16: 69.10106859 | EA16: 69.09342622 | EB16: 69.08109267 | EC16: 69.07375849 | ED16: 69.07115161 | EE16: 69.06636289 | EF16: 69.06443293 | EG16: 69.06369389 | EH16: 69.05794025 | EI16: 69.04645697 | EJ16: 69.02859223 | EK16: 69.02568421 | EL16: 69.02219471 | EM16: 69.01074592 | EN16: 69.00601648 | EO16: 69.0034096 | EP16: 69.00035775 | EQ16: 68.99862089 | ER16: 68.99669093 | ES16: 68.99595189 | ET16: 68.99077 | EU16: 68.99019824 | EV16: 68.98037777 | EW16: 68.97871497 | EX16: 68.97136446 | EY16: 68.96485275 | EZ16: 68.95727958 | FA16: 68.93827447 | FB16: 68.93826955 | FC16: 68.9356676 | FD16: 68.93261574 | FE16: 68.93187204 | FF16: 68.93087888 | FG16: 68.92820988 | FH16: 68.92245624 | FI16: 68.92042324 | FJ16: 68.91263576 | FK16: 68.91097296 | FL16: 68.90362245 | FM16: 68.90044733 | FN16: 68.89711075 | FO16: 68.87680862 | FP16: 68.87512086 | FQ16: 68.87053247 | FR16: 68.86695691 | FS16: 68.86487374 | FT16: 68.86313688 | FU16: 68.86046787 | FV16: 68.85471423 | FW16: 68.84794688 | FX16: 68.84489376 | FY16: 68.84323096 | FZ16: 68.83588044 | GA16: 68.82936874 | GB16: 68.82262041 | GC16: 68.8214268 | GD16: 68.81790449 | GE16: 68.81012465 | GF16: 68.79713173 | GG16: 68.78697223 | GH16: 68.78648594 | GI16: 68.78479819 | GJ16: 68.77715175 | GK16: 68.77663424 | GL16: 68.76813844 | GM16: 68.76164576 | GN16: 68.76162674 | GO16: 68.7576242 | GP16: 68.75016249 | GQ16: 68.73229773 | GR16: 68.72938973 | GS16: 68.70940975 | GT16: 68.70039643 | GU16: 68.69616327 | GV16: 68.69447551 | GW16: 68.69390376 | GX16: 68.69388473 | GY16: 68.68815011 | GZ16: 68.68631156 | HA16: 68.68594279 | HB16: 68.68408327 | HC16: 68.68242048 | HD16: 68.67948104 | HE16: 68.67543296 | HF16: 68.66855826 | HG16: 68.66098509 | HH16: 68.64837257 | HI16: 68.64197506 | HJ16: 68.63989837 | HK16: 68.63971504 | HL16: 68.62616175 | HM16: 68.62040811 | HN16: 68.61634127 | HO16: 68.61467848 | HP16: 68.61173903 | HQ16: 68.60769095 | HR16: 68.6058406 | HS16: 68.60415283 | HT16: 68.60081625 | HU16: 68.59598889 | HV16: 68.58051413 | HW16: 68.57215636 | HX16: 68.57197303 | HY16: 68.57066242 | HZ16: 68.56152573 | IA16: 68.55841974 | IB16: 68.55804989 | IC16: 68.5526661 | ID16: 68.55166494 | IE16: 68.55165239 | IF16: 68.55045878 | IG16: 68.54859926 | IH16: 68.54810628 | II16: 68.54693647 | IJ16: 68.54399703 | IK16: 68.53994895 | IL16: 68.53307425 | IM16: 68.52513231 | IN16: 68.51563902 | IO16: 68.51551792 | IP16: 68.51383016 | IQ16: 68.50441436 | IR16: 68.50423103 | IS16: 68.49315268 | IT16: 68.49067774 | IU16: 68.49019146 | IV16: 68.4849241 | IW16: 68.48085726 | IX16: 68.48033974 | IY16: 68.47625502 | IZ16: 68.47220694 | JA16: 68.47120306 | JB16: 68.46772722 | JC16: 68.46533224 | JD16: 68.46134227 | JE16: 68.46132971 | JF16: 68.4577836 | JG16: 68.44789702 | JH16: 68.44162336 | JI16: 68.43667235 | JJ16: 68.43648902 | JK16: 68.42541067 | JL16: 68.41718209 | JM16: 68.41497477 | JN16: 68.41311525 | JO16: 68.40851301 | JP16: 68.40446493 | JQ16: 68.39986878 | JR16: 68.39759023 | JS16: 68.39185562 | JT16: 68.39132778 | JU16: 68.39001707 | JV16: 68.3896483 | JW16: 68.38318655 | JX16: 68.38088038 | JY16: 68.38015501 | JZ16: 68.37913846 | KA16: 68.37740455 | KB16: 68.37388135 | KC16: 68.3733354 | KD16: 68.37101959 | KE16: 68.36893035 | KF16: 68.36874701 | KG16: 68.36746092 | KH16: 68.35766867 | KI16: 68.35207808 | KJ16: 68.35088447 | KK16: 68.34360388 | KL16: 68.34342054 | KM16: 68.33467769 | KN16: 68.33371127 | KO16: 68.32411361 | KP16: 68.32358577 | KQ16: 68.31544454 | KR16: 68.312413 | KS16: 68.31139646 | KT16: 68.3095461 | KU16: 68.30613934 | KV16: 68.2996944 | KW16: 68.29055771 | KX16: 68.28992666 | KY16: 68.28708187 | KZ16: 68.28301273 | LA16: 68.28069691 | LB16: 68.27949076 | LC16: 68.27713825 | LD16: 68.27586188 | LE16: 68.27567854 | LF16: 68.26523124 | LG16: 68.26175541 | LH16: 68.25637161 | LI16: 68.25584377 | LJ16: 68.25537045 | LK16: 68.25416429 | LL16: 68.25181178 | LM16: 68.24770254 | LN16: 68.244671 | LO16: 68.24435501 | LP16: 68.24365445 | LQ16: 68.23839734 | LR16: 68.22218465 | LS16: 68.21934453 | LT16: 68.21922343 | LU16: 68.21540046 | LV16: 68.20811987 | LW16: 68.20793653 | LX16: 68.20023504 | LY16: 68.19822726 | LZ16: 68.19685819 | MA16: 68.19269005 | MB16: 68.19037424 | MC16: 68.1886296 | MD16: 68.18810176 | ME16: 68.18681557 | MF16: 68.17996053 | MG16: 68.17930875 | MH16: 68.17591245 | MI16: 68.17490856 | MJ16: 68.17143274 | MK16: 68.17065533 | ML16: 68.16559777 | MM16: 68.16504777 | MN16: 68.16148911 | MO16: 68.15403234 | MP16: 68.15160253 | MQ16: 68.14747002 | MR16: 68.14532886 | MS16: 68.14037787 | MT16: 68.14019452 | MU16: 68.1300644 | MV16: 68.12911618
